{"text_format":"3","workbook":"xlsx","n_sheets":36,"sheets":["联系服务群众专项经费项目","支持实体经济发展项目","炎帝人才计划专项","妇女工作经费项目","12345公共服务热线建设项目","政务中心运行维护管理经费项目","平安随州建设项目","排污费改税补助项目","科技事业费项目","干部培训项目","擂鼓墩文化旅游区运行经费项目","数字化档案建设项目","文化旅游发展资金项目","保障性住房建设资金项目","公共检验检测中心检测和运行项目","企业军转干部社保及生活补助项目","全民创业奖补项目","省专汽专项经费项目","取消药品加成补助项目","残疾人就业保障金项目经费","城镇义务兵家庭优待金项目","重大公卫传染病防控与应急处置项目","金保工程项目","网络运行经费项目","计生事业费项目","老干部专项经费项目","体彩公益金项目","福彩公益金项目","政府住房基金项目","土地储备债券项目","城区主街道环卫市场化改革项目","污水处理运行经费项目","路灯管理处路灯费补助项目","粮食储备资金项目","园林局“以钱养事”项目","规划展览馆运行经费项目"],"not_rendered":{"defined_names":23},"read":"whole","date_system":"1900"}

{"sheet":"联系服务群众专项经费项目","index":0,"n_rows":22,"n_cols":5,"rows_kept":22,"merged":[[0,0,0,4],[2,0,6,0],[2,1,4,1],[5,1,6,1],[7,0,13,0],[7,1,10,1],[11,1,13,1],[14,0,22,0],[14,1,18,1],[19,1,22,1],[21,2,22,2],[21,3,22,3],[21,4,22,4]]}
["2019年联系服务群众专项经费项目绩效目标表"]
["一级指标","二级指标","三级指标","指标解释和说明","评分标准"]
["投入管理   （15分）","项目立项    （9分）","立项规范性                 （3分）","项目的申请、设立过程是否符合相关要求，用以反映和考核项目立项的规范情况。评价要点：1、项目是否按规定的程序申请设立；2、所提交材料、文件是否符合相关的要求；3、事前是否已经过必要的可行性研究、专家论证、风险评估集体决策等","1、全部符合，得3分；              2、一项不符合，扣1分"]
[null,null,"绩效目标                   合理性                   （3分）","项目所拟定的绩效目标是否依据充分，是否符合客观实际，用以反映和考核项目绩效目标与项目实施的相符情况。评价要点：1、是否国家相关法律法规、国民经济规划和政府决策；2、是否与项目实施单位或者委托单位职责密切相关；3、项目是否促进事业发展所必需；4、项目预期产出效益和结果是否符合正常的业绩水平","1、全部符合，得3分；               2、一项不符合，扣1分；              3、两项不符合，扣2分；              4、三项不符合，得0分"]
[null,null,"绩效指标明确性          （3分）","依据绩效目标设定的绩效指标是否清晰、细化、可衡量等，用以反映和考核项目绩效目标的明细化情况。评价要点：1、是否将项目绩效目标细化分解为具体的目标；2、是否通过清晰、可衡量的指标予以体现；3、是否与项目年度任务数或计划数相对应；4、是否与预算确定项目投资额或资金量相匹配。","1、全部符合，得3分；                     2、一项不符合，扣1分；              3、两项不符合，扣2分；                4、三项不符合，得0分"]
[null,"资金落实      （6分）","资金到位率          （3分）","实际到位资金与预算投入资金的比率，用以反映资金落实情况对项目实施的总体保障程度。资金到位率=（实际到位资金/预算投入资金）*100%，实际到位资金：一定实际（本年度或项目期）内实际落实到具体项目的资金。计划投入资金：一定时间（本年度或项目期）内预算投入到项目的资金。","预算资金全部到位计3分，到位率每降低10%（不足10%，按10%计），扣1分"]
[null,null,"到位及时率          （3分）","及时到位资金与应到位资金的比率，用以反映和考核项目资金落实的及时性程度。到位及时率=（及时到位资金/应到位资金）×100%。及时到位资金：截至规定时点实际落实到具体项目的资金。应到位资金：按照合同或项目进度要求截至规定时点应落实到具体项目的资金","预算资金及时到位计3分，到位及时率每降低10%（不足10%，按10%计），扣1分"]
["过程管理  （25分）","业务管理   （15分）","管理制度                 健全性                    （5分）","项目实施单位的业务管理制度是否健全，是否制定科学合理的计划，用以反映和考核业务管理制度对项目顺利实施的保障情况。评价要点：1、是否已制定或具有相应的业务管理制度和计划；2、业务管理制度是否合法、合规、完整。","1、全部符合，得5分；                 2、符合第一项，得4分；                3、符合第二项，得1分"]
[null,null,"\n制定执行                   有效性                      （3分）","项目实施是否符合相关业务管理规定，用以反映和考核业务管理制度的有效执行情况。评价要点：①是否遵守相关法律法规和业务管理规定；②项目实施单位是否建立工作台帐、各项开支是否按照有关制度执行等；③项目实施的人员条件、场地设备、信息支撑等是否落实到位","1、合部符合，得3分；                     2、一项不符合，扣1分，扣完为止"]
[null,null,"项目质量                 可控性                     （4分）","项目实施单位是否为达到项目质量要求而采取了必需的措施，用以反映和考核项目实施单位对项目质量的控制情况评价要点：①是否已制定监管的长效机制；②是否采取了必需的控制措施或手段③是否对管理维护工作进行了有效的监督，并形成工作记录","1、全部符合，得4分；                      2、符合第1项，得2分；                     3、符合第2项，得1分；                  4、符合第3项，得1分"]
[null,null,"项目档案                    完整性                      （3分）","项目档案保存是否完整，用以考核档案管理的合规性。评价要点：项目实施方案，工作台帐、各项业务管理制度、主管单位监督材料等维护工作记录资料、资金请示报告是否齐全并装订成册归档","项目档案资料完整计3分，项目档案资料不完整扣2分，没有项目资料得0分"]
[null,"财务管理   （10分）","财务制度                  健全性                     （3分）","项目实施单位的财务制度是否健全，用以反映和考核财务管理制度对资金规范、安全运行的保障情况。评价要点：1、是否已制定或具有相应的项目资金管理办法；2、项目资金管理办法是否符合相关财务会计制度的规定。","1、全部符合，得3分；                  2、符合第1项，得2分；                   3、符合第2项，得1分，              "]
[null,null,"资金使用                     合规性                        （3分）","项目资金使用是否符合相关的财务管理制度规定，用以反映和考核项目资金的规范运行情况。评价要点：1、是否符合国家财经法规和财务管理制度以及有关专项资金管理办法的规定；2、是否符合项目预算批复或合同规定的用途；3、是否存在截留、挤占、挪用、虚列支出等情况。","1、全部符合，得3分；               2、符合第1项，得2分；                    3、不符合2、3项其中1项，扣1分；"]
[null,null,"财务监控                   有效性                      （4分）","项目实施单位是否为保障资金的安全、规范运行而采取了必要的监控措施，用以反映和考核项目实施单位对资金运行的控制情况。评价要点：①资金的拨付是否有完整的审批程序和手续；②项目的重大开支是否经过集体决策。③项目资金是否专款专用","1、符合第1项得2分；                       2、符合第2项得1分；                    3、符合第3项得1分"]
["项目绩效  （60分）","项目产出       （30分）","奖励2017年度乡镇“大比武”示范乡镇             （4分）","奖励镇域综合实力突出乡镇5个、镇域经济实力进位乡镇3个、基层党建工作创新示范乡镇3个","完成100%，得4分；不足100%的，按完成比例扣分"]
[null,null,"补助党群服务中心              提档升级                           （12分）","1、项目实施单位是否完成年定新建党员群众服务中心村（社区）19个；2、项目实施单位是否完成年定改扩建党员群众服务中心的村（社区）25个                       ","1、第1项完成率100%，得6分；2、第2项完成100%，得6分；3、不足100%的，按完成比例扣分"]
[null,null,"引导集体经济薄弱村发展村级集体经济     （6分）","项目实施单位是否落实年定40个集体经济薄弱村（不含省、市两级留存补交党费补助的空壳村和薄弱村）发展村级集体经济引导资金","完成率100%，得6分；、不足100%的，按完成比例扣分\n"]
[null,null,"薄弱社区帮扶工程（4分）","项目实施单位是否完成年定帮扶薄弱社区20个（其中：中心城区相对薄弱老城区社区11个、中心城区相对薄弱企改型社区9个）","完成率100%，得6分；、不足101%的，按完成比例扣分\n"]
[null,null,"补助两新党组织  活动经费          (4分)","1、项目实施单位是否完成补助“百日巩固行动”中新建的“两新组织党组织（不含功能新党组织）”128个；2、项目实施单位是否完成补助“百日巩固行动”前建立的“两新组织党组织（不含功能新党组织）”482个","1、第1项完成率100%，得3分；2、第2项完成100%，得3分；3、不足100%的，按完成比例扣分\n"]
[null,"项目效果 （30分）","基层党组织联系服务群众工作提升程度                   （10分）","项目实施后，是否提升了基层党组织联系服务群众的能力，是否充分发挥了基层党组织宣传党的主张、贯彻党的决定、领导基层治理、团结动员群众、推动改革发展的坚强战斗堡垒作用，通过现场勘察和调查问卷获取数据","调查问卷结果达到90%，计10分，每降低5%（不足5%，按5%计），扣1分，扣完为止。"]
[null,null,"可持续影响          （10分）","1、项目实施单位是否有机构设置和充足的人员配备支持项目实施的后续运行；2、是否针对项目开展后续后续长效监管机制、后期维护管理是否得力","符合第1项得7分、符合第2项得3分\n"]
[null,null,"社会公众                 满意度                            （10分）","社会公众或服务对象对项目实施效果的满意程度。项目实施后，基层群众对项目的满意程度，通过调查问卷获取数据","达到90%，计10分，每降低5%（不足5%，按5计），扣1分。扣完为止。"]

{"sheet":"支持实体经济发展项目","index":1,"n_rows":43,"n_cols":5,"rows_kept":43,"merged":[[0,0,0,4],[2,0,14,0],[2,1,7,1],[2,2,3,2],[2,3,3,3],[2,4,3,4],[5,2,7,2],[5,3,7,3],[5,4,7,4],[8,1,14,1],[8,2,11,2],[8,3,11,3],[8,4,11,4],[12,2,14,2],[12,3,14,3],[12,4,14,4],[15,0,32,0],[15,1,24,1],[15,2,17,2],[15,3,17,3],[15,4,17,4],[18,2,21,2],[18,3,21,3],[18,4,21,4],[23,2,24,2],[23,3,24,3],[23,4,24,4],[25,1,32,1],[25,2,26,2],[25,3,26,3],[25,4,26,4],[27,2,31,2],[27,3,31,3],[27,4,31,4],[33,0,44,0],[33,1,38,1],[34,2,35,2],[34,3,35,3],[34,4,35,4],[39,1,44,1],[40,2,41,2],[40,3,41,3],[40,4,41,4],[42,2,44,2],[42,3,44,3],[42,4,44,4]]}
["2019年支持实体经济发展绩效目标表"]
["一级 指标","二级 指标","三级指标","指标解释和说明","评分标准"]
["投入 管理   （15分）","项目 立项    （9分）","立项 规范性     （3分）","项目的申请、设立过程是否符合相关要求，用以反映和考核项目立项的规范情况。评价要点：1、项目是否按规定的程序申请设立；2、所提交材料、文件是否符合相关的要求；3、事前是否已经过必要的可行性研究、专家论证、风险评估集体决策等","1、全部符合得3分；2、一项不符合扣1分。"]
[]
[null,null,"绩效目标合理性  （3分）","项目所拟定的绩效目标是否依据充分，是否符合客观实际，用以反映和考核项目绩效目标与项目实施的相符情况。评价要点：1、是否国家相关法律法规、国民经济规划和政府决策；2、是否与项目实施单位或者委托单位职责密切相关；3、项目是否促进事业发展所必需；4、项目预期产出效益和结果是否符合正常的业绩水平","1、全部符合得3分；2、一项不符合扣1分3、两项不符合扣2分4、三项不符合得0分\n"]
[null,null,"绩效指标明确性  （3分）","依据绩效目标设定的绩效指标是否清晰、细化、可衡量等，用以反映和考核项目绩效目标的明细化情况。评价要点：1、是否将项目绩效目标细化分解为具体的目标；2、是否通过清晰、可衡量的指标予以体现；3、是否与项目年度任务数或计划数相对应；4、是否与预算确定项目投资额或资金量相匹配。","1、全部符合得3分；2、一项不符合扣1分3、两项不符合扣2分4、三项不符合得0分"]
[]
[]
[null,"资金 落实      （6分）","资金 到位率      （3分）","实际到位资金与预算投入资金的比率，用以反映资金落实情况对项目实施的总体保障程度。资金到位率=（实际到位资金/预算投入资金）*100%，实际到位资金：一定实际（本年度或项目期）内实际落实到具体项目的资金。计划投入资金：一定时间（本年度或项目期）内预算投入到项目的资金。","预算资金全部到位计3分，到位率每降低10%，扣1分"]
[]
[]
[]
[null,null,"到位 及时率  （3分）","及时到位资金与应到位资金的比率，用以反映和考核项目资金落实的及时性程度。到位及时率=（及时到位资金/应到位资金）×100%。及时到位资金：截至规定时点实际落实到具体项目的资金。应到位资金：按照合同或项目进度要求截至规定时点应落实到具体项目的资金","预算资金及时到位计3分，到位及时率每降低10%，扣1分。"]
[]
[]
["过程  管理  （25分）","业务管理   （15分）","管理制度健全性（5分）","项目实施单位的业务管理制度是否健全，是否制定科学合理的计划，用以反映和考核业务管理制度对项目顺利实施的保障情况。评价要点：1、是否已制定或具有相应的业务管理制度和计划；2、业务管理制度是否合法、合规、完整。\n","根据实际情况得分1、全部符合得5分；2、符合第一项得4分；3、符合第二项得1分"]
[]
[]
[null,null,"\n制定执行有效性（3分）","项目实施是否符合相关业务管理规定，用以反映和考核业务管理制度的有效执行情况。评价要点：①是否遵守相关法律法规和业务管理规定；②项目实施单位是否建立工作台帐、各项工作是否按照有关制度执行等；③项目实施的人员条件、场地设备、信息支撑等是否落实到位","\n1、合部符合得3分；2、一项不符合扣1分"]
[]
[]
[]
[null,null,"项目质量可控性  （4分）","项目实施单位是否为达到项目质量要求而采取了必需的措施，用以反映和考核项目实施单位对项目质量的控制情况评价要点：①是否已制定监管的长效机制；②是否采取了必需的控制措施或手段③是否对管理维护工作进行了有效的监督，并形成工作记录","1、全部符合得4分；2、符合第1项得2分；3、符合第2项得1分；4、符合第3项得1分"]
[null,null,"项目档案完整性（3分）","项目档案保存是否完整，用以考核档案管理的合规性。评价要点：项目实施方案，工作台帐、工作记录、各项业务管理制度、主管单位监督材料等维护工作记录资料、资金请示报告是否齐全并装订成册归档","项目档案资料完整计3分，项目档案资料不完整扣2分，没有项目资料得0分"]
[]
[null,"财务 管理 （10分）","财务制度健全性（3分）","项目实施单位的财务制度是否健全，用以反映和考核财务管理制度对资金规范、安全运行的保障情况。评价要点：1、是否已制定或具有相应的项目资金管理办法；2、项目资金管理办法是否符合相关财务会计制度的规定。","1、全部符合得3分；2、符合第1项得2分；3、符合第2项得1分，否则0分"]
[]
[null,null,"资金使用合规性（3分）","项目资金使用是否符合相关的财务管理制度规定，用以反映和考核项目资金的规范运行情况。评价要点：1、是否符合国家财经法规和财务管理制度以及有关专项资金管理办法的规定；2、是否符合项目预算批复或合同规定的用途；3、是否存在截留、挤占、挪用、虚列支出等情况。","1、符合全部3项（4分）；2、符合第1项（2分）；3、符合2、3项其中1项（1分）"]
[]
[]
[]
[]
[null,null,"财务监控有效 （4分）","项目实施单位是否为保障资金的安全、规范运行而采取了必要的监控措施，用以反映和考核项目实施单位对资金运行的控制情况。评价要点：①资金的拨付是否有完整的审批程序和手续；②项目的重大开支是否经过集体决策。③项目资金是否进行专款专用核算","1、符合第1项得2分；2、符合第2项得1分。3、符合第3项得1分"]
["项目  绩效 （60分）","项目 产出       （30分）","预算控制率      （6分）","项目施工单位是否按照预算计划全部完成。用以反映和评价项目的完成程度。","预算执行率超过90%计6分，每降低5%，扣2分，扣完为止"]
[null,null,"科技成果转化","实施后是否能推动经济转型升级，科技创新用以反映和考核项目对科技创新的改善程度","通过实地调查得知"]
[]
[null,null,"市政基础建设（6分）","用以反映和考核项目实施产出的实现程度","通过实地调查了解：完成任务并验收合格的得6分，否则不得分"]
[null,null,"兑现各种奖励（6分）","项目实施单位完成年度任务，用以考核项目产出数量","按照政府文件已全部兑现得6分，未兑现适当扣分"]
[null,null,"完成及时情况（6分）","项目实施单位是否按照合同规定时限内全部完成项目。用以反映和评价项目的实施的工作效率。","根据实际情况，项目完成未验收扣2分，项目完工已验收得6分"]
[null,"项目效果 （30分）","社会效益、经济效益（10分）","项目实施后对当前的实体经济建设，工业产业结构发展产生影响","根据实际情况所得"]
[null,null,"可持续 影响（10分）","1、项目实施单位是否有机构设置和充足的人员配备支持项目实施的后续运行；2、是否针对项目开展后续后续长效监管机制、后期维护管理是否得力","符合第1项得6分、符合第2项得4分"]
[]
[null,null,"社会公众满意度 （10分）","社会公众或服务对象对项目实施效果的满意程度。项目实施后，居民对项目的满意程度，通过调查问卷获取数据","达到90%，计10分，每降低5%，扣2分。扣完为止。"]

{"sheet":"炎帝人才计划专项","index":2,"n_rows":43,"n_cols":5,"rows_kept":43,"merged":[[0,0,0,4],[2,0,14,0],[2,1,7,1],[2,2,3,2],[2,3,3,3],[2,4,3,4],[5,2,7,2],[5,3,7,3],[5,4,7,4],[8,1,14,1],[8,2,11,2],[8,3,11,3],[8,4,11,4],[12,2,14,2],[12,3,14,3],[12,4,14,4],[15,0,32,0],[15,1,24,1],[15,2,17,2],[15,3,16,3],[15,4,17,4],[18,2,21,2],[18,3,21,3],[18,4,21,4],[23,2,24,2],[23,3,24,3],[23,4,24,4],[25,1,32,1],[25,2,26,2],[25,3,26,3],[25,4,26,4],[27,2,31,2],[27,3,31,3],[27,4,31,4],[33,0,44,0],[33,1,38,1],[34,2,35,2],[34,3,35,3],[34,4,35,4],[39,1,44,1],[40,2,41,2],[40,3,41,3],[40,4,41,4],[42,2,44,2],[42,3,44,3],[42,4,44,4]]}
["2019年炎帝人才计划专项绩效目标表"]
["一级 指标","二级 指标","三级指标","指标解释和说明","评分标准"]
["投入 管理   （15分）","项目 立项    （9分）","立项 规范性     （3分）","项目的申请、设立过程是否符合相关要求，用以反映和考核项目立项的规范情况。评价要点：1、项目是否按规定的程序申请设立；2、所提交材料、文件是否符合相关的要求；3、事前是否已经过必要的可行性研究、专家论证、风险评估集体决策等","1、全部符合得3分；2、一项不符合扣1分。"]
[]
[null,null,"绩效目标合理性  （3分）","项目所拟定的绩效目标是否依据充分，是否符合客观实际，用以反映和考核项目绩效目标与项目实施的相符情况。评价要点：1、是否国家相关法律法规、国民经济规划和政府决策；2、是否与项目实施单位或者委托单位职责密切相关；3、项目是否促进事业发展所必需；4、项目预期产出效益和结果是否符合正常的业绩水平","1、全部符合得3分；2、一项不符合扣1分3、两项不符合扣2分4、三项不符合得0分\n"]
[null,null,"绩效指标明确性  （3分）","依据绩效目标设定的绩效指标是否清晰、细化、可衡量等，用以反映和考核项目绩效目标的明细化情况。评价要点：1、是否将项目绩效目标细化分解为具体的目标；2、是否通过清晰、可衡量的指标予以体现；3、是否与项目年度任务数或计划数相对应；4、是否与预算确定项目投资额或资金量相匹配。","1、全部符合得3分；2、一项不符合扣1分3、两项不符合扣2分4、三项不符合得0分"]
[]
[]
[null,"资金 落实      （6分）","资金 到位率      （3分）","实际到位资金与预算投入资金的比率，用以反映资金落实情况对项目实施的总体保障程度。资金到位率=（实际到位资金/预算投入资金）*100%，实际到位资金：一定实际（本年度或项目期）内实际落实到具体项目的资金。计划投入资金：一定时间（本年度或项目期）内预算投入到项目的资金。","预算资金全部到位计3分，到位率每降低10%，扣1分"]
[]
[]
[]
[null,null,"到位 及时率  （3分）","及时到位资金与应到位资金的比率，用以反映和考核项目资金落实的及时性程度。到位及时率=（及时到位资金/应到位资金）×100%。及时到位资金：截至规定时点实际落实到具体项目的资金。应到位资金：按照合同或项目进度要求截至规定时点应落实到具体项目的资金","预算资金及时到位计3分，到位及时率每降低10%，扣1分。"]
[]
[]
["过程  管理  （25分）","业务管理   （15分）","管理制度健全性（5分）","项目实施单位的业务管理制度是否健全，是否制定科学合理的计划，用以反映和考核业务管理制度对项目顺利实施的保障情况。评价要点：1、是否已制定或具有相应的业务管理制度和计划；2、业务管理制度是否合法、合规、完整。\n\r","根据实际情况得分1、全部符合得5分；2、符合第一项得4分；3、符合第二项得1分"]
[]
[]
[null,null,"\n制定执行有效性（3分）","项目实施是否符合相关业务管理规定，用以反映和考核业务管理制度的有效执行情况评价要点：①是否遵守相关法律法规和业务管理规定；②项目实施单位是否建立工作台帐、各项工作是否按照有关制度执行等；③项目实施的人员条件、场地设备、信息支撑等是否落实到位","\n1、合部符合得3分；2、一项不符合扣1分"]
[]
[]
[]
[null,null,"项目质量可控性  （4分）","项目实施单位是否为达到项目质量要求而采取了必需的措施，用以反映和考核项目实施单位对项目质量的控制情况评价要点：①是否已制定监管的长效机制；②是否采取了必需的控制措施或手段③是否对管理维护工作进行了有效的监督，并形成工作记录","1、全部符合得4分；2、符合第1项得2分；3、符合第2项得1分；4、符合第3项得1分"]
[null,null,"项目档案完整性（3分）","项目档案保存是否完整，用以考核档案管理的合规性。评价要点：项目实施方案，工作台帐、工作记录、各项业务管理制度、主管单位监督材料等维护工作记录资料、资金请示报告是否齐全并装订成册归档","项目档案资料完整计3分，项目档案资料不完整扣2分，没有项目资料得0分"]
[]
[null,"财务 管理 （10分）","财务制度健全性（3分）","项目实施单位的财务制度是否健全，用以反映和考核财务管理制度对资金规范、安全运行的保障情况。评价要点：1、是否已制定或具有相应的项目资金管理办法；2、项目资金管理办法是否符合相关财务会计制度的规定。","1、全部符合得3分；2、符合第1项得2分；3、符合第2项得1分，否则0分"]
[]
[null,null,"资金使用合规性（3分）","项目资金使用是否符合相关的财务管理制度规定，用以反映和考核项目资金的规范运行情况。评价要点：1、是否符合国家财经法规和财务管理制度以及有关专项资金管理办法的规定；2、是否符合项目预算批复或合同规定的用途；3、是否存在截留、挤占、挪用、虚列支出等情况。","1、符合全部3项（4分）；2、符合第1项（2分）；3、符合2、3项其中1项（1分）"]
[]
[]
[]
[]
[null,null,"财务监控有效 （4分）","项目实施单位是否为保障资金的安全、规范运行而采取了必要的监控措施，用以反映和考核项目实施单位对资金运行的控制情况。评价要点：①资金的拨付是否有完整的审批程序和手续；②项目的重大开支是否经过集体决策。③项目资金是否进行专款专用核算","1、符合第1项得2分；2、符合第2项得1分。3、符合第3项得1分"]
["项目  绩效 （60分）","项目 产出       （30分）","预算执行率      （6分）","项目施工单位是否按照预算计划全部完成。用以反映和评价项目的完成程度。","预算执行率超过90%计5分，每降低10%，扣2分，扣完为止"]
[null,null,"实际完成情况（6分）","根据实际情况得分，用以反映和考核项目产出程度。","根据实际情况完成得满分，得6分，否则不得分"]
[]
[null,null,"培训各类人才数（6分）","用以反映和考核项目实施产出的实现程度","根据年初目标，实际情况完成任务得满分，得6分，否则不得分"]
[null,null,"人才支持计划申报兑现（6分）","用以反映和考核项目实施产出的实现程度","根据年初目标，实际情况完成任务得满分，得6分，否则不得分"]
[null,null,"人才创新平台补助兑现（6分）","用以考核项目产出程度","根据年初目标，实际情况完成任务得满分，得6分，否则不得分"]
[null,"项目效果 （30分）","社会效益（10分）","指项目实施后营造尊重人才和利于创新创业的社会氛围","根据调查问卷：达到90%，计10分，每降低5%，扣2分，扣完为止。"]
[null,null,"可持续 影响（10分）","1、项目实施单位是否有机构设置和充足的人员配备支持项目实施的后续运行；2、是否针对项目开展后续后续长效监管机制、后期维护管理是否得力","符合第1项得7分、符合第2项得3分"]
[]
[null,null,"社会公众满意度 （10分）","社会公众或服务对象对项目实施效果的满意程度。项目实施后，居民对项目的满意程度，通过调查问卷获取数据","达到90%，计10分，每降低5%，扣2分。扣完为止。"]

{"sheet":"妇女工作经费项目","index":3,"n_rows":43,"n_cols":5,"rows_kept":43,"merged":[[0,0,0,4],[2,0,14,0],[2,1,7,1],[2,2,3,2],[2,3,3,3],[2,4,3,4],[5,2,7,2],[5,3,7,3],[5,4,7,4],[8,1,14,1],[8,2,11,2],[8,3,11,3],[8,4,11,4],[12,2,14,2],[12,3,14,3],[12,4,14,4],[15,0,32,0],[15,1,24,1],[15,2,17,2],[15,3,17,3],[15,4,17,4],[18,2,21,2],[18,3,21,3],[18,4,21,4],[23,2,24,2],[23,3,24,3],[23,4,24,4],[25,1,32,1],[25,2,26,2],[25,3,26,3],[25,4,26,4],[27,2,31,2],[27,3,31,3],[27,4,31,4],[33,0,44,0],[33,1,38,1],[34,2,35,2],[34,3,35,3],[34,4,35,4],[39,1,44,1],[40,2,41,2],[40,3,41,3],[40,4,41,4],[42,2,44,2],[42,3,44,3],[42,4,44,4]]}
["2019年妇女工作经费项目绩效目标表"]
["一级 指标","二级 指标","三级指标","指标解释和说明","评分标准"]
["投入 管理   （15分）","项目 立项    （9分）","立项 规范性     （3分）","项目的申请、设立过程是否符合相关要求，用以反映和考核项目立项的规范情况。评价要点：1、项目是否按规定的程序申请设立；2、所提交材料、文件是否符合相关的要求；3、事前是否已经过必要的可行性研究、专家论证、风险评估集体决策等","1、全部符合得3分；2、一项不符合扣1分。"]
[]
[null,null,"绩效目标合理性  （3分）","项目所拟定的绩效目标是否依据充分，是否符合客观实际，用以反映和考核项目绩效目标与项目实施的相符情况。评价要点：1、是否国家相关法律法规、国民经济规划和政府决策；2、是否与项目实施单位或者委托单位职责密切相关；3、项目是否促进事业发展所必需；4、项目预期产出效益和结果是否符合正常的业绩水平","1、全部符合得3分；2、一项不符合扣1分3、两项不符合扣2分4、三项不符合得0分\n"]
[null,null,"绩效指标明确性  （3分）","依据绩效目标设定的绩效指标是否清晰、细化、可衡量等，用以反映和考核项目绩效目标的明细化情况。评价要点：1、是否将项目绩效目标细化分解为具体的目标；2、是否通过清晰、可衡量的指标予以体现；3、是否与项目年度任务数或计划数相对应；4、是否与预算确定项目投资额或资金量相匹配。","1、全部符合得3分；2、一项不符合扣1分3、两项不符合扣2分4、三项不符合得0分"]
[]
[]
[null,"资金 落实      （6分）","资金 到位率      （3分）","实际到位资金与预算投入资金的比率，用以反映资金落实情况对项目实施的总体保障程度。资金到位率=（实际到位资金/预算投入资金）*100%，实际到位资金：一定实际（本年度或项目期）内实际落实到具体项目的资金。计划投入资金：一定时间（本年度或项目期）内预算投入到项目的资金。","预算资金全部到位计3分，到位率每降低10%，扣1分"]
[]
[]
[]
[null,null,"到位 及时率  （3分）","及时到位资金与应到位资金的比率，用以反映和考核项目资金落实的及时性程度。到位及时率=（及时到位资金/应到位资金）×100%。及时到位资金：截至规定时点实际落实到具体项目的资金。应到位资金：按照合同或项目进度要求截至规定时点应落实到具体项目的资金","预算资金及时到位计3分，到位及时率每降低10%，扣1分。"]
[]
[]
["过程  管理  （25分）","业务管理   （15分）","管理制度健全性（5分）","项目实施单位的业务管理制度是否健全，是否制定科学合理的计划，用以反映和考核业务管理制度对项目顺利实施的保障情况。评价要点：1、是否已制定或具有相应的业务管理制度和计划；2、业务管理制度是否合法、合规、完整。\n","1、全部符合得5分；2、符合第一项得4分；3、符合第二项得1分"]
[]
[]
[null,null,"\n制定执行有效性（3分）","项目实施是否符合相关业务管理规定，用以反映和考核业务管理制度的有效执行情况。评价要点：①是否遵守相关法律法规和业务管理规定；②项目实施单位是否建立工作台帐、各项开支是否按照有关制度执行等；③项目实施的人员条件、场地设备、信息支撑等是否落实到位","\n1、合部符合得3分；2、一项不符合扣1分"]
[]
[]
[]
[null,null,"项目质量可控性  （4分）","项目实施单位是否为达到项目质量要求而采取了必需的措施，用以反映和考核项目实施单位对项目质量的控制情况评价要点：①是否已制定监管的长效机制；②是否采取了必需的控制措施或手段③是否对管理维护工作进行了有效的监督，并形成工作记录","1、全部符合得4分；2、符合第1项得2分；3、符合第2项得1分；4、符合第3项得1分"]
[null,null,"项目档案完整性（3分）","项目档案保存是否完整，用以考核档案管理的合规性。评价要点：项目实施方案，工作台帐、各项业务管理制度、主管单位监督材料等维护工作记录资料、资金请示报告是否齐全并装订成册归档","项目档案资料完整计3分，项目档案资料不完整扣2分，没有项目资料得0分"]
[]
[null,"财务 管理 （10分）","财务制度健全性（3分）","项目实施单位的财务制度是否健全，用以反映和考核财务管理制度对资金规范、安全运行的保障情况。评价要点：1、是否已制定或具有相应的项目资金管理办法；2、项目资金管理办法是否符合相关财务会计制度的规定。","1、全部符合得3分；2、符合第1项得2分；3、符合第2项得1分，否则0分"]
[]
[null,null,"资金使用合规性（3分）","项目资金使用是否符合相关的财务管理制度规定，用以反映和考核项目资金的规范运行情况。评价要点：1、是否符合国家财经法规和财务管理制度以及有关专项资金管理办法的规定；2、是否符合项目预算批复或合同规定的用途；3、是否存在截留、挤占、挪用、虚列支出等情况。","1、符合全部3项（4分）；2、符合第1项（2分）；3、符合2、3项其中1项（1分）"]
[]
[]
[]
[]
[null,null,"财务监控有效 （4分）","项目实施单位是否为保障资金的安全、规范运行而采取了必要的监控措施，用以反映和考核项目实施单位对资金运行的控制情况。评价要点：①资金的拨付是否有完整的审批程序和手续；②项目的重大开支是否经过集体决策。③项目资金是否进行专款专用核算","1、符合第1项得2分；2、符合第2项得1分。3、符合第3项得1分"]
["项目  绩效 （60分）","项目 产出       （30分）","预算控制率      （6分）","项目施工单位是否按照预算计划全部完成。用以反映和评价项目的完成程度。","预算执行率超过90%计5分，每降低10%，扣2分，扣完为止"]
[null,null,"妇女思想政治引领与家庭文明建设（6分）","用以反映和考核项目产出时效目标的实现程度。","根据实际情况全面完成得满分，得5分，否则不得分"]
[]
[null,null,"基层妇女儿童保障程度（6分）","用以反映和考核项目实施后基层妇女儿童的保障程度","调查问卷结果达到90%，计6分，每降低5%，扣1分，扣完为止。"]
[null,null,"孤儿保障水平（6分）","指项目实施后是否能改善妇女儿童保障生活水平，用以反映和考核项目对居民生活的保障程度","根据实际情况完成任务得满分，得5分，否则不得分"]
[null,null,"妇女儿童宣传工作（6分）","用以考核项目产出程度","根据实际情况完成任务得满分，得5分，否则不得分"]
[null,"项目效果 （30分）","社会矛盾解决有效性（10分）","指项目实施后是否能缓解并有效解决各种社会矛盾，用以反映和考核项目实施后产生的社会效益","调查问卷结果达到90%，计10分，每降低5%，扣2分，扣完为止。"]
[null,null,"可持续 影响（10分）","1、项目实施单位是否有机构设置和充足的人员配备支持项目实施的后续运行；2、是否针对项目开展后续后续长效监管机制、后期维护管理是否得力","符合第1项得5分、符合第2项得5分"]
[]
[null,null,"社会公众满意度 （10分）","社会公众或服务对象对项目实施效果的满意程度。项目实施后，居民对项目的满意程度，通过调查问卷获取数据","达到90%，计10分，每降低5%，扣2分。扣完为止。"]

{"sheet":"12345公共服务热线建设项目","index":4,"n_rows":43,"n_cols":5,"rows_kept":43,"merged":[[0,0,0,4],[2,0,14,0],[2,1,7,1],[2,2,3,2],[2,3,3,3],[2,4,3,4],[5,2,7,2],[5,3,7,3],[5,4,7,4],[8,1,14,1],[8,2,11,2],[8,3,11,3],[8,4,11,4],[12,2,14,2],[12,3,14,3],[12,4,14,4],[15,0,32,0],[15,1,24,1],[15,2,17,2],[15,3,16,3],[15,4,17,4],[18,2,21,2],[18,3,21,3],[18,4,21,4],[23,2,24,2],[23,3,24,3],[23,4,24,4],[25,1,32,1],[25,2,26,2],[25,3,26,3],[25,4,26,4],[27,2,31,2],[27,3,31,3],[27,4,31,4],[33,0,44,0],[33,1,38,1],[34,2,35,2],[34,3,35,3],[34,4,35,4],[39,1,44,1],[40,2,41,2],[40,3,41,3],[40,4,41,4],[42,2,44,2],[42,3,44,3],[42,4,44,4]]}
["2019年12345公共服务热线建设项目绩效目标表"]
["一级 指标","二级 指标","三级指标","指标解释和说明","评分标准"]
["投入 管理   （15分）","项目 立项    （9分）","立项 规范性     （3分）","项目的申请、设立过程是否符合相关要求，用以反映和考核项目立项的规范情况。评价要点：1、项目是否按规定的程序申请设立；2、所提交材料、文件是否符合相关的要求；3、事前是否已经过必要的可行性研究、专家论证、风险评估集体决策等","1、全部符合得3分；2、一项不符合扣1分。"]
[]
[null,null,"绩效目标合理性  （3分）","项目所拟定的绩效目标是否依据充分，是否符合客观实际，用以反映和考核项目绩效目标与项目实施的相符情况。评价要点：1、是否国家相关法律法规、国民经济规划和政府决策；2、是否与项目实施单位或者委托单位职责密切相关；3、项目是否促进事业发展所必需；4、项目预期产出效益和结果是否符合正常的业绩水平","1、全部符合得3分；2、一项不符合扣1分3、两项不符合扣2分4、三项不符合得0分\n"]
[null,null,"绩效指标明确性  （3分）","依据绩效目标设定的绩效指标是否清晰、细化、可衡量等，用以反映和考核项目绩效目标的明细化情况。评价要点：1、是否将项目绩效目标细化分解为具体的目标；2、是否通过清晰、可衡量的指标予以体现；3、是否与项目年度任务数或计划数相对应；4、是否与预算确定项目投资额或资金量相匹配。","1、全部符合得3分；2、一项不符合扣1分3、两项不符合扣2分4、三项不符合得0分"]
[]
[]
[null,"资金 落实      （6分）","资金 到位率      （3分）","实际到位资金与预算投入资金的比率，用以反映资金落实情况对项目实施的总体保障程度。资金到位率=（实际到位资金/预算投入资金）*100%，实际到位资金：一定实际（本年度或项目期）内实际落实到具体项目的资金。计划投入资金：一定时间（本年度或项目期）内预算投入到项目的资金。","预算资金全部到位计3分，到位率每降低10%，扣1分"]
[]
[]
[]
[null,null,"到位 及时率  （3分）","及时到位资金与应到位资金的比率，用以反映和考核项目资金落实的及时性程度。到位及时率=（及时到位资金/应到位资金）×100%。及时到位资金：截至规定时点实际落实到具体项目的资金。应到位资金：按照合同或项目进度要求截至规定时点应落实到具体项目的资金","预算资金及时到位计3分，到位及时率每降低10%，扣1分。"]
[]
[]
["过程  管理  （25分）","业务管理   （15分）","管理制度健全性（5分）","项目实施单位的业务管理制度是否健全，是否制定科学合理的计划，用以反映和考核业务管理制度对项目顺利实施的保障情况。评价要点：1、是否已制定或具有相应的业务管理制度和计划；2、业务管理制度是否合法、合规、完整。\n\r","根据实际情况得分1、全部符合得5分；2、符合第一项得4分；3、符合第二项得1分"]
[]
[]
[null,null,"\n制定执行有效性（3分）","项目实施是否符合相关业务管理规定，用以反映和考核业务管理制度的有效执行情况评价要点：①是否遵守相关法律法规和业务管理规定；②项目实施单位是否建立工作台帐、各项工作是否按照有关制度执行等；③项目实施的人员条件、场地设备、信息支撑等是否落实到位","\n1、合部符合得3分；2、一项不符合扣1分"]
[]
[]
[]
[null,null,"项目质量可控性  （4分）","项目实施单位是否为达到项目质量要求而采取了必需的措施，用以反映和考核项目实施单位对项目质量的控制情况评价要点：①是否已制定监管的长效机制；②是否采取了必需的控制措施或手段③是否对管理维护工作进行了有效的监督，并形成工作记录","1、全部符合得4分；2、符合第1项得2分；3、符合第2项得1分；4、符合第3项得1分"]
[null,null,"项目档案完整性（3分）","项目档案保存是否完整，用以考核档案管理的合规性。评价要点：项目实施方案，工作台帐、工作记录、各项业务管理制度、主管单位监督材料等维护工作记录资料、资金请示报告是否齐全并装订成册归档","项目档案资料完整计3分，项目档案资料不完整扣2分，没有项目资料得0分"]
[]
[null,"财务 管理 （10分）","财务制度健全性（3分）","项目实施单位的财务制度是否健全，用以反映和考核财务管理制度对资金规范、安全运行的保障情况。评价要点：1、是否已制定或具有相应的项目资金管理办法；2、项目资金管理办法是否符合相关财务会计制度的规定。","1、全部符合得3分；2、符合第1项得2分；3、符合第2项得1分，否则0分"]
[]
[null,null,"资金使用合规性（3分）","项目资金使用是否符合相关的财务管理制度规定，用以反映和考核项目资金的规范运行情况。评价要点：1、是否符合国家财经法规和财务管理制度以及有关专项资金管理办法的规定；2、是否符合项目预算批复或合同规定的用途；3、是否存在截留、挤占、挪用、虚列支出等情况。","1、符合全部3项（4分）；2、符合第1项（2分）；3、符合2、3项其中1项（1分）"]
[]
[]
[]
[]
[null,null,"财务监控有效 （4分）","项目实施单位是否为保障资金的安全、规范运行而采取了必要的监控措施，用以反映和考核项目实施单位对资金运行的控制情况。评价要点：①资金的拨付是否有完整的审批程序和手续；②项目的重大开支是否经过集体决策。③项目资金是否进行专款专用核算","1、符合第1项得2分；2、符合第2项得1分。3、符合第3项得1分"]
["项目  绩效 （60分）","项目 产出       （30分）","预算控制率      （6分）","项目施工单位是否按照预算计划全部完成。用以反映和评价项目的完成程度。","预算执行率超过90%计5分，每降低10%，扣2分，扣完为止"]
[null,null,"实际完成情况（6分）","根据实际情况得分，用以反映和考核项目产出程度。","根据实际情况完成得满分，得6分，否则不得分"]
[]
[null,null,"热线平台话务接听量（6分）","用以反映和考核项目实施产出的实现程度","根据平台统计实际情况所得给分。"]
[null,null,"年均办件量（6分）","用以反映和考核项目实施产出的实现程度","根据年初目标，实际情况完成任务得满分，得5分，否则不得分"]
[null,null,"年办结率（6分）","用以考核项目产出程度","根据平台统计实际情况所得给分。"]
[null,"项目效果 （30分）","话务整合、平台整合改善程度（10分）","指项目实施后是否营造优质、便捷、高效的服务质量","根据根据实际情况平台统计结合调查问卷，达到90%计10分，每降低5%，扣2分。"]
[null,null,"可持续 影响（10分）","1、项目实施单位是否有机构设置和充足的人员配备支持项目实施的后续运行；2、是否针对项目开展后续后续长效监管机制、后期维护管理是否得力","符合第1项得7分、符合第2项得3分"]
[]
[null,null,"社会公众满意度 （10分）","社会公众或服务对象对项目实施效果的满意程度。项目实施后，居民对项目的满意程度，通过调查问卷获取数据","达到90%，计10分，每降低5%，扣2分。扣完为止。"]

{"sheet":"政务中心运行维护管理经费项目","index":5,"n_rows":43,"n_cols":5,"rows_kept":43,"merged":[[0,0,0,4],[2,0,14,0],[2,1,7,1],[2,2,3,2],[2,3,3,3],[2,4,3,4],[5,2,7,2],[5,3,7,3],[5,4,7,4],[8,1,14,1],[8,2,11,2],[8,3,11,3],[8,4,11,4],[12,2,14,2],[12,3,14,3],[12,4,14,4],[15,0,32,0],[15,1,24,1],[15,2,17,2],[15,3,17,3],[15,4,17,4],[18,2,21,2],[18,3,21,3],[18,4,21,4],[23,2,24,2],[23,3,24,3],[23,4,24,4],[25,1,32,1],[25,2,26,2],[25,3,26,3],[25,4,26,4],[27,2,31,2],[27,3,31,3],[27,4,31,4],[33,0,44,0],[33,1,38,1],[34,2,35,2],[34,3,35,3],[34,4,35,4],[39,1,44,1],[40,2,41,2],[40,3,41,3],[40,4,41,4],[42,2,44,2],[42,3,44,3],[42,4,44,4]]}
["2019年运行维护管理经费项目绩效目标表"]
["一级 指标","二级 指标","三级指标","指标解释和说明","评分标准"]
["投入 管理   （15分）","项目 立项    （9分）","立项 规范性     （3分）","项目的申请、设立过程是否符合相关要求，用以反映和考核项目立项的规范情况。评价要点：1、项目是否按规定的程序申请设立；2、所提交材料、文件是否符合相关的要求；3、事前是否已经过必要的可行性研究、专家论证、风险评估集体决策等","1、全部符合得3分；2、一项不符合扣1分。"]
[]
[null,null,"绩效目标合理性  （3分）","项目所拟定的绩效目标是否依据充分，是否符合客观实际，用以反映和考核项目绩效目标与项目实施的相符情况。评价要点：1、是否国家相关法律法规、国民经济规划和政府决策；2、是否与项目实施单位或者委托单位职责密切相关；3、项目是否促进事业发展所必需；4、项目预期产出效益和结果是否符合正常的业绩水平","1、全部符合得3分；2、一项不符合扣1分3、两项不符合扣2分4、三项不符合得0分\n"]
[null,null,"绩效指标明确性  （3分）","依据绩效目标设定的绩效指标是否清晰、细化、可衡量等，用以反映和考核项目绩效目标的明细化情况。评价要点：1、是否将项目绩效目标细化分解为具体的目标；2、是否通过清晰、可衡量的指标予以体现；3、是否与项目年度任务数或计划数相对应；4、是否与预算确定项目投资额或资金量相匹配","1、全部符合得3分；2、一项不符合扣1分3、两项不符合扣2分4、三项不符合得0分"]
[]
[]
[null,"资金 落实      （6分）","资金 到位率      （3分）","实际到位资金与预算投入资金的比率，用以反映资金落实情况对项目实施的总体保障程度。资金到位率=（实际到位资金/预算投入资金）*100%，实际到位资金：一定实际（本年度或项目期）内实际落实到具体项目的资金。计划投入资金：一定时间（本年度或项目期）内预算投入到项目的资金","预算资金全部到位计3分，到位率每降低10%，扣1分"]
[]
[]
[]
[null,null,"到位 及时率  （3分）","及时到位资金与应到位资金的比率，用以反映和考核项目资金落实的及时性程度。到位及时率=（及时到位资金/应到位资金）×100%。及时到位资金：截至规定时点实际落实到具体项目的资金。应到位资金：按照合同或项目进度要求截至规定时点应落实到具体项目的资金","预算资金及时到位计3分，到位及时率每降低10%，扣1分。"]
[]
[]
["过程  管理  （25分）","业务管理   （15分）","管理制度健全性（5分）","项目实施单位的业务管理制度是否健全，是否制定科学合理的计划，用以反映和考核业务管理制度对项目顺利实施的保障情况。评价要点：1、是否已制定或具有相应的业务管理制度和计划；2、业务管理制度是否合法、合规、完整。\n","1、全部符合得5分；2、符合第一项得4分；3、符合第二项得1分"]
[]
[]
[null,null,"\n制定执行有效性（3分）","项目实施是否符合相关业务管理规定，用以反映和考核业务管理制度的有效执行情况评价要点：①是否遵守相关法律法规和业务管理规定；②项目实施单位是否建立工作台帐、各项工作是否按照有关制度执行等；③项目实施的人员条件、场地设备、信息支撑等是否落实到位","\n1、合部符合得3分；2、一项不符合扣1分"]
[]
[]
[]
[null,null,"项目质量可控性  （4分）","项目实施单位是否为达到项目质量要求而采取了必需的措施，用以反映和考核项目实施单位对项目质量的控制情况评价要点：①是否已制定监管的长效机制；②是否采取了必需的控制措施或手段③是否对管理维护工作进行了有效的监督，并形成工作记录","1、全部符合得4分；2、符合第1项得2分；3、符合第2项得1分；4、符合第3项得1分"]
[null,null,"项目档案完整性（3分）","项目档案保存是否完整，用以考核档案管理的合规性。评价要点：项目实施方案，工作台帐、工作记录、各项业务管理制度、主管单位监督材料等维护工作记录资料、资金请示报告是否齐全并装订成册归档","项目档案资料完整计3分，项目档案资料不完整扣2分，没有项目资料得0分"]
[]
[null,"财务 管理 （10分）","财务制度健全性（3分）","项目实施单位的财务制度是否健全，用以反映和考核财务管理制度对资金规范、安全运行的保障情况。评价要点：1、是否已制定或具有相应的项目资金管理办法；2、项目资金管理办法是否符合相关财务会计制度的规定。","1、全部符合得3分；2、符合第1项得2分；3、符合第2项得1分，否则0分"]
[]
[null,null,"资金使用合规性（3分）","项目资金使用是否符合相关的财务管理制度规定，用以反映和考核项目资金的规范运行情况。评价要点：1、是否符合国家财经法规和财务管理制度以及有关专项资金管理办法的规定；2、是否符合项目预算批复或合同规定的用途；3、是否存在截留、挤占、挪用、虚列支出等情况","1、符合全部3项（4分）；2、符合第1项（2分）；3、符合2、3项其中1项（1分）"]
[]
[]
[]
[]
[null,null,"财务监控有效 （4分）","项目实施单位是否为保障资金的安全、规范运行而采取了必要的监控措施，用以反映和考核项目实施单位对资金运行的控制情况。评价要点：①资金的拨付是否有完整的审批程序和手续；②项目的重大开支是否经过集体决策。③项目资金是否进行专款专用核算","1、符合第1项得2分；2、符合第2项得1分。3、符合第3项得1分"]
["项目  绩效 （60分）","项目 产出       （30分）","预算控制率      （6分）","项目施工单位是否按照预算计划全部完成。用以反映和评价项目的完成程度。","预算执行率超过90%计5分，每降低10%，扣2分，扣完为止"]
[null,null,"政务事项网上可办率（6分）","用以反映和考核项目产出时效目标的实现程度。","根据省定目标全面完成得满分，得6分，否则不得分"]
[]
[null,null,"扫码评议满意率（6分）","用以反映和考核项目实施产出的实现程度","根据平台统计实际情况所得给分。"]
[null,null,"年均办件量（6分）","指项目实施后是否能改善妇女儿童保障生活水平，用以反映和考核项目对居民生活的保障程度","根据年初目标，实际情况完成任务得满分，得5分，否则不得分"]
[null,null,"年接待办事群众人数（6分）","用以考核项目产出程度","根据年初目标，实际情况完成任务得满分，得5分，否则不得分"]
[null,"项目效果 （30分）","环境卫生、物业管理、日常维护（10分）","指项目实施后是否营造优质、便捷、高效的政务服务环境","调查问卷结果达到90%，计10分，每降低5%，扣2分，扣完为止。"]
[null,null,"可持续 影响（10分）","1、项目实施单位是否有机构设置和充足的人员配备支持项目实施的后续运行；2、是否针对项目开展后续后续长效监管机制、后期维护管理是否得力","符合第1项得7分、符合第2项得3分"]
[]
[null,null,"社会公众满意度 （10分）","社会公众或服务对象对项目实施效果的满意程度。项目实施后，居民对项目的满意程度，通过调查问卷获取数据","达到90%，计10分，每降低5%，扣2分。扣完为止。"]

{"sheet":"平安随州建设项目","index":6,"n_rows":43,"n_cols":5,"rows_kept":43,"merged":[[0,0,0,4],[2,0,14,0],[2,1,7,1],[2,2,3,2],[2,3,3,3],[2,4,3,4],[5,2,7,2],[5,3,7,3],[5,4,7,4],[8,1,14,1],[8,2,11,2],[8,3,11,3],[8,4,11,4],[12,2,14,2],[12,3,14,3],[12,4,14,4],[15,0,32,0],[15,1,24,1],[15,2,17,2],[15,3,17,3],[15,4,17,4],[18,2,21,2],[18,3,21,3],[18,4,21,4],[23,2,24,2],[23,3,24,3],[23,4,24,4],[25,1,32,1],[25,2,26,2],[25,3,26,3],[25,4,26,4],[27,2,31,2],[27,3,31,3],[27,4,31,4],[33,0,44,0],[33,1,38,1],[34,2,35,2],[34,3,35,3],[34,4,35,4],[34,6,35,6],[39,1,44,1],[40,2,41,2],[40,3,41,3],[40,4,41,4],[42,2,44,2],[42,3,44,3],[42,4,44,4]]}
["2019年平安随州建设项目绩效目标表"]
["一级 指标","二级 指标","三级指标","指标解释和说明","评分标准"]
["投入 管理   （15分）","项目 立项    （9分）","立项 规范性     （3分）","项目的申请、设立过程是否符合相关要求，用以反映和考核项目立项的规范情况。评价要点：1、项目是否按规定的程序申请设立；2、所提交材料、文件是否符合相关的要求；3、事前是否已经过必要的可行性研究、专家论证、风险评估集体决策等","1、全部符合得3分；2、一项不符合扣1分。"]
[]
[null,null,"绩效目标合理性  （3分）","项目所拟定的绩效目标是否依据充分，是否符合客观实际，用以反映和考核项目绩效目标与项目实施的相符情况。评价要点：1、是否国家相关法律法规、国民经济规划和政府决策；2、是否与项目实施单位或者委托单位职责密切相关；3、项目是否促进事业发展所必需；4、项目预期产出效益和结果是否符合正常的业绩水平","1、全部符合得3分；2、一项不符合扣1分3、两项不符合扣2分4、三项不符合得0分\n"]
[null,null,"绩效指标明确性  （3分）","依据绩效目标设定的绩效指标是否清晰、细化、可衡量等，用以反映和考核项目绩效目标的明细化情况。评价要点：1、是否将项目绩效目标细化分解为具体的目标；2、是否通过清晰、可衡量的指标予以体现；3、是否与项目年度任务数或计划数相对应；4、是否与预算确定项目投资额或资金量相匹配。","1、全部符合得3分；2、一项不符合扣1分3、两项不符合扣2分4、三项不符合得0分"]
[]
[]
[null,"资金 落实      （6分）","资金 到位率      （3分）","实际到位资金与预算投入资金的比率，用以反映资金落实情况对项目实施的总体保障程度。资金到位率=（实际到位资金/预算投入资金）*100%，实际到位资金：一定实际（本年度或项目期）内实际落实到具体项目的资金。计划投入资金：一定时间（本年度或项目期）内预算投入到项目的资金。","预算资金全部到位计3分，到位率每降低10%，扣1分"]
[]
[]
[]
[null,null,"到位 及时率  （3分）","及时到位资金与应到位资金的比率，用以反映和考核项目资金落实的及时性程度。到位及时率=（及时到位资金/应到位资金）×100%。及时到位资金：截至规定时点实际落实到具体项目的资金。应到位资金：按照合同或项目进度要求截至规定时点应落实到具体项目的资金","预算资金及时到位计3分，到位及时率每降低10%，扣1分。"]
[]
[]
["过程  管理  （25分）","业务管理   （15分）","管理制度健全性（5分）","项目实施单位的业务管理制度是否健全，是否制定科学合理的计划，用以反映和考核业务管理制度对项目顺利实施的保障情况。评价要点：1、是否已制定或具有相应的业务管理制度和计划；2、业务管理制度是否合法、合规、完整。\n","1、全部符合得5分；2、符合第一项得4分；3、符合第二项得1分"]
[]
[]
[null,null,"\n制定执行有效性（3分）","项目实施是否符合相关业务管理规定，用以反映和考核业务管理制度的有效执行情况。评价要点：①是否遵守相关法律法规和业务管理规定；②项目实施单位是否建立工作台帐、各项开支是否按照有关制度执行等；③项目实施的人员条件、场地设备、信息支撑等是否落实到位","\n1、合部符合得3分；2、一项不符合扣1分"]
[]
[]
[]
[null,null,"项目质量可控性  （4分）","项目实施单位是否为达到项目质量要求而采取了必需的措施，用以反映和考核项目实施单位对项目质量的控制情况评价要点：①是否已制定监管的长效机制；②是否采取了必需的控制措施或手段③是否对管理维护工作进行了有效的监督，并形成工作记录","1、全部符合得4分；2、符合第1项得2分；3、符合第2项得1分；4、符合第3项得1分"]
[null,null,"项目档案完整性（3分）","项目档案保存是否完整，用以考核档案管理的合规性。评价要点：项目实施方案，工作台帐、各项业务管理制度、主管单位监督材料等维护工作记录资料、资金请示报告是否齐全并装订成册归档","项目档案资料完整计3分，项目档案资料不完整扣2分，没有项目资料得0分"]
[]
[null,"财务 管理 （10分）","财务制度健全性（3分）","项目实施单位的财务制度是否健全，用以反映和考核财务管理制度对资金规范、安全运行的保障情况。评价要点：1、是否已制定或具有相应的项目资金管理办法；2、项目资金管理办法是否符合相关财务会计制度的规定。","1、全部符合得3分；2、符合第1项得2分；3、符合第2项得1分，否则0分"]
[]
[null,null,"资金使用合规性（3分）","项目资金使用是否符合相关的财务管理制度规定，用以反映和考核项目资金的规范运行情况。评价要点：1、是否符合国家财经法规和财务管理制度以及有关专项资金管理办法的规定；2、是否符合项目预算批复或合同规定的用途；3、是否存在截留、挤占、挪用、虚列支出等情况。","1、符合全部3项（4分）；2、符合第1项（2分）；3、符合2、3项其中1项（1分）"]
[]
[]
[]
[]
[null,null,"财务监控有效 （4分）","项目实施单位是否为保障资金的安全、规范运行而采取了必要的监控措施，用以反映和考核项目实施单位对资金运行的控制情况。评价要点：①资金的拨付是否有完整的审批程序和手续；②项目的重大开支是否经过集体决策。③项目资金是否进行专款专用核算","1、符合第1项得2分；2、符合第2项得1分。3、符合第3项得1分"]
["项目  绩效 （60分）","项目 产出       （30分）","预算控制（6分）","项目施工单位是否按照预算计划全部完成。用以反映和评价项目的完成程度。","预算执行率超过90%计5分，每降低10%，扣2分，扣完为止"]
[null,null,"交通肇事逃逸侦破率（6分）","用以反映和考核项目产出时效目标的实现程度。","根据实际情况全面完成得满分，得5分，否则不得分"]
[]
[null,null,"视频探头完好率（6分）","用以反映和考核项目实施后视频监控的在线情况","视频探在线率达到95%，每降低5%，扣2分，扣完为止。"]
[null,null,"实际完成情况（6分）","根据建设合同规定得分。用以反映和考核项目产出程度","根据建设合同规定，完成及时得6分，完成不及时适当扣分"]
[null,null,"网上追逃抓存率（6分）","用以考核项目产出程度","根据实际情况完成任务得满分，得5分，否则不得分"]
[null,"项目效果 （30分）","提高打击、防范服务职能（10分）","评价要点：①利用视频监控是否提高各类刑事案件的破案率；②利用视频监控是否有助于抓获犯罪嫌疑人；③利用视频监控是否提高各类交通案件的破案率；④利用视频监控是否有助于处置群体性事件，服务民生。","调查问卷结果达到90%，计10分，每降低5%，扣2分，扣完为止。"]
[null,null,"可持续 影响（10分）","1、项目实施单位是否有机构设置和充足的人员配备支持项目实施的后续运行；2、是否针对项目开展后续后续长效监管机制、后期维护管理是否得力","符合第1项得7分、符合第2项得3分"]
[]
[null,null,"社会公众满意度（10分）","社会公众或服务对象对项目实施效果的满意程度。项目实施后，居民对项目的满意程度，通过调查问卷获取数据","调查问卷达到90%，计10分，每降低5%，扣2分。扣完为止。"]

{"sheet":"排污费改税补助项目","index":7,"n_rows":45,"n_cols":5,"rows_kept":45,"merged":[[0,0,0,4],[2,0,14,0],[2,1,7,1],[2,2,3,2],[2,3,3,3],[2,4,3,4],[5,2,7,2],[5,3,7,3],[5,4,7,4],[8,1,14,1],[8,2,11,2],[8,3,11,3],[8,4,11,4],[12,2,14,2],[12,3,14,3],[12,4,14,4],[15,0,32,0],[15,1,24,1],[15,2,17,2],[15,3,17,3],[15,4,17,4],[18,2,21,2],[18,3,21,3],[18,4,21,4],[23,2,24,2],[23,3,24,3],[23,4,24,4],[25,1,32,1],[25,2,26,2],[25,3,26,3],[25,4,26,4],[27,2,31,2],[27,3,31,3],[27,4,31,4],[33,0,46,0],[33,1,40,1],[34,2,35,2],[34,3,35,3],[34,4,35,4],[39,2,40,2],[39,3,40,3],[39,4,40,4],[41,1,46,1],[42,2,43,2],[42,3,43,3],[42,4,43,4],[44,2,46,2],[44,3,46,3],[44,4,46,4]]}
["2019年排污费改税补助项目绩效目标表"]
["一级 指标","二级 指标","三级指标","指标解释和说明","评分标准"]
["投入 管理   （15分）","项目 立项    （9分）","立项 规范性     （3分）","项目的申请、设立过程是否符合相关要求，用以反映和考核项目立项的规范情况。评价要点：1、项目是否按规定的程序申请设立；2、所提交材料、文件是否符合相关的要求；3、事前是否已经过必要的可行性研究、专家论证、风险评估集体决策等","1、全部符合得3分；2、一项不符合扣1分。"]
[]
[null,null,"绩效目标合理性  （3分）","项目所拟定的绩效目标是否依据充分，是否符合客观实际，用以反映和考核项目绩效目标与项目实施的相符情况。评价要点：1、是否国家相关法律法规、国民经济规划和政府决策；2、是否与项目实施单位或者委托单位职责密切相关；3、项目是否促进事业发展所必需；4、项目预期产出效益和结果是否符合正常的业绩水平","1、全部符合得3分；2、一项不符合扣1分3、两项不符合扣2分4、三项不符合得0分\n"]
[null,null,"绩效指标明确性  （3分）","依据绩效目标设定的绩效指标是否清晰、细化、可衡量等，用以反映和考核项目绩效目标的明细化情况。评价要点：1、是否将项目绩效目标细化分解为具体的目标；2、是否通过清晰、可衡量的指标予以体现；3、是否与项目年度任务数或计划数相对应；4、是否与预算确定项目投资额或资金量相匹配。","1、全部符合得3分；2、一项不符合扣1分3、两项不符合扣2分4、三项不符合得0分"]
[]
[]
[null,"资金 落实      （6分）","资金 到位率      （3分）","实际到位资金与预算投入资金的比率，用以反映资金落实情况对项目实施的总体保障程度。资金到位率=（实际到位资金/预算投入资金）*100%，实际到位资金：一定实际（本年度或项目期）内实际落实到具体项目的资金。计划投入资金：一定时间（本年度或项目期）内预算投入到项目的资金。","预算资金全部到位计3分，到位率每降低10%，扣1分"]
[]
[]
[]
[null,null,"到位 及时率       （3分）","及时到位资金与应到位资金的比率，用以反映和考核项目资金落实的及时性程度。到位及时率=（及时到位资金/应到位资金）×100%。及时到位资金：截至规定时点实际落实到具体项目的资金。应到位资金：按照合同或项目进度要求截至规定时点应落实到具体项目的资金","预算资金及时到位计3分，到位及时率每降低10%，扣1分。"]
[]
[]
["过程  管理  （25分）","业务管理   （15分）","管理制度健全性（5分）","项目实施单位的业务管理制度是否健全，是否制定科学合理的计划，用以反映和考核业务管理制度对项目顺利实施的保障情况。评价要点：1、是否已制定或具有相应的业务管理制度和计划；2、业务管理制度是否合法、合规、完整。\n","1、全部符合得5分；2、符合第一项得4分；3、符合第二项得1分"]
[]
[]
[null,null,"\n制定执行有效性（3分）","项目实施是否符合相关业务管理规定，用以反映和考核业务管理制度的有效执行情况。评价要点：①是否遵守相关法律法规和业务管理规定；②项目实施单位是否建立工作台帐、各项开支是否按照有关制度执行等；③项目实施的人员条件、场地设备、信息支撑等是否落实到位","\n1、合部符合得3分；2、一项不符合扣1分"]
[]
[]
[]
[null,null,"项目质量可控性  （4分）","项目实施单位是否为达到项目质量要求而采取了必需的措施，用以反映和考核项目实施单位对项目质量的控制情况评价要点：①是否已制定监管的长效机制；②是否采取了必需的控制措施或手段③是否对管理维护工作进行了有效的监督，并形成工作记录","1、全部符合得4分；2、符合第1项得2分；3、符合第2项得1分；4、符合第3项得1分"]
[null,null,"项目档案完整性（3分）","项目档案保存是否完整，用以考核档案管理的合规性。评价要点：项目实施方案，工作台帐、各项业务管理制度、主管单位监督材料等维护工作记录资料、资金请示报告是否齐全并装订成册归档","项目档案资料完整计3分，项目档案资料不完整扣2分，没有项目资料得0分"]
[]
[null,"财务 管理 （10分）","财务制度健全性（3分）","项目实施单位的财务制度是否健全，用以反映和考核财务管理制度对资金规范、安全运行的保障情况。评价要点：1、是否已制定或具有相应的项目资金管理办法；2、项目资金管理办法是否符合相关财务会计制度的规定。","1、全部符合得3分；2、符合第1项得2分；3、符合第2项得1分，否则0分"]
[]
[null,null,"资金使用合规性（3分）","项目资金使用是否符合相关的财务管理制度规定，用以反映和考核项目资金的规范运行情况。评价要点：1、是否符合国家财经法规和财务管理制度以及有关专项资金管理办法的规定；2、是否符合项目预算批复或合同规定的用途；3、是否存在截留、挤占、挪用、虚列支出等情况。","1、符合全部3项（4分）；2、符合第1项（2分）；3、符合2、3项其中1项（1分）"]
[]
[]
[]
[]
[null,null,"财务监控有效 （4分）","项目实施单位是否为保障资金的安全、规范运行而采取了必要的监控措施，用以反映和考核项目实施单位对资金运行的控制情况。评价要点：①资金的拨付是否有完整的审批程序和手续；②项目的重大开支是否经过集体决策。③项目资金是否进行专款专用核算","1、符合第1项得2分；2、符合第2项得1分。3、符合第3项得1分"]
["项目  绩效 （60分）","项目 产出       （30分）","预算控制率      （5分）","项目施工单位是否按照预算计划全部完成。用以反映和评价项目的完成程度。","预算执行率超过90%计5分，每降低10%，扣2分，扣完为止"]
[null,null,"空气质量改善情况（5分）","项目实施单位完成年度省定任务，用以反映和考核项目产出程度","项目实施单位完成省办赋予任务的，得5分；否则不得分"]
[]
[null,null,"水环境质量达标率（5分）","项目实施单位完成年度省定任务，用以考核项目产出程度","完成全年任务的得5分，否则不得分"]
[null,null,"二次污染源普查情况(5分)","项目实施单位完成年初目标，用以考核产出程度","根据年初任务全面完成得满分，得5分，否则不得分"]
[null,null,"区域环境噪声等效声级平均值 （5分）","项目实施单位年初目标55dB（A），用以考核项目产出程度","根据年初任务全面完成得满分，得5分，否则不得分"]
[null,null,"道路交通噪声等效声级平均值      （5分）","项目实施单位是年初目标70dB（A）用以考核项目产出程度","根据年初任务全面完成得满分，未全面完成适当扣分"]
[]
[null,"项目效果 （30分）","湖面治理改善程度（10分）","项目实施后，是否改善湖面和周边环境的污染情况，通过现场查勘和调查问卷获取数据","调查问卷结果达到90%，计10分，每降低5%，扣2分，扣完为止。"]
[null,null,"可持续 影响          （10分）","1、项目实施单位是否有机构设置和充足的人员配备支持项目实施的后续运行；2、是否针对项目开展后续后续长效监管机制、后期维护管理是否得力","符合第1项得8分、符合第2项得2分"]
[]
[null,null,"社会公众满意度 （10分）","社会公众或服务对象对项目实施效果的满意程度。项目实施后，居民对项目的满意程度，通过调查问卷获取数据","达到90%，计10分，每降低5%，扣2分。扣完为止。"]

{"sheet":"科技事业费项目","index":8,"n_rows":28,"n_cols":11,"rows_kept":28,"merged":[[1,0,1,10],[3,0,6,0],[3,1,6,1],[3,2,4,2],[3,3,4,3],[5,2,6,2],[5,3,6,3],[7,0,12,0],[7,1,12,1],[7,2,9,2],[7,3,9,3],[10,2,12,2],[10,3,12,3],[13,0,19,0],[13,1,19,1],[13,2,19,2],[13,3,19,3],[20,0,26,0],[20,1,26,1],[20,2,26,2],[20,3,26,3]]}
[]
["科技事业费项目绩效目标表"]
["一级\n指标","权重","二级\n指标","权重","三级指标","权重","指标解释","指标说明","参考值\n（目标值）","绩效标准","评分细则"]
["投   入",16,"项目\n立项",8,"项目立项规范性",4,"项目的申请、设立过程是否符合相关要求，用以反映和考核项目立项的规范情况。","评价要点：\n①是否有规划；\n②项目是否按照规定的程序申请设立；\n③所提交的文件、材料是否符合相关要求；\n④事前是否已经过必要的绩效评估、可行性研究、专家论证、风险评估、集体决策等；\n⑤项目执行时是否发生重大调整。",null,null,"项目有规划，项目按照规定的程序申请设立计1分；\n所提交的文件、材料符合相关要求计1分；\n事前经过必要的集体决策等，计1分；\n项目执行时发生重大调整，调整报告及批复符合相关要求，计1分。"]
[{"$nulls":4},"绩效目标合理性",4,"项目是否设定绩效目标和绩效指标，所设定的绩效目标和指标是否符合实际，用以反映和考核项目绩效目标与项目实施的相符情况。","评价要点：\n①是否设定长期目标、年度目标和绩效指标；\n②目标和指标的设计是否符合目标管理规范；\n③根据绩效目标和完成情况的对比考核目标设立的合理性；\n④绩效指标是否具有可测性。",null,null,"项目设定长期目标、年度目标和绩效指标，计2分；\n目标和指标的设计符合目标管理规范，计1分；\n绩效目标、绩效指标设立具有合理性、可测性，计1分。"]
[null,null,"资金\n落实",8,"资金到位率",4,"实际到位资金与计划投入资金的比率，用以反映和考核资金落实情况对项目实施的总体保障程度。","资金到位率=（实际到位资金/计划投入资金）×100%。\n实际到位资金：一定时期（本年度或项目期）内实际落实到具体项目的资金。\n计划投入资金：一定时期（本年度或项目期）内计划投入到具体项目的资金。",{"v":1,"d":"100%"},"计划标准","资金到位率达到100%，计4分，每降低10%，扣1分。"]
[{"$nulls":4},"到位及时率",4,"及时到位资金与应到位资金的比率，用以反映和考核项目资金落实的及时性程度。","到位及时率=（及时到位资金/应到位资金）×100%。\n及时到位资金：截至规定时点实际落实到具体项目的资金。\n应到位资金：按照合同或项目进度要求截至规定时点应落实到具体项目的资金。",{"v":1,"d":"100%"},"计划标准","到位及时率达到100%，计4分，每降低10%，扣1分。"]
["过   程",24,"项目\n管理",12,"管理制度健全性",4,"项目管理制度是否健全，用以反映和考核项目管理制度对项目顺利实施的保障情况。","评价要点：\n①是否已制定或具有相应的项目管理制度；\n②项目管理制度是否合法、合规、完整。",null,null,"项目实施单位已制定或具有相应的项目管理制度，计2分；\n项目管理制度合法、合规、完整，计2分。"]
[{"$nulls":4},"制度执行有效性",4,"项目实施是否符合相关项目管理规定，用以反映和考核项目管理制度的有效执行情况。","评价要点：\n①是否遵守相关法律法规和项目管理规定；\n②项目调整及支出调整手续是否完备；\n③是否严格执行项目管理程序及招投标制、合同制、项目公示制、政府采购等（针对具体项目对应评价）；\n④项目合同书资料是否齐全并及时归档；\n⑤项目实施的人员条件、场地设备、信息支撑等是否落实到位。",null,null,"项目实施过程遵守相关法律法规和项目管理规定，计0.5分；项目调整及支出调整手续完备，计0.5分；严格执行项目管理程序及招投标制、合同制、项目公示制、政府采购等，计1分；项目合同书资料是否齐全并及时归档，计1分；项目实施的人员条件、场地设备、信息支撑等落实到位，计1分。"]
[{"$nulls":4},"项目质量可控性",4,"项目实施单位是否为达到项目质量要求而采取了必需的措施,用以反映和考核项目实施单位对项目质量的控制情况。","评价要点：\n①是否已制定或具有相应的项目质量要求或标准；\n②是否采取了相应的项目质量检查等必需的控制措施或手段。",null,null,"已制定或具有相应的项目质量要求或标准，计2分；采取了相应的项目质量检查等必需的控制措施或手段，计2分。"]
[null,null,"财务\n管理",12,"管理制度健全性",4,"项目实施单位的财务制度是否健全，用以反映和考核财务管理制度对资金规范、安全运行的保障情况。","评价要点：\n①是否已制定或具有相应的项目资金管理办法；\n②项目资金管理办法是否符合相关财务会计制度的规定。",null,null,"项目管理部门已制定或具有相应的项目资金管理体系，计2分；符合相关财务会计制度的规定计2分。"]
[{"$nulls":4},"资金使用合规性",4,"项目资金使用是否符合相关的财务管理制度规定，用以反映和考核项目资金的规范运行情况。","评价要点：\n①是否符合国家财经法规和财务管理制度以及有关专项资金管理办法的规定；\n②资金的拨付是否有完整的审批程序和手续；\n③项目的重大开支是否经过评估认证；\n④是否符合项目预算批复或合同规定的用途；\n⑤是否存在截留、挤占、挪用、虚列支出等情况。",null,null,"项目资金使用符合国家财经法规和财务管理制度以及有关专项资金管理办法的规定，计1分；资金的拨付有完整的审批程序和手续，计1分；项目的重大开支经过评估认证，计1分；符合项目预算批复或合同规定的用途，计1分；存在截留、挤占、挪用、虚列支出等情况扣4分。"]
[{"$nulls":4},"财务监控有效性",4,"项目实施单位是否为保障资金的安全、规范运行而采取了必要的监控措施，用以反映和考核项目实施单位对资金运行的控制情况。","评价要点：\n①是否已制定或具有相应的监控机制；\n②是否采取了相应的财务检查等必要的监控措施或手段。",null,null,"项目实施单位已制定或具有相应的监控机制，计2分；采取了相应的财务检查等必要的监控措施或手段，计2分。"]
["产   出",29,"项目产出",29,"高新技术企业培育完成率",4,"项目实施单位是否按要求完成高新技术企业培育，用以反映和考核项目产出数量目标的实现程度。","评价要点：\n①新认定高新技术企业是否达到10家以上；\n②对新认定的高新技术企业是否按照10万元标准给予奖励。","10家\n10万元/家","计划标准","新认定高新技术企业达到10家以上，计2分；对新认定的高新技术企业按照10万元标准给予奖励，计2分。"]
[{"$nulls":4},"科技成果转化量",4,"项目实施单位是否按要求完成科技成果转化量，用以反映和考核项目产出数量目标的实现程度。","评价要点：\n①2018年度科技成果转化项目是否达到39个；\n②对符合补贴标准的成果转化项目是否按照交易额的20%且不高于30万的标准进行补贴。","39个","计划标准","2018年度科技成果转化项目达到39个，计2分；对符合补贴标准的成果转化项目按照交易额的20%且不高于30万的标准进行补贴，计2分。"]
[{"$nulls":4},"科技成果产业化后补助完成率",4,"项目实施单位是否按要求完成科技成果产业化后补助，用以反映和考核项目产出数量目标的实现程度。","评价要点：\n①科技成果产业化后补助项目是否达到5个；\n②对科技成果产业化后的项目是否按照每个项目50万元标准进行补贴。","5个\n50万元/个","计划标准","科技成果产业化后补助项目达到5个，计2分；对科技成果产业化后的项目按照每个项目50万元标准进行补贴，计2分。"]
[{"$nulls":4},"发明专利奖励",4,"项目实施单位是否按要求完成发明专利奖励，用以反映和考核项目产出数量目标的实现程度。","评价要点：\n①知识产权示范企业是否达到1-2个；\n②对知识产权示范企业是否按照每个10万元标准进行奖励。","1-2个\n10万元/个","计划标准","知识产权示范企业达到1-2个，计2分；\n对知识产权示范企业按照每个10万元标准进行奖励，计2分。"]
[{"$nulls":4},"省市级创新平台奖励完成率",5,"项目实施单位是否按要求完成省市级创新平台奖励，用以反映和考核项目产出数量目标的实现程度。","评价要点：\n①是否完成6个市级创新平台奖励项目评审；\n②对市级创新平台奖励项目是否按照每个3万元标准进行奖励；\n③对省级创新平台奖励项目是否按照每个10万元标准进行奖励。","6个\n3万元/个\n10万元/个","计划标准","\n完成6个市级创新平台奖励项目评审，计2分，每少一个扣0.5分；对市级创新平台奖励项目按照每个3万元标准进行奖励，计1.5分；对省级创新平台奖励项目是否按照每个10万元标准进行奖励，计1.5分。"]
[{"$nulls":4},"专用车技术研发补贴完成率",4,"项目实施单位是否按要求完成专用车技术研发补贴，用以反映和考核项目产出数量目标的实现程度。","评价要点：\n①是否完成对3-5个新产品技术研发补贴项目评审；\n②专用车技术研发补贴是否按照每个项目50万元标准进行补贴。","3-5个\n50万元/个","计划标准","完成对3-5个新产品技术研发补贴项目评审，计2分；专用车技术研发补贴按照每个项目50万元标准进行补贴，计2分。"]
[{"$nulls":4},"资金拨付率",4,"项目实际支出与项目预算资金的比率，用以反映和考核项目资金的拨付情况。","评价要点：\n资金拨付率=实际支出/项目预算资金×100%。\n实际支出：项目实施单位为完成既定工作目标本年度或项目期内实际所耗费的支出。\n项目预算资金：本年度或项目期内实际落实到具体项目的资金。",{"v":0.95,"d":"95%"},"计划标准","资金拨付率达到95%，计4分，每降低5%，扣1分。"]
["效   果",31,"项目\n效益",31,"高新技术产业增长率",5,"项目实施后是否对高新技术产业产生增长，用以反映和考核项目实施后的社会效益。","评价要点：\n全市高新技术产业增长率是否达到13%以上。",{"v":0.13,"d":"13%"},"计划标准","全市高新技术产业增长率达到13%以上，计5分，每降低2%，扣1分。"]
[{"$nulls":4},"专利申请增长率",5,"项目实施后是否对专利申请得到增长，用以反映和考核项目实施后的社会效益。","评价要点：\n全市专利申请增长率是否较上年上浮10%以上。",{"v":0.1,"d":"10%"},"计划标准","全市专利申请增长率较上年上浮10%以上，计5分。"]
[{"$nulls":4},"创新平台能力提升度",5,"项目实施后是否有效提升创新平台创新能力，用以反映和考核项目实施后的社会效益。","评价要点：\n①是否有针对创新平台奖励制定相关文件；\n②是否对创新平台采取积分制管理；\n③是否针对创新平台进行人员培训。",null,null,"有针对创新平台奖励相关文件，计2分；对创新平台采取积分制管理，计2分；针对创新平台组织人员培训，计1分。"]
[{"$nulls":4},"科技成果产出提升度",4,"项目实施后是否有效提升科技成果产出，用以反映和考核项目实施后的社会效益。","评价要点：\n①获得省科技奖励的企业是否达到8家；\n②获省科技进步一等奖是否达到2家，奖项数量和成果水平均创历史新高。",null,null,"获得省科技奖励的企业达到8家，计2分；获省科技进步一等奖达到2家，计2分。"]
[{"$nulls":4},"科技创新宣传度",3,"项目实施后科技创新宣传度是否提高，用以反映和考核项目实施后的社会效益。","评价要点：\n宣传方式是否达到3种以上。（科技活动周、送科技下乡、知识产权宣传周）","3种","计划标准","宣传方式是否达到3种以上，计3分，每少一个，扣1分。"]
[{"$nulls":4},"可持续影响",4,"项目实施后续运行及成效发挥的可持续影响情况，用以反映和考核项目产生的可持续影响。","评价要点：\n项目实施单位是否有组织人员培训和独立科室负责相关事项支持项目实施的后续运行。",null,null,"项目实施单位有组织人员培训和独立科室负责相关事项支持项目实施的后续运行，计4分。"]
[{"$nulls":4},"企业满意度",5,"企业对项目实施效果的满意程度。","企业满意度，采取对企业进行问卷调查的方式获取。满意度达95%以上计5分，",{"v":0.95,"d":"95%"},"计划标准","企业满意度，采取对服务对象进行问卷调查的方式获取。满意度达到95%以上的，计5分，每降低5%，扣1分。"]
["总分",{"$f":"SUM(B4:B27)","v":100},null,{"$f":"SUM(D4:D27)","v":100},null,{"$f":"SUM(F4:F27)","v":100}]

{"sheet":"干部培训项目","index":9,"n_rows":28,"n_cols":11,"rows_kept":28,"merged":[[1,0,1,10],[3,0,6,0],[3,1,6,1],[3,2,4,2],[3,3,4,3],[5,2,6,2],[5,3,6,3],[7,0,12,0],[7,1,12,1],[7,2,9,2],[7,3,9,3],[10,2,12,2],[10,3,12,3],[13,0,19,0],[13,1,19,1],[13,2,19,2],[13,3,19,3],[20,0,26,0],[20,1,26,1],[20,2,26,2],[20,3,26,3]]}
[]
["干部培训项目绩效目标表"]
["一级\n指标","权重","二级\n指标","权重","三级指标","权重","指标解释","指标说明","参考值\n（目标值）","绩效标准","评分细则"]
["投   入",16,"项目\n立项",8,"项目立项规范性",4,"项目的申请、设立过程是否符合相关要求，用以反映和考核项目立项的规范情况。","评价要点：\n①是否有规划；\n②项目是否按照规定的程序申请设立；\n③所提交的文件、材料是否符合相关要求；\n④事前是否已经过必要的绩效评估、可行性研究、专家论证、风险评估、集体决策等；\n⑤项目执行时是否发生重大调整。",null,null,"项目有规划，项目按照规定的程序申请设立计1分；\n所提交的文件、材料符合相关要求计1分；\n事前经过必要的集体决策等，计1分；\n项目执行时发生重大调整，调整报告及批复符合相关要求，计1分。"]
[{"$nulls":4},"绩效目标合理性",4,"项目是否设定绩效目标和绩效指标，所设定的绩效目标和指标是否符合实际，用以反映和考核项目绩效目标与项目实施的相符情况。","评价要点：\n①是否设定长期目标、年度目标和绩效指标；\n②目标和指标的设计是否符合目标管理规范；\n③根据绩效目标和完成情况的对比考核目标设立的合理性；\n④绩效指标是否具有可测性。",null,null,"项目设定长期目标、年度目标和绩效指标，计2分；\n目标和指标的设计符合目标管理规范，计1分；\n绩效目标、绩效指标设立具有合理性、可测性，计1分。"]
[null,null,"资金\n落实",8,"资金到位率",4,"实际到位资金与计划投入资金的比率，用以反映和考核资金落实情况对项目实施的总体保障程度。","资金到位率=（实际到位资金/计划投入资金）×100%。\n实际到位资金：一定时期（本年度或项目期）内实际落实到具体项目的资金。\n计划投入资金：一定时期（本年度或项目期）内计划投入到具体项目的资金。",{"v":1,"d":"100%"},"计划标准","资金到位率达到100%，计4分，每降低10%，扣1分"]
[{"$nulls":4},"到位及时率",4,"及时到位资金与应到位资金的比率，用以反映和考核项目资金落实的及时性程度。","到位及时率=（及时到位资金/应到位资金）×100%。\n及时到位资金：截至规定时点实际落实到具体项目的资金。\n应到位资金：按照合同或项目进度要求截至规定时点应落实到具体项目的资金。",{"v":1,"d":"100%"},"计划标准","到位及时率达到100%，计4分，每降低10%，扣1分。"]
["过   程",24,"项目\n管理",12,"管理制度健全性",4,"项目管理制度是否健全，用以反映和考核项目管理制度对项目顺利实施的保障情况。","评价要点：\n①是否已制定或具有相应的项目管理制度；\n②项目管理制度是否合法、合规、完整。",null,null,"项目实施单位已制定或具有相应的项目管理制度，计2分；\n项目管理制度合法、合规、完整，计2分。"]
[{"$nulls":4},"制度执行有效性",4,"项目实施是否符合相关项目管理规定，用以反映和考核项目管理制度的有效执行情况。","评价要点：\n①是否遵守相关法律法规和项目管理规定；\n②项目调整及支出调整手续是否完备；\n③是否严格执行项目管理程序及招投标制、合同制、项目公示制、政府采购等（针对具体项目对应评价）；\n④项目合同书资料是否齐全并及时归档；\n⑤项目实施的人员条件、场地设备、信息支撑等是否落实到位。",null,null,"项目实施过程遵守相关法律法规和项目管理规定，计0.5分；项目调整及支出调整手续完备，计0.5分；严格执行项目管理程序及招投标制、合同制、项目公示制、政府采购等，计1分；项目合同书资料是否齐全并及时归档，计1分；项目实施的人员条件、场地设备、信息支撑等落实到位，计1分。"]
[{"$nulls":4},"项目质量可控性",4,"项目实施单位是否为达到项目质量要求而采取了必需的措施,用以反映和考核项目实施单位对项目质量的控制情况。","评价要点：\n①是否已制定或具有相应的项目质量要求或标准；\n②是否采取了相应的项目质量检查等必需的控制措施或手段。",null,null,"已制定或具有相应的项目质量要求或标准，计2分；采取了相应的项目质量检查等必需的控制措施或手段，计2分。"]
[null,null,"财务\n管理",12,"管理制度健全性",4,"项目实施单位的财务制度是否健全，用以反映和考核财务管理制度对资金规范、安全运行的保障情况。","评价要点：\n①是否已制定或具有相应的项目资金管理办法；\n②项目资金管理办法是否符合相关财务会计制度的规定。",null,null,"项目管理部门已制定或具有相应的项目资金管理体系，计2分；符合相关财务会计制度的规定计2分。"]
[{"$nulls":4},"资金使用合规性",4,"项目资金使用是否符合相关的财务管理制度规定，用以反映和考核项目资金的规范运行情况。","评价要点：\n①是否符合国家财经法规和财务管理制度以及有关专项资金管理办法的规定；\n②资金的拨付是否有完整的审批程序和手续；\n③项目的重大开支是否经过评估认证；\n④是否符合项目预算批复或合同规定的用途；\n⑤是否存在截留、挤占、挪用、虚列支出等情况。",null,null,"项目资金使用符合国家财经法规和财务管理制度以及有关专项资金管理办法的规定，计1分；资金的拨付有完整的审批程序和手续，计1分；项目的重大开支经过评估认证，计1分；符合项目预算批复或合同规定的用途，计1分；存在截留、挤占、挪用、虚列支出等情况扣4分。"]
[{"$nulls":4},"财务监控有效性",4,"项目实施单位是否为保障资金的安全、规范运行而采取了必要的监控措施，用以反映和考核项目实施单位对资金运行的控制情况。","评价要点：\n①是否已制定或具有相应的监控机制；\n②是否采取了相应的财务检查等必要的监控措施或手段。",null,null,"项目实施单位已制定或具有相应的监控机制，计2分；采取了相应的财务检查等必要的监控措施或手段，计2分。"]
["产   出",31,"项目\n产出",31,"组织部调训任务完成率",6,"项目实施单位是否按组织部下发文件进行培训，用以反映和考核项目产出数量目标的实现程度。","评价要点：是否按照组织部下发文件组织培训。",null,null,"按照组织部下发文件组织培训，各班人数均一致，计6分；每有一个班级人数不一致，扣0.5份。"]
[{"$nulls":4},"课时比重达标率",4,"项目实际单位课时比重是否达标，用以反映和考核项目产出时效目标的实现程度。","评价要点：\n①党的理论教育和党性教育课时达到总课时的70%；\n②党性教育课不低于总课时的20%；\n③习近平新时代中国特色社会主义思想课时比重不低于50%。\n④是否对教师授课课时和教学活动工作量进行汇总统计；","70%\n20%\n50%","计划标准","党的理论教育和党性教育课时达到总课时的70%，计1分；\n党性教育课不低于总课时的20%，计1分；\n习近平新时代中国特色社会主义思想课时比重不低于50%，计1分。\n对教师授课课时和教学活动工作量进行汇总统计，并有汇总报告等，计1分。"]
[{"$nulls":4},"教学方式丰富度",4,"项目实施单位教学方式是否多样化，用以反映和考核项目产出质量目标的实现程度。","评价要点：\n①要求新教学方法的比重达到40%以上；\n②每学年新专题更新率达30%以上；\n③每学期至少组织2次“模拟面试”、“学员讲坛”、“模拟新闻发布会”或“现场式教学”等新式教学活动；\n④外请教师授课比例不低于40%。","40%\n30%\n2次","计划标准","要求新教学方法的比重达到40%以上，计1分；\n每学年新专题更新率达30%以上，计1分；\n每学期至少组织2次“模拟面试”、“学员讲坛”、“模拟新闻发布会”或“现场式教学”等新式教学活动，计1分；\n外请教师授课比例不低于40%，计1分。"]
[{"$nulls":4},"工作落实及时性",5,"项目实施单位工作落实是否及时，用以反映和考核项目产出时效目标的实现程度。","评价要点：\n①是否按时发出办班通知，是否出现工作不协调，计划落实不到位的情况；\n②日常教学组织是否造成失误，教学任务分配是否及时，是否存在教师误课或无人讲课情况；\n③全校主体班次授课提纲印制是否及时；\n④上级党校安排的教学研究任务是否落实及时且到位，对下级党校的教学业务指导是否及时。",null,null,"按时发出办班通知，未出现工作不协调，计划落实不到位的情况，计1分；\n日常教学组织未造成失误，教学任务分配及时，不存在教师误课或无人讲课情况，计1分；\n全校主体班次授课提纲印制及时，计1分；\n上级党校安排的教学研究任务落实及时且到位，对下级党校的教学业务指导及时，计2分。"]
[{"$nulls":4},"异地培训完成率",4,"项目实施单位异地培训是否达标，用以反映和考核项目产出质量目标的实现程度。","评价要点：\n①是否按照培训课表完成全部异地培训任务；\n②异地培训支出是否符合管理办法的培训标准。",null,null,"按照培训课表完成全部异地培训任务，计2分；\n异地培训支出是否符合管理办法的培训标准，计2分。"]
[{"$nulls":4},"住宿学员就餐标准",4,"项目实施单位住宿学员就餐标准是否达标，用以反映和考核项目产出质量目标的实现程度。","评价要点：\n①住宿学员是否符合相关条件及标准（在随州市内无住宿地点）；\n②每个住宿学员是否按照每天30元进行补贴。","30元/人/天","计划标准","住宿学员符合相关条件及标准（在随州市内无住宿地点），计2分；\n每个住宿学员按照每天30元进行补贴，计2分。"]
[{"$nulls":4},"资金拨付率",4,"项目实际支出与项目预算资金的比率，用以反映和考核项目资金的拨付情况。","评价要点：\n资金拨付率=实际支出/项目预算资金×100%。\n实际支出：项目实施单位为完成既定工作目标本年度或项目期内实际所耗费的支出。\n项目预算资金：本年度或项目期内实际落实到具体项目的资金。",{"v":0.95,"d":"95%"},"计划标准","资金拨付率达到95%，计4分，每降低5%，扣1分。"]
["效   果",29,"项目\n效益",29,"学籍档案管理有效性",4,"项目实施后是否对学员学籍档案进行有效管理，用以反映和考核项目实施后的社会效益。","评价要点：\n①是否对学员培训的学习信息档案建立文字和电子台账；\n②是否真实完整记载培训期间学员守纪表现、考试考核等情况；\n③是否对培训学员登记表及相关证书进行存档。",null,null,"对学员培训的学习信息档案建立文字和电子台账，计2分，每缺少一种扣1分；\n档案中真实完整记载培训期间学员守纪表现、考试考核等情况计1分；\n对培训学员登记表进行存档，计1分。"]
[{"$nulls":4},"学员到课率",4,"项目实施后是否有效提高学员到课率，用以反映和考核项目实施后的社会效益。","评价要点：\n①学员到课率是否达到90%以上。\n②是否按要求每班每月不少于5次督察，并将督察结果实名公示或通报。","90%\n5次/月","计划标准","学员到课率达到90%以上，计2分；\n按要求每班每月不少于5次督察，并将督察结果实名公示或通报，计2分，每缺少一次扣0.5分。"]
[{"$nulls":4},"教学质量优秀率",4,"项目实施后是否有效提高教学质量，用以反映和考核项目实施后的社会效益。","评价要点：\n①春秋两季主体班次教学质量测评平均分是否超过97分；\n②测评优秀率是否达到100%。","97分\n100%","计划标准","春秋两季主体班次教学质量测评平均分超过97分，计2分；\n测评优秀率达到100%，计2分。"]
[{"$nulls":4},"宣传方式多样性",4,"项目实施后宣传方式是否多样性，用以反映和考核项目实施后的社会效益。","评价要点：\n①积极上党校网站信息宣传学员管理经验（要求上党校网站信息不少于3条，上《干部教育报》不少于1条）；\n②做好与科室业务相关的网站信息宣传工作（经网络科拍照的活动都需上网站信息）；\n③在校网站增设“学员天地”子栏目。",null,null,"积极上党校网站信息宣传学员管理经验（要求上党校网站信息不少于3条，上《干部教育报》不少于1条），计2分；\n做好与科室业务相关的网站信息宣传工作（经网络科拍照的活动都需上网站信息），计1分；\n在校网站增设“学员天地”子栏目，计1分。"]
[{"$nulls":4},"成果展示",4,"项目实施后是否按要求进行成果展示，用以反映和考核项目实施后的社会效益。","评价要点：\n①是否有对学员结业论文，党性分析材料进行展示；\n②班主任、班干部的工作总结是否归档。",null,null,"对学员结业论文，党性分析材料进行展示，计2分；\n班主任、班干部的工作总结进行归档，计2分。"]
[{"$nulls":4},"可持续影响",4,"项目实施后续运行及成效发挥的可持续影响情况，用以反映和考核项目产生的可持续影响。","评价要点：\n项目实施单位是否有机构设置和充足的人员配备支持项目实施的后续运行；\n",null,null,"项目实施单位有机构设置和充足的人员配备支持项目实施的后续运行，计4分。"]
[{"$nulls":4},"学员满意度",5,"学员对项目实施效果的满意程度。","学员满意度，采取对学员进行问卷调查的方式获取。满意度达95%以上计5分，",{"v":0.95,"d":"95%"},"计划标准","学员满意度，采取对服务对象进行问卷调查的方式获取。满意度达到95%以上的，计5分，每降低5%，扣1分。"]
["总分",{"$f":"SUM(B4:B27)","v":100},null,{"$f":"SUM(D4:D27)","v":100},null,{"$f":"SUM(F4:F27)","v":100}]

{"sheet":"擂鼓墩文化旅游区运行经费项目","index":10,"n_rows":28,"n_cols":11,"rows_kept":28,"merged":[[0,0,0,7],[1,0,1,10],[3,0,6,0],[3,1,6,1],[3,2,4,2],[3,3,4,3],[5,2,6,2],[5,3,6,3],[7,0,12,0],[7,1,12,1],[7,2,9,2],[7,3,9,3],[10,2,12,2],[10,3,12,3],[13,0,19,0],[13,1,19,1],[13,2,19,2],[13,3,19,3],[20,0,26,0],[20,1,26,1],[20,2,26,2],[20,3,26,3]]}
[]
["擂鼓墩文化旅游区运行经费项目绩效目标表"]
["一级指标","权重","二级指标","权重","三级指标","权重","指标解释","指标说明","目标值","绩效标准","评分细则"]
["投   入",{"$f":"D4+D6","v":16},"项目\n立项",{"$f":"SUM(F4:F5)","v":8},"项目立项规范性",5,"项目的申请、设立过程是否符合相关要求，用以反映和考核项目立项的规范情况。","评价要点：\n①是否有规划；\n②项目是否按照规定的程序申请设立；\n③所提交的文件、材料是否符合相关要求；\n④事前是否已经过必要的集体决策等（或者项目预算编制依据是否充分，预算金额测算是否具体明确）；\n⑤项目执行时是否发生重大调整。",null,null,"项目有规划，计1分；项目按照规定的程序申请设立计1分；所提交的文件、材料符合相关要求计1分；事情经过必要的集体决策等，计1分；项目执行时发生重大调整，调整报告及批复符合相关要求，计1分。"]
[{"$nulls":4},"绩效目标合理性",3,"项目所设定的绩效目标是否依据充分，是否符合客观实际，用以反映和考核项目绩效目标与项目实施的相符情况。","评价要点：\n①是否设定长期目标、年度目标和绩效指标；\n②目标和指标的设计是否符合目标管理规范；\n③绩效目标设立是否具有合理性、可测性。",null,null,"项目设定长期目标、年度目标和绩效指标，计1分；\n目标和指标的设计符合目标管理规范，计1分；绩效目标设立具有合理性、可测性，计1分。"]
[null,null,"资金\n落实",8,"资金到位率",4,"实际到位资金与计划投入资金的比率，用以反映和考核资金落实情况对项目实施的总体保障程度。","资金到位率=（实际到位资金/计划投入资金）×100%。\n实际到位资金：一定时期（本年度或项目期）内实际落实到具体项目的资金。\n计划投入资金：一定时期（本年度或项目期）内计划投入到具体项目的资金。",{"v":1,"d":"100%"},"计划标准","资金到位率=（实际到位资金/计划投入资金）×100%，达到100%计4分，每降低10%，扣1分。"]
[{"$nulls":4},"到位及时率",4,"及时到位资金与应到位资金的比率，用以反映和考核项目资金落实的及时性程度。","到位及时率=（及时到位资金/应到位资金）×100%。\n及时到位资金：截至规定时点实际落实到具体项目的资金。\n应到位资金：按照合同或项目进度要求截至规定时点应落实到具体项目的资金。",{"v":1,"d":"100%"},"计划标准","到位及时率=（及时到位资金/应到位资金）×100%，达到100%计4分，每降低10%，扣1分。"]
["过   程",{"$f":"D8+D11","v":24},"项目\n管理",{"$f":"SUM(F8:F10)","v":12},"项目管理制度健全性",4,"项目管理制度是否健全，用以反映和考核项目管理制度对项目顺利实施的保障情况。","评价要点：\n①是否已制定或具有相应的项目管理制度；\n②项目管理制度是否合法、合规、完整。",null,null,"项目实施单位已制定或具有相应的项目管理制度，计2分；                                                                                                                   项目管理制度的制定合法、合规，计2分。"]
[{"$nulls":4},"制度执行有效性",4,"项目实施是否符合相关项目管理规定，用以反映和考核项目管理制度的有效执行情况。","评价要点：\n①是否遵守相关法律法规和项目管理规定；\n②项目调整及支出调整手续是否完备；\n③是否严格执行项目管理程序及招投标制、监理制、合同制、项目公示制、政府采购等；\n④项目合同书、验收报告、技术鉴定等资料是否齐全并及时归档；\n⑤项目实施的人员条件、场地设备、信息支撑等是否落实到位。",null,null,"项目实施过程遵守相关法律法规和项目管理规定，计0.5分；项目调整及支出调整手续完备，计0.5分；严格执行项目管理程序及招投标制、监理制、合同制、项目公示制、政府采购等，计1分；项目合同书、验收报告、技术鉴定等资料齐全并及时归档，计1分；项目实施的人员条件、场地设备、信息支撑等落实到位，计1分。"]
[{"$nulls":4},"项目质量可控性",4,"项目实施单位是否为达到项目质量要求而采取了必需的措施，用以反映和考核项目实施单位对项目质量的控制情况。","评价要点：\n①是否已制定或具有相应的项目质量要求或标准；\n②是否采取了相应的项目质量检查、验收等必需的控制措施或手段。",null,null,"已制定或具有相应的项目质量要求或标准，计2分；采取了相应的项目质量检查、验收等必需的控制措施或手段，计2分。"]
[null,null,"财务\n管理",{"$f":"SUM(F11:F13)","v":12},"财务管理制度健全性",4,"项目实施单位的财务制度是否健全，用以反映和考核财务管理制度对资金规范、安全运行的保障情况。","评价要点：\n①是否已制定或具有相应的项目资金管理办法；\n②项目资金管理办法是否符合相关财务会计制度的规定。",null,null,"项目管理部门已制定或具有相应的项目资金管理体系，计2分；符合相关财务会计制度的规定计2分。"]
[{"$nulls":4},"资金使用合规性",4,"项目资金使用是否符合相关的财务管理制度规定，用以反映和考核项目资金的规范运行情况。","评价要点：\n①是否符合国家财经法规和财务管理制度以及有关专项资金管理办法的规定；\n②资金的拨付是否有完整的审批程序和手续；\n③项目的重大开支是否经过评估认证；\n④是否符合项目预算批复或合同规定的用途；\n⑤是否存在截留、挤占、挪用、虚列支出等情况。",null,null,"资金的拨付有完整的审批程序和手续，计1分；项目支出符合国家财经法规和财务管理制度的有关规定，计1分；入账处理规范，单据齐全，计1分；不存在挤占、挪用项目经费，计1分。"]
[{"$nulls":4},"财务监控有效性",4,"项目实施单位是否为保障资金的安全、规范运行而采取了必要的监控措施，用以反映和考核项目实施单位对资金运行的控制情况。","评价要点：\n①是否已制定或具有相应的监控机制；\n②是否采取了相应的财务检查等必要的监控措施或手段。",null,null,"项目实施单位已制定或具有相应的监控机制，计2分；采取了相应的财务检查等必要的监控措施或手段，计2分。"]
["产出",{"$f":"D14","v":28},"项目产出",{"$f":"SUM(F14:F20)","v":28},"安保和保洁人员数量",4,"项目实施单位实际聘请的安保和保洁人员数量，用以反映和考核项目数量指标的完成程度。","评价要点：\n①安保人员数量是否达到15人；\n②保洁人员数量是否达到23人。","15人\n23人","计划标准","安保人员数量达到15人计2分，每减少1人，扣0.5分；\n保洁人员数量达到23人计2分，每减少1人，扣0.5分。"]
[{"$nulls":4},"安保巡逻频次",4,"项目实施单位每天安排保安巡逻次数，用以反映和考核项目数量指标的完成程度。","评价要点：\n①保安白班巡逻次数是否达到1次；\n②保安夜班巡逻次数是否达到2次；\n③是否安排固定时间段进行巡逻。\n","≥3次","计划标准","保安白班巡逻次数达到1次，计1分，减少1次，扣1分；\n保安夜班巡逻次数达到2次，计2分，减少1次，扣1分；\n固定时间段进行巡逻，扣1分。"]
[{"$nulls":4},"绿化养护面积完成率",4,"项目单位实际对片区场地进行绿化养护的面积与计划对片区场地进行绿化的面积的比率，用以反映和考核项目数量指标的完成程度。","评价要点：\n绿化养护面积完成率=实际完成绿化的面积/实际完成绿化的面积×100%。",{"v":1,"d":"100%"},"计划标准","绿化养护面积完成率达100%，计4分，每降低5%，扣0.5分。"]
[{"$nulls":4},"基础设备维修率",4,"项目实施单位是否积极维护园区内各类基础设备，用以反映和考核项目质量指标的完成程度。","评价要点：\n基础设备维护修率=实际维修基础设备台次/应维护设备台次×100%。",{"v":1,"d":"100%"},"计划标准","基础设备维修率达100%，计4分，每降低5%，扣0.5分。"]
[{"$nulls":4},"电梯正常运作合规性",4,"项目实施单位对电梯正常运作的管理程度，用以反映和考核项目实施单位处理业务的及时性。","评价要点：\n①有无专门人员进行电梯维修管理；\n②电梯年检是否合格。",null,null,"①有专门人员进行电梯维修管理，计2分，没有，不得分；\n②电梯年检合格，计2分，不合格，不得分。"]
[{"$nulls":4},"宣传方式多样性",4,"项目实施单位对外宣传方式的多样性，用以反映和考核项目实施单位宣传方式的多样化。","评价要点：\n对景区活动宣传有四种及四种以上宣传方式。","≥4种","计划标准","景区活动宣传达到4种以上，计4分，每减少1种方式扣1分。"]
[{"$nulls":4},"资金拨付率",4,"项目实际支出与项目预算资金的比率，用以反映和考核项目资金的拨付情况。","评价要点：\n资金拨付率=实际支出/项目预算资金×100%。\n实际支出：项目实施单位为完成既定工作目标本年度或项目期内实际所耗费的支出。\n项目预算资金：本年度或项目期内实际落实到具体项目的资金。",{"v":0.95,"d":"95%"},"计划标准","资金拨付率达到95%，计4分，每降低5%，扣1分。"]
["效果",{"$f":"D21","v":32},"项目效果",{"$f":"SUM(F21:F27)","v":32},"旅游收入年增长率",4,"项目实施单位旅游景区收入增加的比率，用以反映和考核项目实施后带来的经济效益。","评价要点：\n旅游收入年增长率=(2018年度景区旅游业收入-2017年度景区旅游业收入)/2017年度景区旅游业收入×100%。",{"v":0.1,"d":"10%"},"计划标准","2018年擂鼓墩遗址公园或曾侯乙墓景区收入增加比率达到10%，计4分，每降低1%，扣1分。"]
[{"$nulls":4},"基础设施、设备正常运行度",5,"项目实施单位基础设施、设备的维护、维修管理情况，用以反映和考核项目实施单位基础设施、设备（除电梯）的正常运行情况。","评价要点：\n①是否对擂鼓墩遗址公园或曾侯乙墓景区基础设施进行定期维护检查，\n②是否对擂鼓墩遗址公园或曾侯乙墓景区基础设备进行定期维修检测，\n③基础设施、设备（除电梯）维修结果是否合格。\n",null,null,"①定期对擂鼓墩遗址公园或曾侯乙墓景区基础设施进行维护检查，计2分，酌情扣分；\n②定期对擂鼓墩遗址公园或曾侯乙墓景区基础设备进行维修检测，计2分，每酌情扣分；\n③基础设施、设备（除电梯）维修结果合格，计1分，有1个不合格，扣1分。"]
[{"$nulls":4},"安全保障度",4,"擂鼓墩遗址公园和曾侯乙墓景区内对安全管理的保障程度，用以反映和考核项目实施单位的安全管理工作的实施效果。","评价要点：\n项目单位是否有相关的安全防范管理制度，项目实施后是否发生人身安全事故和文物安全事故。",null,null,"项目实施后，未发生一起人身安全事故和文物安全事故，计4分；发生一起可控性安全事故扣4分。"]
[{"$nulls":4},"环境卫生整洁度",4,"擂鼓墩遗址公园或曾侯乙墓园区环境卫生的整洁程度，用以反映和考核项目实施后带来的社会效益。","评价要点：\n擂鼓墩遗址公园或曾侯乙墓园区环境卫生的整洁程度。","≥90%","计划标准","采取问卷调查的方式获取。每降低5%，扣0.5分，扣完为止。"]
[{"$nulls":4},"安保服务满意度",4,"项目实施后，游客对擂鼓墩遗址公园或曾侯乙墓园区安全保障与服务的满意程度。","评价要点：\n游客对擂鼓墩遗址公园或曾侯乙墓景区安保服务的满意程度。","≥90%","计划标准","采取问卷调查的方式获取。每降低5%，扣0.5分，扣完为止。"]
[{"$nulls":4},"可持续性",5,"项目后续运行及成效发挥的可持续影响情况。","评价要点：\n①工作人员是否配备充足；\n②擂鼓墩遗址公园或曾侯乙墓景区的管理考核机制是否建立健全；\n③是否有效推进公园市场化管理、对物业管理进行定期检查和考核。",null,null,"工作人员配备充足，计1分；公园的管理考核机制建立健全，计2分；有效推进公园市场化管理，对物业管理进行定期检查和考核，计2分。"]
[{"$nulls":4},"社会公众满意度",6,"社会公众对部门履职效果的满意程度。","评价要点：\n社会公众对2018年度擂鼓墩遗址公园或曾侯乙墓景区整体管理水平的满意程度。","≥90%","计划标准","采取问卷调查的方式获取。每降低5%，扣0.5分，扣完为止。"]
["总计",{"$f":"SUM(B4:B27)","v":100},null,{"$f":"SUM(D4:D27)","v":100},null,{"$f":"SUM(F4:F27)","v":100}]

{"sheet":"数字化档案建设项目","index":11,"n_rows":27,"n_cols":12,"rows_kept":27,"merged":[[1,0,1,10],[3,0,6,0],[3,1,6,1],[3,2,4,2],[3,3,4,3],[5,2,6,2],[5,3,6,3],[7,0,12,0],[7,1,12,1],[7,2,9,2],[7,3,9,3],[10,2,12,2],[10,3,12,3],[13,0,19,0],[13,1,19,1],[13,2,19,2],[13,3,19,3],[20,0,25,0],[20,1,25,1],[20,2,25,2],[20,3,25,3]]}
[]
["数字化档案建设项目绩效目标表\n"]
["一级\n指标","权重","二级\n指标","权重","三级指标","权重","指标解释","指标说明","参考值\n（目标值）","绩效标准","评分细则"]
["投   入",16,"项目\n立项",8,"项目立项规范性",4,"项目的申请、设立过程是否符合相关要求，用以反映和考核项目立项的规范情况。","评价要点：\n①是否有规划；\n②项目是否按照规定的程序申请设立；\n③所提交的文件、材料是否符合相关要求；\n④事前是否已经过必要的绩效评估、可行性研究、专家论证、风险评估、集体决策等；\n⑤项目执行时是否发生重大调整。",null,null,"项目有规划，项目按照规定的程序申请设立计1分；\n所提交的文件、材料符合相关要求计1分；\n事前经过必要的集体决策等，计1分；\n项目执行时发生重大调整，调整报告及批复符合相关要求，计1分。"]
[{"$nulls":4},"绩效目标合理性",4,"项目是否设定绩效目标和绩效指标，所设定的绩效目标和指标是否符合实际，用以反映和考核项目绩效目标与项目实施的相符情况。","评价要点：\n①是否设定长期目标、年度目标和绩效指标；\n②目标和指标的设计是否符合目标管理规范；\n③根据绩效目标和完成情况的对比考核目标设立的合理性；\n④绩效指标是否具有可测性。",null,null,"项目设定长期目标、年度目标和绩效指标，计2分；\n目标和指标的设计符合目标管理规范，计1分；\n绩效目标、绩效指标设立具有合理性、可测性，计1分。"]
[null,null,"资金\n落实",8,"资金到位率",4,"实际到位资金与计划投入资金的比率，用以反映和考核资金落实情况对项目实施的总体保障程度。","资金到位率=（实际到位资金/计划投入资金）×100%。\n实际到位资金：一定时期（本年度或项目期）内实际落实到具体项目的资金。\n计划投入资金：一定时期（本年度或项目期）内计划投入到具体项目的资金。",{"v":1,"d":"100%"},"计划标准","资金到位率达到100%，计4分，每降低10%，扣1分"]
[{"$nulls":4},"到位及时率",4,"及时到位资金与应到位资金的比率，用以反映和考核项目资金落实的及时性程度。","到位及时率=（及时到位资金/应到位资金）×100%。\n及时到位资金：截至规定时点实际落实到具体项目的资金。\n应到位资金：按照合同或项目进度要求截至规定时点应落实到具体项目的资金。",{"v":1,"d":"100%"},"计划标准","到位及时率达到100%，计4分，每降低10%，扣1分。"]
["过   程",24,"项目\n管理",12,"管理制度健全性",4,"项目管理制度是否健全，用以反映和考核项目管理制度对项目顺利实施的保障情况。","评价要点：\n①是否已制定或具有相应的项目管理制度；\n②项目管理制度是否合法、合规、完整。",null,null,"项目实施单位已制定或具有相应的项目管理制度，计2分；\n项目管理制度合法、合规、完整，计2分。"]
[{"$nulls":4},"制度执行有效性",4,"项目实施是否符合相关项目管理规定，用以反映和考核项目管理制度的有效执行情况。","评价要点：\n①是否遵守相关法律法规和项目管理规定；\n②项目调整及支出调整手续是否完备；\n③是否严格执行项目管理程序及招投标制、合同制、项目公示制、政府采购等（针对具体项目对应评价）；\n④项目合同书资料是否齐全并及时归档；\n⑤项目实施的人员条件、场地设备、信息支撑等是否落实到位。",null,null,"项目实施过程遵守相关法律法规和项目管理规定，计0.5分；项目调整及支出调整手续完备，计0.5分；严格执行项目管理程序及招投标制、合同制、项目公示制、政府采购等，计1分；项目合同书资料是否齐全并及时归档，计1分；项目实施的人员条件、场地设备、信息支撑等落实到位，计1分。"]
[{"$nulls":4},"项目质量可控性",4,"项目实施单位是否为达到项目质量要求而采取了必需的措施,用以反映和考核项目实施单位对项目质量的控制情况。","评价要点：\n①是否已制定或具有相应的项目质量要求或标准；\n②是否采取了相应的项目质量检查等必需的控制措施或手段。",null,null,"已制定或具有相应的项目质量要求或标准，计2分；采取了相应的项目质量检查等必需的控制措施或手段，计2分。"]
[null,null,"财务\n管理",12,"管理制度健全性",4,"项目实施单位的财务制度是否健全，用以反映和考核财务管理制度对资金规范、安全运行的保障情况。","评价要点：\n①是否已制定或具有相应的项目资金管理办法；\n②项目资金管理办法是否符合相关财务会计制度的规定。",null,null,"项目管理部门已制定或具有相应的项目资金管理体系，计2分；符合相关财务会计制度的规定计2分。"]
[{"$nulls":4},"资金使用合规性",4,"项目资金使用是否符合相关的财务管理制度规定，用以反映和考核项目资金的规范运行情况。","评价要点：\n①是否符合国家财经法规和财务管理制度以及有关专项资金管理办法的规定；\n②资金的拨付是否有完整的审批程序和手续；\n③项目的重大开支是否经过评估认证；\n④是否符合项目预算批复或合同规定的用途；\n⑤是否存在截留、挤占、挪用、虚列支出等情况。",null,null,"项目资金使用符合国家财经法规和财务管理制度以及有关专项资金管理办法的规定，计1分；资金的拨付有完整的审批程序和手续，计1分；项目的重大开支经过评估认证，计1分；符合项目预算批复或合同规定的用途，计1分；存在截留、挤占、挪用、虚列支出等情况扣4分。"]
[{"$nulls":4},"财务监控有效性",4,"项目实施单位是否为保障资金的安全、规范运行而采取了必要的监控措施，用以反映和考核项目实施单位对资金运行的控制情况。","评价要点：\n①是否已制定或具有相应的监控机制；\n②是否采取了相应的财务检查等必要的监控措施或手段。",null,null,"项目实施单位已制定或具有相应的监控机制，计2分；采取了相应的财务检查等必要的监控措施或手段，计2分。"]
["产   出",31,"项目\n产出",31,"数字化档案建设完成率",6,"项目实施单位是否按计划完成数字化档案建设，用以反映和考核项目产出数量目标的实现程度。","评价要点：\n①是否完成了26万条目录录入；\n②是否完成了100万幅页面扫描，并进行数据挂接；\n③是否完成了对44230卷复退伍军人档案的数字化加工工作。",{"v":1,"d":"100%"},"计划标准","完成了26万条目录录入，计2分；完成了100万幅页面扫描，并进行数据挂接，计2分；完成了对44230卷复退伍军人档案的数字化加工工作，计2分。"]
[{"$nulls":4},"档案整理及时性",4,"项目实施单位是否按要求完成档案整理，用以反映和考核项目产出数量目标的实现程度。","评价要点：\n是否在2018年度完成了档案整理工作，并及时将数据上报至省档案局。","及时","计划标准","在2018年度完成了档案整理工作，计2分；及时将档案数据上报至省档案局，计2分。"]
[{"$nulls":4},"档案法制宣传展览频次",4,"项目实施单位是否按要求完成档案法制宣传展览，用以反映和考核项目产出数量目标的实现程度。","评价要点：\n①是否在2018年6月9日“国际档案日”开展档案法制宣传展览等活动；\n②是否在2018年12月4日“宪法日”开展档案法制宣传展览等活动。",2,"计划标准","在6月9日及12月4日均有开展活动，计4分，每缺少一个扣2分。"]
[{"$nulls":4},"出版档案史料书",4,"项目实施单位是否按要求完成档案史料书出版，用以反映和考核项目产出数量目标的实现程度。","评价要点：\n是否出版一本关于档案的史料书。",1,"计划标准","在2018年度出版了一本关于档案的史料书，计4分。","2018年度发明专利下达的指标文件"]
[{"$nulls":4},"征集地方特色档案数",4,"项目实施单位是否按要求完成地方特色档案征集，用以反映和考核项目产出数量目标的实现程度。","评价要点：\n是否完成了一种地方特色档案的征集工作。",1,"计划标准","征集了一种以上地方特色档案，计4分。"]
[{"$nulls":4},"档案业务培训教育",5,"项目实施单位是否按要求完成档案业务培训教育，用以反映和考核项目产出数量目标的实现程度。","评价要点：\n①是否完成对中介服务机构培训进行档案整理培训；\n②是否开展内部培训提高工作人员档案管理业务能力。",2,"计划标准","举办过针对中介服务机构的培训，计2.5分；举办过内部人员培训，计2.5分。"]
[{"$nulls":4},"资金拨付率",4,"项目实际支出与项目预算资金的比率，用以反映和考核项目资金的拨付情况。","评价要点：\n资金拨付率=实际支出/项目预算资金×100%。\n实际支出：项目实施单位为完成既定工作目标本年度或项目期内实际所耗费的支出。\n项目预算资金：本年度或项目期内实际落实到具体项目的资金。",{"v":0.95,"d":"95%"},"计划标准","资金拨付率达到95%，计4分，每降低5%，扣1分。"]
["效   果",29,"项目\n效益",29,"档案安全提升度",5,"项目实施后是否对档案的安全性有所提升，用以反映和考核项目实施后的社会效益。","评价要点：\n①是否购置设备来保证档案保存的安全性；\n②是否有定期对档案室进行安全检查；\n③是否及时对档案室的档案盒、防虫防霉丸等档案保护设施进行更换；\n④2018年度有没有发生过档案丢失或损坏的事件。\n","提升","计划标准","购置了多种设备来保障档案保存的安全性，计2分；定期对档案进行安全检查，计1分；及时对档案保护设施进行更换，计1分；2018年度未发生档案丢失或损坏的事件，计1分。\n"]
[{"$nulls":4},"档案查询效率提升度",4,"项目实施后是否档案查询工作效率有所提升，用以反映和考核项目实施后的社会效益。","评价要点：\n档案查询效率提升度。采取对工作人员发放调查问卷进行考核，效率提升满意度达到95%以上，计5分。",{"v":0.95,"d":"95%"},"计划标准","效率提升度达到95%以上，计4分，每减少5%，扣1分。"]
[{"$nulls":4},"数字化建设合格率",6,"项目实施后是否达到合格标准，用以反映和考核项目实施后的社会效益。","评价要点：\n数字化档案建设完成后，以下验收标准是否达标：\n①目录合格率98%；\n②图像合格率98%；\n③挂接合格率100%；\n④备份合格率100%。","98%\n100%","计划标准","目录合格率达到98%，计1.5分；图像合格率达到98%，计1.5分；挂接合格率达到100%，计1.5分；备份合格率达到100%，计1.5分。"]
[{"$nulls":4},"档案信息化提升度",5,"项目实施后是否有效提升档案信息化程度，用以反映和考核项目实施后的社会效益。","评价要点：\n①2018年档案数字化覆盖率较上年是否有所提升；\n②通过群众调查问卷数字化档案建设完成后，电子档案的查阅准确性、完整性是否有所提升。","提升","计划标准","2018年度档案数字化覆盖率较上年有所提升，计3分；群众对档案的准确性、完整性满意度达到95%，计2分。"]
[{"$nulls":4},"可持续影响",4,"项目实施后续运行及成效发挥的可持续影响情况，用以反映和考核项目产生的可持续影响。","评价要点：\n项目实施单位是否有组织人员培训和独立科室负责相关事项支持项目实施的后续运行。","可持续影响","计划标准","项目实施单位有组织人员培训和独立科室负责相关事项支持项目实施的后续运行，计4分。"]
[{"$nulls":4},"档案查询群众满意度",5,"档案查询群众对项目实施效果的满意程度。","档案查询群众满意度，采取对前来查询档案的群众进行问卷调查的方式获取。满意度达95%以上计5分，",{"v":0.95,"d":"95%"},"计划标准","群众满意度达到95%，计5分，每降低5%，扣1分。"]
["总分",{"$f":"SUM(B4:B26)","v":100},null,{"$f":"SUM(D4:D26)","v":100},null,{"$f":"SUM(F4:F26)","v":100}]

{"sheet":"文化旅游发展资金项目","index":12,"n_rows":27,"n_cols":11,"rows_kept":27,"merged":[[0,0,0,7],[1,0,1,10],[3,0,6,0],[3,1,6,1],[3,2,4,2],[3,3,4,3],[5,2,6,2],[5,3,6,3],[7,0,12,0],[7,1,12,1],[7,2,9,2],[7,3,9,3],[10,2,12,2],[10,3,12,3],[13,0,18,0],[13,1,18,1],[13,2,18,2],[13,3,18,3],[19,0,25,0],[19,1,25,1],[19,2,25,2],[19,3,25,3]]}
[]
["文化旅游发展资金项目绩效目标表"]
["一级指标","权重","二级指标","权重","三级指标","权重","指标解释","指标说明","目标值","绩效标准","评分细则"]
["投   入",{"$f":"D4+D6","v":16},"项目\n立项",{"$f":"SUM(F4:F5)","v":8},"项目立项规范性",5,"项目的申请、设立过程是否符合相关要求，用以反映和考核项目立项的规范情况。","评价要点：\n①是否有规划；\n②项目是否按照规定的程序申请设立；\n③所提交的文件、材料是否符合相关要求；\n④事前是否已经过必要的集体决策等（或者项目预算编制依据是否充分，预算金额测算是否具体明确）；\n⑤项目执行时是否发生重大调整。",null,null,"项目有规划，计1分；项目按照规定的程序申请设立计1分；所提交的文件、材料符合相关要求计1分；事情经过必要的集体决策等，计1分；项目执行时发生重大调整，调整报告及批复符合相关要求，计1分。"]
[{"$nulls":4},"绩效目标合理性",3,"项目所设定的绩效目标是否依据充分，是否符合客观实际，用以反映和考核项目绩效目标与项目实施的相符情况。","评价要点：\n①是否设定长期目标、年度目标和绩效指标；\n②目标和指标的设计是否符合目标管理规范；\n③绩效目标设立是否具有合理性、可测性。",null,null,"项目设定长期目标、年度目标和绩效指标，计1分；\n目标和指标的设计符合目标管理规范，计1分；绩效目标设立具有合理性、可测性，计1分。"]
[null,null,"资金\n落实",8,"资金到位率",4,"实际到位资金与计划投入资金的比率，用以反映和考核资金落实情况对项目实施的总体保障程度。","资金到位率=（实际到位资金/计划投入资金）×100%。\n实际到位资金：一定时期（本年度或项目期）内实际落实到具体项目的资金。\n计划投入资金：一定时期（本年度或项目期）内计划投入到具体项目的资金。",{"v":1,"d":"100%"},"计划标准","资金到位率=（实际到位资金/计划投入资金）×100%，达到100%计4分，每降低10%，扣1分。"]
[{"$nulls":4},"到位及时率",4,"及时到位资金与应到位资金的比率，用以反映和考核项目资金落实的及时性程度。","到位及时率=（及时到位资金/应到位资金）×100%。\n及时到位资金：截至规定时点实际落实到具体项目的资金。\n应到位资金：按照合同或项目进度要求截至规定时点应落实到具体项目的资金。",{"v":1,"d":"100%"},"计划标准","到位及时率=（及时到位资金/应到位资金）×100%，达到100%计4分，每降低10%，扣1分"]
["过   程",{"$f":"D8+D11","v":24},"项目\n管理",{"$f":"SUM(F8:F10)","v":12},"管理制度健全性",4,"项目管理制度是否健全，用以反映和考核项目管理制度对项目顺利实施的保障情况。","评价要点：\n①是否已制定或具有相应的项目管理制度；\n②项目管理制度是否合法、合规、完整。",null,null,"项目实施单位已制定或具有相应的项目管理制度，计2分；                                                                                                                   项目管理制度的制定合法、合规，计2分。"]
[{"$nulls":4},"制度执行有效性",4,"项目实施是否符合相关项目管理规定，用以反映和考核项目管理制度的有效执行情况。","评价要点：\n①是否遵守相关法律法规和项目管理规定；\n②项目调整及支出调整手续是否完备；\n③是否严格执行项目管理程序及招投标制、监理制、合同制、项目公示制、政府采购等；\n④项目合同书、验收报告、技术鉴定等资料是否齐全并及时归档；\n⑤项目实施的人员条件、场地设备、信息支撑等是否落实到位。",null,null,"项目实施过程遵守相关法律法规和项目管理规定，计0.5分；项目调整及支出调整手续完备，计0.5分；严格执行项目管理程序及招投标制、监理制、合同制、项目公示制、政府采购等，计1分；项目合同书、验收报告、技术鉴定等资料齐全并及时归档，计1分；项目实施的人员条件、场地设备、信息支撑等落实到位，计1分。"]
[{"$nulls":4},"项目质量可控性",4,"项目实施单位是否为达到项目质量要求而采取了必需的措施,用以反映和考核项目实施单位对项目质量的控制情况。","评价要点：\n①是否已制定或具有相应的项目质量要求或标准；\n②是否采取了相应的项目质量检查、验收等必需的控制措施或手段。",null,null,"已制定或具有相应的项目质量要求或标准，计2分；采取了相应的项目质量检查、验收等必需的控制措施或手段，计2分。"]
[null,null,"财务\n管理",{"$f":"SUM(F11:F13)","v":12},"管理制度健全性",4,"项目实施单位的财务制度是否健全，用以反映和考核财务管理制度对资金规范、安全运行的保障情况。","评价要点：\n①是否已制定或具有相应的项目资金管理办法；\n②项目资金管理办法是否符合相关财务会计制度的规定。",null,null,"项目管理部门已制定或具有相应的项目资金管理体系，计2分；符合相关财务会计制度的规定，计2分。"]
[{"$nulls":4},"资金使用合规性",4,"项目资金使用是否符合相关的财务管理制度规定，用以反映和考核项目资金的规范运行情况。","评价要点：\n①是否符合国家财经法规和财务管理制度以及有关专项资金管理办法的规定；\n②资金的拨付是否有完整的审批程序和手续；\n③项目的重大开支是否经过评估认证；\n④是否符合项目预算批复或合同规定的用途；\n⑤是否存在截留、挤占、挪用、虚列支出等情况。",null,null,"资金的拨付有完整的审批程序和手续，计1分；项目支出符合国家财经法规和财务管理制度的有关规定，计1分；入账处理规范，单据齐全，计1分；不存在挤占、挪用项目经费，计1分。"]
[{"$nulls":4},"财务监控有效性",4,"项目实施单位是否为保障资金的安全、规范运行而采取了必要的监控措施，用以反映和考核项目实施单位对资金运行的控制情况。","评价要点：\n①是否已制定或具有相应的监控机制；\n②是否采取了相应的财务检查等必要的监控措施或手段。",null,null,"项目实施单位已制定或具有相应的监控机制，计2分；采取了相应的财务检查等必要的监控措施或手段，计2分。"]
["产出",{"$f":"D14","v":28},"项目产出",{"$f":"SUM(F14:F19)","v":28},"旅游宣传推介次数",4,"项目实施单位开展旅游宣传推介活动的次数，用以反映和考核项目单位对随州市旅游产品的宣传工作的开展情况。","评价要点：\n年度开展旅游宣传推介活动的次数是否达到8次。","8次","计划标准","年度宣传推介活动次数达到8次，计4分；每减少1次，扣0.5分。"]
[{"$nulls":4},"旅游厕所奖补合规性",6,"项目实施单位是否按照旅游厕所奖补标准进行奖补，用以反映和考核项目质量指标的完成程度。","评价要点：\n①项目单位是否组建考核小组对随州市景区内的新（改）建厕所进行考核；\n②2018年完成新（改）建旅游厕所是否达到40座；\n③项目单位是否按照旅游厕所奖补标准对随州市旅游景区新修建的厕所进行奖补。","40座","计划标准","项目单位组建考核小组对随州市景区内的新（改）建厕所进行考核，计2分，未组建人员进行考核，扣2分；2018年完成新（改）建旅游厕所达到40座，计2分，少1座，扣1分；项目单位按照旅游厕所奖补标准对随州市旅游景区新修建的厕所进行奖补，计2分，一处未按照旅游厕所奖补标准进行奖补，2分。"]
[{"$nulls":4},"有效投诉办结率",4,"项目实施单位办结有效投诉案件的数量与应处理有效投诉案件数量的比率，用以反映和考核项目质量指标的完成程度。","评价要点：\n有效投诉办结率=办结有效投诉率案件的数量/应处理有效投诉案件数量×100%。",{"v":1,"d":"100%"},"计划标准","有效投诉办结率达100%，计4分，每降低5%，扣0.5分。"]
[{"$nulls":4},"旅游路线开发量",5,"随州市旅游路线开发量，用以反映和考核项目数量指标的完成程度。","评价要点：\n①是否聘请旅行社对新旅游路线进行踩点体验，并且进行推广；\n②旅游路线开发量是否达到3条","3条","计划标准","聘请旅行社对新旅游路线进行踩点体验，并且进行推广，计2分；旅游路线开发量达到3条，计3分，每减少1条，扣1分。"]
[{"$nulls":4},"宣传方式多样性",5,"项目实施单位是否积极采取多种方式开展旅游宣传促销工作，用以反映和考核项目质量指标的完成程度。","评价要点：\n项目单位是否采取媒体播报、印发宣传册、开展旅游推介会、旅游摄影作品比赛、参展旅游文化活动等方式积极宣传随州旅游景点、旅游产品和旅游文化。","5种","计划标准","项目单位采取了媒体播报、印发宣传册、开展旅游推介会、旅游摄影作品比赛、开展旅游文化活动等方式积极开展旅游宣传促销工作，宣传方式达5种，计5分，每减少1种，扣1分。"]
[{"$nulls":4},"资金拨付率",4,"项目实际支出与项目预算资金的比率，用以反映和考核项目资金的拨付情况。","评价要点：\n资金拨付率=实际支出/项目预算资金×100%。\n实际支出：项目实施单位为完成既定工作目标本年度或项目期内实际所耗费的支出。\n项目预算资金：本年度或项目期内实际落实到具体项目的资金。",{"v":0.95,"d":"95%"},"计划标准","资金拨付率达到95%，计4分，每降低5%，扣1分。"]
["效果",{"$f":"D20","v":32},"项目效果",{"$f":"SUM(F20:F26)","v":32},"接待游客人次增长率",4,"随州市全年接待游客人次增长的比率，用以反映和考核项目的社会效益。","评价要点：\n接待游客人次增长率=（2018年度接待游客人次-2017年度接待游客人次）/2017年度接待游客人次×100%。",{"v":0.1,"d":"10%"},"计划标准","2018年随州市年度接待游客人次增长率达到10%，计4分，每减少1%，扣1分。"]
[{"$nulls":4},"旅游消费增长率",4,"随州市旅游消费增长率，用以反映和考核项目实施后带来的经济效益。","评价要点：\n旅游消费增长率=（2018年度旅游业收入-2017年度旅游业收入）/2017年度旅游业收入×100%。",{"v":0.1,"d":"10%"},"计划标准","2018年随州市旅游消费增长的比率达到10%，计4分，每降低1%，扣1分。"]
[{"$nulls":4},"旅游景点知名度",5,"随州市旅游景点的知名程度，用以反映和考核项目的社会效益。","评价要点：\n①随州市特色旅游景点或者旅游节目在旅游推介会上是否获奖；\n②是否在外地对随州市进行宣传促销。\n","2次\n≥3处","计划标准","随州市特色旅游景点或旅游项目在外地旅游活动推介会上获奖2次，计2分，少1次，扣1分；在3处及以上外地对随州市旅游景区进行宣传，计3分，少1处，扣1分。"]
[{"$nulls":4},"旅游主题活动丰富度",4,"社会公众对随州市旅游主题活动丰富性的满意程度。","评价要点：\n对社会公众发放问卷调查，了解其对随州市旅游主题活动丰富性的满意程度是否达到90%。","≥90%","计划标准","采取问卷调查的方式获取。每降低5%，扣0.5分，扣完为止。"]
[{"$nulls":4},"旅游形象满意度",4,"社会公众对随州市旅游景点形象的满意程度。","评价要点：\n对社会公众发放问卷调查，了解其对随州市旅游形象的满意程度是否达到90%。","≥90%","计划标准","采取问卷调查的方式获取。每降低5%，扣0.5分，扣完为止。"]
[{"$nulls":4},"可持续性",5,"项目后续运行及成效发挥的可持续影响情况。","评价要点：\n①工作人员是否配备充足，进行有效的市场化管理；\n②研学游行基地是否进行认定；\n③是否与中小学生和青少年的展开交流活动；",null,null,"工作人员配备充足，进行有效的市场化管理，计2分；对研学游行基地进行认定，计1分；与中小学生展开交流活动，计2分。"]
[{"$nulls":4},"社会公众满意度",6,"社会公众对部门履职效果的满意程度。","评价要点：\n社会公众对随州市文化和旅游局整体管理水平的满意程度。","≥90%","计划标准","采取问卷调查的方式获取。每降低5%，扣0.5分，扣完为止。"]
["总计",{"$f":"SUM(B4:B26)","v":100},null,{"$f":"SUM(D4:D26)","v":100},null,{"$f":"SUM(F4:F26)","v":100}]

{"sheet":"保障性住房建设资金项目","index":13,"n_rows":27,"n_cols":11,"rows_kept":27,"merged":[[0,0,0,7],[1,0,1,10],[3,0,6,0],[3,1,6,1],[3,2,4,2],[3,3,4,3],[5,2,6,2],[5,3,6,3],[7,0,12,0],[7,1,12,1],[7,2,9,2],[7,3,9,3],[10,2,12,2],[10,3,12,3],[13,0,19,0],[13,1,19,1],[13,2,19,2],[13,3,19,3],[20,0,25,0],[20,1,25,1],[20,2,25,2],[20,3,25,3]]}
[]
["保障性住房建设资金项目绩效目标表"]
["一级指标","权重","二级指标","权重","三级指标","权重","指标解释","指标说明","目标值","绩效标准","评分细则"]
["投   入",{"$f":"D4+D6","v":16},"项目\n立项",{"$f":"SUM(F4:F5)","v":8},"项目立项规范性",5,"项目的申请、设立过程是否符合相关要求，用以反映和考核项目立项的规范情况。","评价要点：\n①是否有规划；\n②项目是否按照规定的程序申请设立；\n③所提交的文件、材料是否符合相关要求；\n④事前是否已经过必要的集体决策等（或者项目预算编制依据充分，预算金额测算具体明确）；\n⑤项目执行时是否发生重大调整。",null,null,"项目有规划，计1分；项目按照规定的程序申请设立计1分；所提交的文件、材料符合相关要求计1分；事情经过必要的集体决策等，计1分；项目执行时发生重大调整，调整报告及批复符合相关要求，计1分。"]
[{"$nulls":4},"绩效目标合理性",3,"项目所设定的绩效目标是否依据充分，是否符合客观实际，用以反映和考核项目绩效目标与项目实施的相符情况。","评价要点：\n①是否设定长期目标、年度目标和绩效指标；\n②目标和指标的设计是否符合目标管理规范；\n③绩效目标设立是否具有合理性、可测性。",null,null,"项目设定长期目标、年度目标和绩效指标，计1分；\n目标和指标的设计符合目标管理规范，计1分；绩效目标设立具有合理性、可测性，计1分。"]
[null,null,"资金\n落实",8,"资金到位率",4,"实际到位资金与计划投入资金的比率，用以反映和考核资金落实情况对项目实施的总体保障程度。","资金到位率=（实际到位资金/计划投入资金）×100%。\n实际到位资金：一定时期（本年度或项目期）内实际落实到具体项目的资金。\n计划投入资金：一定时期（本年度或项目期）内计划投入到具体项目的资金。",{"v":1,"d":"100%"},"计划标准","资金到位率=（实际到位资金/计划投入资金）×100%，达到100%计4分，每降低10%，扣1分。"]
[{"$nulls":4},"到位及时率",4,"及时到位资金与应到位资金的比率，用以反映和考核项目资金落实的及时性程度。","到位及时率=（及时到位资金/应到位资金）×100%。\n及时到位资金：截至规定时点实际落实到具体项目的资金。\n应到位资金：按照合同或项目进度要求截至规定时点应落实到具体项目的资金。",{"v":1,"d":"100%"},"计划标准","到位及时率=（及时到位资金/应到位资金）×100%，达到100%计4分，每降低10%，扣1分"]
["过   程",{"$f":"D8+D11","v":24},"项目\n管理",{"$f":"SUM(F8:F10)","v":12},"项目管理制度健全性",4,"项目管理制度是否健全，用以反映和考核项目管理制度对项目顺利实施的保障情况。","评价要点：\n①是否已制定或具有相应的项目管理制度；\n②项目管理制度是否合法、合规、完整。",null,null,"项目实施单位已制定或具有相应的项目管理制度，计2分；                                                                                                                   项目管理制度的制定合法、合规，计2分。"]
[{"$nulls":4},"制度执行有效性",4,"项目实施是否符合相关项目管理规定，用以反映和考核项目管理制度的有效执行情况。","评价要点：\n①是否遵守相关法律法规和项目管理规定；\n②项目调整及支出调整手续是否完备；\n③是否严格执行项目管理程序及招投标制、监理制、合同制、项目公示制、政府采购等；\n④项目合同书、验收报告、技术鉴定等资料是否齐全并及时归档；\n⑤项目实施的人员条件、场地设备、信息支撑等是否落实到位。",null,null,"项目实施过程遵守相关法律法规和项目管理规定，计0.5分；项目调整及支出调整手续完备，计0.5分；严格执行项目管理程序及招投标制、监理制、合同制、项目公示制、政府采购等，计1分；项目合同书、验收报告、技术鉴定等资料是否齐全并及时归档，计1分；项目实施的人员条件、场地设备、信息支撑等落实到位，计1分。"]
[{"$nulls":4},"项目质量可控性",4,"项目实施单位是否为达到项目质量要求而采取了必需的措施,用以反映和考核项目实施单位对项目质量的控制情况。","评价要点：\n①是否已制定或具有相应的项目质量要求或标准；\n②是否采取了相应的项目质量检查、验收等必需的控制措施或手段。",null,null,"已制定或具有相应的项目质量要求或标准，计2分；采取了相应的项目质量检查、验收等必需的控制措施或手段，计2分。"]
[null,null,"财务\n管理",{"$f":"SUM(F11:F13)","v":12},"财务管理制度健全性",4,"项目实施单位的财务制度是否健全，用以反映和考核财务管理制度对资金规范、安全运行的保障情况。","评价要点：\n①是否已制定或具有相应的项目资金管理办法；\n②项目资金管理办法是否符合相关财务会计制度的规定。",null,null,"项目管理部门已制定或具有相应的项目资金管理体系，计2分；符合相关财务会计制度的规定计2分。"]
[{"$nulls":4},"资金使用合规性",4,"项目资金使用是否符合相关的财务管理制度规定，用以反映和考核项目资金的规范运行情况。","评价要点：\n①是否符合国家财经法规和财务管理制度以及有关专项资金管理办法的规定；\n②资金的拨付是否有完整的审批程序和手续；\n③项目的重大开支是否经过评估认证；\n④是否符合项目预算批复或合同规定的用途；\n⑤是否存在截留、挤占、挪用、虚列支出等情况。",null,null,"资金的拨付有完整的审批程序和手续，计1分；项目支出符合国家财经法规和财务管理制度的有关规定，计1分；入账处理规范，单据齐全，计1分；不存在挤占、挪用项目经费，计1分。"]
[{"$nulls":4},"财务监控有效性",4,"项目实施单位是否为保障资金的安全、规范运行而采取了必要的监控措施，用以反映和考核项目实施单位对资金运行的控制情况。","评价要点：\n①是否已制定或具有相应的监控机制；\n②是否采取了相应的财务检查等必要的监控措施或手段。",null,null,"项目实施单位已制定或具有相应的监控机制，计2分；采取了相应的财务检查等必要的监控措施或手段，计2分。"]
["产出",{"$f":"D14","v":31},"项目产出",{"$f":"SUM(F14:F20)","v":31},"棚户区改造完成率",6,"项目实施单位对棚户区改造开工完成率和棚户区改造基本建成完成率，用以反映和考核项目数量指标的完成程度。","评价要点：\n①棚户区住房改造开工完成率=实际开工数量/计划开工数量×100%。\n实际开工数量：项目实施单位为完成既定工作目标本年度或项目期内对棚户区住房改造实际开工数量。\n计划开工数量：棚户区住房改造开工7228套，其中城镇棚户区6969套，国有林业棚户区59套，国有垦区危房200套；\n②棚户区住房改造基本建成率=实际基本建成数量/计划基本建成数量×100%。\n实际基本建成数量：项目实施单位为完成既定工作目标本年度或项目期内对棚户区住房改造实际基本建成数量。\n计划基本建成数量：棚户区住房改造基本建成1680套。",{"v":1,"d":"100%"},"计划标准","棚户区住房改造开工完成率达100%计3分，每降低5%，扣1分；\n棚户区住房改造基本建成率达100%计3分，每降低5%，扣1分。"]
[{"$nulls":4},"公租房分配完成率",4,"指项目实施单位实际已分配公租房数量与计划应分配公租房数量的比率，用以反映和考核项目数量指标的完成程度。","评价要点：\n列入国家计划的政府投资公租房（不含已依照规定盘活的公租房）分配率完成90%以上。\n公租房分配完成率=际已分配公租房数量/计划应分配公租房数量×100%。","≥90%","计划标准","列入国家计划的政府投资公租房（不含已依照规定盘活的公租房）分配率完成90%以上，计4分，每降低5%，扣1分。"]
[{"$nulls":4},"租赁补贴发放量",4,"项目实施单位发放城镇住房保障家庭租赁补贴户数，用以反映和考核项目数量指标的完成程度。","评价要点：\n发放城镇住房保障家庭租赁补贴是否达到1090户。","1090户","计划标准","发放城镇住房保障家庭租赁补贴达到1090户，计4分，每减少10户，扣1分。"]
[{"$nulls":4},"公租房交付使用完成率",4,"项目实施单位交付使用的公共租赁住房套数，用以反映和考核项目数量指标的完成程度。","评价要点：\n交付使用的公共租赁住房是否达到704套。",{"v":1,"d":"100%"},"计划标准","公租房交付使用完成率，计4分，每减少1%，扣1分。"]
[{"$nulls":4},"工程进度完成度",4,"项目工程是否按期竣工交付，用以反映和考核项目时效指标的及时性。","评价要点：\n项目工程按照计划的进度进行施工，是否按期竣工交付。",null,null,"项目工程按期竣工交付，计4分，一项没有按期竣工或者没有按计划进度施工，扣1分。"]
[{"$nulls":4},"工程质量保障度",5,"项目实施单位是否对工程质量严格把控，用以反映和考核项目质量指标的完成程度。","评价要点：\n①是否有监察部门对工程质量进行检查；\n②工程质量是否接受群众监督检查；\n③是否有安全事故发生。",{"v":1,"d":"100%"},"计划标准","有监察部门对工程质量进行检查，计2分，没有不得分；\n②工程质量受社会群众监督检查，计1分，不接受公共监督，不得分；\n③未发生安全事故，计2分，发生1起安全事故，不得分。"]
[{"$nulls":4},"资金拨付率",4,"项目实际支出与项目预算资金的比率，用以反映和考核项目资金的拨付情况。","资金拨付率=实际支出/项目预算资金×100%。\n实际支出：项目实施单位为完成既定工作目标本年度或项目期内实际所耗费的支出。\n项目预算资金：本年度或项目期内实际落实到具体项目的资金。",{"v":0.95,"d":"95%"},"计划标准","资金拨付率达到95%，计4分，每降低5%，扣1分。"]
["效果",{"$f":"D21","v":29},"项目效益",{"$f":"SUM(F21:F26)","v":29},"政策落实",4,"项目实施单位对政策落实情况，用以反映和考核项目带来的社会效益。","评价要点：\n是否按照保障性安居住房相关收费减免政策、低收入住房租赁补贴等相关住房保障政策来实施的。",null,null,"按照相关住房保障政策来实施，计4分，不是则不得分。"]
[{"$nulls":4},"保障性住房竣工增长率",4,"保障性住房竣工数量是否增长，用以反映和考核项目推进情况。","评价要点：\n保障性住房竣工增长率=（2018保障性住房实际竣工数量-2017保障性住房实际竣工数量）/2017保障性住房实际竣工数量×100%。",{"v":0.1,"d":"10%"},"计划标准","保障性住房竣工增长率达到10%，计4分，每降低1%，扣0.5分。"]
[{"$nulls":4},"公租房居住条件满意度",5,"公租房居民对公租房居住条件的满意程度。","评价要点：\n公租房居民对公租房居住条件的满意程度。","≥90%","计划标准","采取问卷调查的方式获取。每降低5%，扣0.5分。"]
[{"$nulls":4},"棚改区拆迁居民满意度",5,"棚户区改造拆迁居民对棚户区改造拆迁工作的满意程度。","评价要点：\n棚户区改造拆迁居民对市住房保障办公室在棚户区改造拆迁工作的满意程度。","≥90%","计划标准","采取问卷调查的方式获取。每降低5%，扣0.5分。"]
[{"$nulls":4},"可持续性",5,"项目后续运行及成效发挥的可持续影响情况。","评价要点：\n①工作人员是否配备充足；\n②是否采用多方筹资，有充足的资金来保证项目的可运行；\n③是否有相关的保障措施来保证项目的继续运行。",null,null,"工作人员配备充足，计1分；采用多方筹资，有充足的资金来保证项目的可运行，计2分；有相关的保障措施来保证项目的继续运行，计2分。"]
[{"$nulls":4},"社会公众满意度",6,"社会公众对部门履职效果的满意程度。","评价要点：\n社会公众对市住房保障办公室在“保障性住房建设资金”项目整体实施工作的满意程度。","≥90%","计划标准","采取问卷调查的方式获取。每降低5%，扣0.5分。"]
["总计",{"$f":"SUM(B4:B26)","v":100},null,{"$f":"SUM(D4:D26)","v":100},null,{"$f":"SUM(F4:F26)","v":100}]

{"sheet":"公共检验检测中心检测和运行项目","index":14,"n_rows":24,"n_cols":6,"rows_kept":24,"merged":[[1,0,1,5],[2,0,2,2],[4,0,7,0],[4,1,5,1],[6,1,7,1],[8,0,13,0],[8,1,10,1],[11,1,13,1],[14,0,17,0],[14,1,17,1],[18,0,22,0],[18,1,22,1],[18,3,22,3],[18,5,21,5],[23,0,23,1]]}
[]
["2019年公共检验检测中心检测和运行项目绩效目标表"]
["单位名称：随州市公共检验检测中心",{"$nulls":3},"项目名称：公共检验检测中心检测和运行项目"]
["一级指标","二级指标","三级指标","权重","指标解释","指标说明"]
["投入       （8分）","项目立项","项目立项规范性\n（2分）",2,"项目的申请设立过程是否符合相关要求，用以反映和考核项目立项的规范情况。","①是否有规划；（0.2分）                                                       ②是否按照规定的程序中请设立；（0.5分）                                   ③所提交的文件、材料是否符合相关要求；（0.5分）                           ④事前是否已经过必要的可行性研究、专家论证、风险评估、集体决策等；（0.5分）                                                             ⑤项目执行时是否发生重大调整。（0.3分）"]
[null,null,"绩效目标合理性\n（2分）",2,"项目是否设定绩效目标和绩效指标,所设定的绩效目标和指标是否符合实际,用以反映和考核项目绩效目标与项目实施的相符情况。","①是否设定长期目标、年度目标和绩效指标；（0.5分）                         ②目标和指标的设计是否符合目标管理规范；（0.5分）                          ③根据绩效目标和完成情况的对比考核目标设立的合理性；（0.5分）               ④绩效指标是否具有可测性。（0.5分） "]
[null,"资金落实","资金到位率                                （2分）",2,"实际到位资金与计划投入资金的比率,用以反映和考核资金落实情况对项目实施的总体保障程度。","资金到位率=(实际到位资金/计划投入资金)×100%。实际到位资金:一定时期(本年度或项目期)内实际落实到具体项目的资金。计划投入资金:一定时期(本年度或项目期)内计划投入到具体项目的资金。(注:分预算资金、配套资金、自等资金评价)"]
[null,null,"到位及时率                               （2分）",2,"实际投入资金与实际执行资金的比率，用以反映和考核项目资金落实的及时性程度。","到位及时率=(及时到位资金/应到位资金)x100%。及时到位资金:截至规定时点实际落实到具体项目的资金。应到位资金:按照合同或项目进度要求截至规定时点应落实到具体项目的资金。(注:分预算货金、配套资金、自筹资金评价)"]
["过程  （12分）","项目管理","管理制度健全性\n（2分）",2,"项目管理制度是否健全，用以反映和考核项目管理制度对项目顺利实施的保障情况。","①是否已制定或具有相应的项目管理制度；（1分）                           ②项目管理制度是否合法、合现、完整。（1分）"]
[null,null,"制度执行有效性\n（2分）",2,"项目实施是否符合相关项目管理规定，用以反映和考核项目管理制度的有效执行情况。","①是否遵守相关法律法规和项目管理规定；（0.2分）                                      ②项目调整及支出调整手续是否完备；（0.3分）                                   ③是否严格执行项目管理程序及招投标制、监理制、合同制、项目公示制、政府采购等(针对具体项目对应评价)；（0.5分）                            ④项目合同书、验收报告、技术鉴定等资料是否齐全并及时归档；（0.5分）                                                              ⑤项目实施的人员条件、场地设备、信息支撑等是否落实到位。（0.5分）"]
[null,null,"项目质量可控性\n（2分）",2,"项目实施单位是否为达到项目质量要求而采取了必需的措施，用以反映和考核项目实施单位对项目质量的控制情况。","①是否已制定或具有相应的项目质量要求或标准； （1分）                     ②是否采取了相应的项目质量检查、验收等必需的控制措施或手段。（1分） "]
[null,"财务管理","管理制度健全性\n（2分）",2,"项目实施单位的财务制度是否健全，用以反映和考核财务管理制度对资金规范、安全运行的保障情况。","①是否已制定或具有相应的项目资金管理办法；（1分）                              ②项目资金管理办法是否符合相关财务会计划的规定。（1分） "]
[null,null,"资金使用合规性\n（2分）",2,"项目资金使用是否符合相关的财务管理制度规定，用以反映和考核项目资金的规范运行情况。","①是否符合国家财经法规和财务管理制度以及有关专项费金管理办法的规定；（0.2分）                                                             ②资金的拨付是否有完整的审批程序和手续； （0.5分）                         ③项目的重大开支是否经过评估认证；（0.3分）                              ④是否符合项目预算批复或合同规定的用途；（0.5分）                        ⑤是否存在截留、挤占、挪用、虚列支出等情况。（0.5分）"]
[null,null,"财务监控有效性\n（2分）",2,"项目实施单位是否为保障资金的安全、规范运行而采取了必要的监控措施，用以反映和考核项目实施单位对资金运行的控制情况。","①是否已制定或具有相应的监控机制；（1分）                               ②是否采取了相应的财务检查等必要的监控指施或手段。（1分）"]
["产出   （40分）","项目产出","实际完成率\n（10分）",10,"项目实施的实际产出数与计划产出数的比率,用以反映和考核项目产出数量目标的实现程度。","实际完成率:(实际产出数/计划产出数)X100%。实际产出数:一定时期(本年度或项目期)内项目实际产出的产品或提供的服务数量。计划产出数:项目绩效目标确定的在一定时期(本年度或项目期)内计划产出的产品成提供的服务数量。"]
[null,null,"完成及时率                           （10分）",10,"项目实际提前完成时间与计划完成时间的比率,用以反映和考核项目产出绩效目标的实现程度。","完成及时率=【(计划完成时间-实际完成时间)/计划完成时间】×100%。实际完成时间:项目实施单位完成该项目实际所耗用的时间。计划完成时间:按照项目实施计划或相关规定完成该项目所需的时间。"]
[null,null,"质量达标率                           （10分）",10,"项目完成的质量达标产出数与实际产出数的比率,用以反映和考核项目产出质量目标的实现程度。","质量达标率=(质量达标产出数/实际产出数)x100%。质量达标产出数:一定时期(本年度或项目期)内实际达到既定质量标准的产品或服务数量。既定质量标准是指项目实施单位设绩效目标时依据计划标准、行业标准、历史标准或其他标准而设定的绩效指标值。"]
[null,null,"资金使用率                  （10分）",10,"项目实际支出与项目到位资金的比率,用以反映和考核项目资金使用情况。","资金使用率-项目实际支出/项目到位资金×100%。实际支出:项目实施单位为完成既定工作目标一定时期(本年度或项目期)内实际所耗费的支出。到位资金:一定时期(本年度或项目期)内实际落实到具体项目的资金。"]
["效果  （40分）","项目效益","经济效益\n（10分）",40,"项目实施对经济发展所带来的直接或间接影响情况。","此四项指标为设置项目支出锁效评价指标时必须考虑的共性要素,应根据项目实际并结合绩效目标设立情况有选择的进行设置,并将其细化为相应的个性化指标。"]
[null,null,"社会效益 \n（9分）",null,"项目实施对社会发展所带来的直接或间接影响情况。"]
[null,null,"生态效益\n（8分）",null,"项目实施对生态环境所带来的直接或间接影响情况"]
[null,null,"可持续影响                 （8分）",null,"项目后续运行及成效发挥的可持续影响情况。"]
[null,null,"社会公众或服务对象满意度（5分）",null,"社会公众或服务对象对项目实施效果的满意程度。","社会公众或服务对象是指因该项目实施而受到影响的部门(单位)、群体或个人、一般采取社会调查的方式。"]
["合计"]

{"sheet":"企业军转干部社保及生活补助项目","index":15,"n_rows":24,"n_cols":6,"rows_kept":24,"merged":[[1,0,1,5],[2,0,2,2],[4,0,7,0],[4,1,5,1],[6,1,7,1],[8,0,13,0],[8,1,10,1],[11,1,13,1],[14,0,17,0],[14,1,17,1],[18,0,22,0],[18,1,22,1],[18,3,22,3],[18,5,21,5],[23,0,23,1]]}
[]
["2019年市本级企业军转干部社保及生活补助项目绩效目标表"]
["单位名称：随州市财政局社会保障科"]
["一级指标","二级指标","三级指标","权重","指标解释","指标说明"]
["投入       （8分）","项目立项","项目立项规范性\n（2分）",2,"项目的申请设立过程是否符合相关要求，用以反映和考核项目立项的规范情况。","①是否有规划；（0.2分）                                                       ②是否按照规定的程序中请设立；（0.5分）                                   ③所提交的文件、材料是否符合相关要求；（0.5分）                           ④事前是否已经过必要的可行性研究、专家论证、风险评估、集体决策等；（0.5分）                                                             ⑤项目执行时是否发生重大调整。（0.3分）"]
[null,null,"绩效目标合理性\n（2分）",2,"项目是否设定绩效目标和绩效指标,所设定的绩效目标和指标是否符合实际,用以反映和考核项目绩效目标与项目实施的相符情况。","①是否设定长期目标、年度目标和绩效指标；（0.5分）                         ②目标和指标的设计是否符合目标管理规范；（0.5分）                          ③根据绩效目标和完成情况的对比考核目标设立的合理性；（0.5分）               ④绩效指标是否具有可测性。（0.5分） "]
[null,"资金落实","资金到位率                                （2分）",2,"实际到位资金与计划投入资金的比率,用以反映和考核资金落实情况对项目实施的总体保障程度。","资金到位率=(实际到位资金/计划投入资金)×100%。实际到位资金:一定时期(本年度或项目期)内实际落实到具体项目的资金。计划投入资金:一定时期(本年度或项目期)内计划投入到具体项目的资金。(注:分预算资金、配套资金、自等资金评价)"]
[null,null,"到位及时率                               （2分）",2,"实际投入资金与实际执行资金的比率，用以反映和考核项目资金落实的及时性程度。","到位及时率=(及时到位资金/应到位资金)x100%。及时到位资金:截至规定时点实际落实到具体项目的资金。应到位资金:按照合同或项目进度要求截至规定时点应落实到具体项目的资金。(注:分预算货金、配套资金、自筹资金评价)"]
["过程  （12分）","项目管理","管理制度健全性\n（2分）",2,"项目管理制度是否健全，用以反映和考核项目管理制度对项目顺利实施的保障情况。","①是否已制定或具有相应的项目管理制度；（1分）                           ②项目管理制度是否合法、合现、完整。（1分）"]
[null,null,"制度执行有效性\n（2分）",2,"项目实施是否符合相关项目管理规定，用以反映和考核项目管理制度的有效执行情况。","①是否遵守相关法律法规和项目管理规定；（0.2分）                                      ②项目调整及支出调整手续是否完备；（0.3分）                                   ③是否严格执行项目管理程序及招投标制、监理制、合同制、项目公示制、政府采购等(针对具体项目对应评价)；（0.5分）                            ④项目合同书、验收报告、技术鉴定等资料是否齐全并及时归档；（0.5分）                                                              ⑤项目实施的人员条件、场地设备、信息支撑等是否落实到位。（0.5分）"]
[null,null,"项目质量可控性\n（2分）",2,"项目实施单位是否为达到项目质量要求而采取了必需的措施，用以反映和考核项目实施单位对项目质量的控制情况。","①是否已制定或具有相应的项目质量要求或标准； （1分）                     ②是否采取了相应的项目质量检查、验收等必需的控制措施或手段。（1分） "]
[null,"财务管理","管理制度健全性\n（2分）",2,"项目实施单位的财务制度是否健全，用以反映和考核财务管理制度对资金规范、安全运行的保障情况。","①是否已制定或具有相应的项目资金管理办法；（1分）                              ②项目资金管理办法是否符合相关财务会计划的规定。（1分） "]
[null,null,"资金使用合规性\n（2分）",2,"项目资金使用是否符合相关的财务管理制度规定，用以反映和考核项目资金的规范运行情况。","①是否符合国家财经法规和财务管理制度以及有关专项费金管理办法的规定；（0.2分）                                                             ②资金的拨付是否有完整的审批程序和手续； （0.5分）                         ③项目的重大开支是否经过评估认证；（0.3分）                              ④是否符合项目预算批复或合同规定的用途；（0.5分）                        ⑤是否存在截留、挤占、挪用、虚列支出等情况。（0.5分）"]
[null,null,"财务监控有效性\n（2分）",2,"项目实施单位是否为保障资金的安全、规范运行而采取了必要的监控措施，用以反映和考核项目实施单位对资金运行的控制情况。","①是否已制定或具有相应的监控机制；（1分）                               ②是否采取了相应的财务检查等必要的监控指施或手段。（1分）"]
["产出   （40分）","项目产出","实际完成率\n（10分）",10,"项目实施的实际产出数与计划产出数的比率,用以反映和考核项目产出数量目标的实现程度。","实际完成率:(实际产出数/计划产出数)X100%。实际产出数:一定时期(本年度或项目期)内项目实际产出的产品或提供的服务数量。计划产出数:项目绩效目标确定的在一定时期(本年度或项目期)内计划产出的产品成提供的服务数量。"]
[null,null,"完成及时率                           （10分）",10,"项目实际提前完成时间与计划完成时间的比率,用以反映和考核项目产出绩效目标的实现程度。","完成及时率=【(计划完成时间-实际完成时间)/计划完成时间】×100%。实际完成时间:项目实施单位完成该项目实际所耗用的时间。计划完成时间:按照项目实施计划或相关规定完成该项目所需的时间。"]
[null,null,"质量达标率                           （10分）",10,"项目完成的质量达标产出数与实际产出数的比率,用以反映和考核项目产出质量目标的实现程度。","质量达标率=(质量达标产出数/实际产出数)x100%。质量达标产出数:一定时期(本年度或项目期)内实际达到既定质量标准的产品或服务数量。既定质量标准是指项目实施单位设绩效目标时依据计划标准、行业标准、历史标准或其他标准而设定的绩效指标值。"]
[null,null,"资金使用率                  （10分）",10,"项目实际支出与项目到位资金的比率,用以反映和考核项目资金使用情况。","资金使用率-项目实际支出/项目到位资金×100%。实际支出:项目实施单位为完成既定工作目标一定时期(本年度或项目期)内实际所耗费的支出。到位资金:一定时期(本年度或项目期)内实际落实到具体项目的资金。"]
["效果  （40分）","项目效益","经济效益\n（10分）",40,"项目实施对经济发展所带来的直接或间接影响情况。","此四项指标为设置项目支出锁效评价指标时必须考虑的共性要素,应根据项目实际并结合绩效目标设立情况有选择的进行设置,并将其细化为相应的个性化指标。"]
[null,null,"社会效益 \n（9分）",null,"项目实施对社会发展所带来的直接或间接影响情况。"]
[null,null,"生态效益\n（8分）",null,"项目实施对生态环境所带来的直接或间接影响情况"]
[null,null,"可持续影响                 （8分）",null,"项目后续运行及成效发挥的可持续影响情况。"]
[null,null,"社会公众或服务对象满意度（5分）",null,"社会公众或服务对象对项目实施效果的满意程度。","社会公众或服务对象是指因该项目实施而受到影响的部门(单位)、群体或个人、一般采取社会调查的方式。"]
["合计"]

{"sheet":"全民创业奖补项目","index":16,"n_rows":24,"n_cols":6,"rows_kept":24,"merged":[[1,0,1,5],[4,0,7,0],[4,1,5,1],[6,1,7,1],[8,0,13,0],[8,1,10,1],[11,1,13,1],[14,0,17,0],[14,1,17,1],[18,0,22,0],[18,1,22,1],[18,3,22,3],[18,5,21,5],[23,0,23,1]]}
[]
["“全民创业奖补（再就业补助）”\n项目绩效目标表"]
["填表单位：随州市财政局社会保障科"]
["一级指标","二级指标","三级指标","权重","指标解释","评价要点"]
["投入（8分）","项目\n立项","项目立项\n规范性\n（2分）",2,"项目的申请、设立过程是否符合相关要求，用以反映和考核项目立项的规范情况。","①是否有规划；（0.2分）\n②项目是否按照规定的程序申请设立；（0.5分）\n③所提交的文件、材料是否符合相关要求；（0.5分）                                   \n④事前是否已经过必要的可行性研究、专家论证、风险评估、集体决策等；（0.5分）\n⑤项目执行时是否发生重大调整。（0.3分）"]
[null,null,"绩效目标\n合理性\n（2分）",2,"项目是否设定的绩效目标和绩效指标，所设定的目标和指标是否依符合实际，用以反映和考核项目绩效目标与项目实施的相符情况。","①是否设定长期目标、年度目标和绩效指标；（0.5分）                                 ②目标和指标的设计是否符合目标管理规范；（0.5分）                           \n③根据绩效目标和完成情况的对比考核目标设立的合理性；（0.5分）\n④绩效指标是否具有可测性。（0.5分）"]
[null,"资金\n落实","资金到位率（2分）",2,"实际到位资金与计划投入资金的比率，用以反映和考核资金落实情况对项目实施的总体保障程度。","资金到位率=（实际到位资金/计划投入资金）x100%                                    实际到位资金：一定时期（本年度或项目期）内实际落实到具体项目的资金。             \n计划投入资金：一定时期（本年度或项目期）内计划投入到具体项目的资金。（注：分预算资金、配套资金、自筹资金评价）"]
[null,null,"到位及时率（2分）",2,"及时到位资金与应到位资金的比率，用以反映和考核项目资金落实的及时性程度。","到位及时率=（及时到位资金/应到位资金）x100%。         \n及时到位资金：截至规定时点实际落实到具体项目的资金。                        \n应到位资金：按照合同或项目进度要求截至规定时点应落实到具体项目的资金。（注：分预算资金、配套资金、自筹资金评价）"]
["过程\n（12分）","项目\n管理","管理制度\n健全性\n（2分）",2,"项目管理制度是否健全，用以反映和考核项目管理制度对项目顺利实施的保障情况。","①是否已制定或具有相应的项目管理制度；（1分） \n②项目管理制度是否合法、合规、完整。（1分）"]
[null,null,"制度执行\n有效性\n（2分）",2,"项目实施是否符合相关项目管理规定，用以反映和考核项目管理制度的有效执行情况。","①是否遵守相关法律法规和项目管理规定；（0.2分）  \n②项目调整及支出调整手续是否完备；（0.3分）\n③是否严格执行项目管理程序及招投标制、监理制、合同制、项目公示制、政府采购等（针对具体项目对应评价）；（0.5分）\n④项目合同书、验收报告、技术鉴定等资料是否齐全并及时归档； （0.5分）\n⑤项目实施的人员条件、场地设备、信息支撑等是否落实到位。（0.5分）"]
[null,null,"项目质量\n可控性\n（2分）",2,"项目实施单位是否为达到项目质量要求而采取了必需的措施，用以反映和考核项目实施单位对项目质量的控制情况。","①是否已制定或具有相应的项目质量要求或标准；  （1分）                             \n②是否采取了相应的项目质量检查、验收等必需的控制措施或手段。（1分）"]
[null,"财务\n管理","管理制度\n健全性\n（2分）",2,"项目实施单位的财务制度是否健全，用以反映和考核财务管理制度对资金规范、安全运行的保障情况。","①是否已制定或具有相应的项目资金管理办法；（1分）                               \n②项目资金管理办法是否符合相关财务会计制度的规定。（1分）"]
[null,null,"资金使用\n合规性\n（2分）",2,"项目资金使用是否符合相关的财务管理制度规定，用以反映和考核项目资金的规范运行情况。","①是否符合国家财经法规和财务管理制度以及有关专项资金管理办法的规定； （0.2分）                                \n②资金的拨付是否有完整的审批程序和手续；（0.5分) \n③项目的重大开支是否经过评估认证；（0.3分）                                  \n④是否符合项目预算批复或合同规定的用途；(0.5分)                              \n⑤是否存在截留、挤占、挪用、虚列支出等情况。(0.5分)"]
[null,null,"财务监控\n有效性\n（2分）",2,"项目实施单位是否为保障资金的安全、规范运行而采取了必要的监控措施，用以反映和考核项目实施单位对资金运行的控制情况。","①是否已制定或具有相应的监控机制；(1分)\n②是否采取了相应的财务检查等必要的监控措施或手段。(1分)"]
["产出（40分）","项目\n产出","实际完成率\n(10分）",10,"项目实施的实际产出数与计划产出数的比率，用以反映和考核项目产出数量目标的实现程度。","实际完成率=（实际产出数/计划产出数）x100%。\n实际产出数：一定时期（本年度或项目期）内项目实际产出的产品或提供的服务数量。\n计划产出数：项目绩效目标确定的在一定时期（本年度或项目期）内计划产出的产品或提供的服务数量。"]
[null,null,"完成及时率（10分）",10,"项目实际提前完成时间与计划完成时间的比率，用以反映和考核项目产出时效目标的实现程度。","完成及时率=[（计划完成时间-实际完成时间）/计划完成时间]x100%。            \n实际完成时间：项目实施单位完成该项目实际所耗用的时间。                     \n计划完成时间：按照项目实施计划或相关规定完成该项目所需的时间。"]
[null,null,"质量达标率（10分）",10,"项目完成的质量达标产出数与实际产出数的比率，用以反映和考核项目产出质量目标的实现程度。","质量达标率=（质量达标产出数/实际产出数）x100%。                         \n质量达标产出数：一定时期（本年度或项目期）内实际达到既定质量标准的产品或服务数量。\n既定质量标准是指项目实施单位设立绩效目标时依据计划标准、行业标准、历史标准或其他标准而设定的绩效指标值。"]
[null,null,"资金使用率（10分）",10,"项目实际支出与项目到位资金的比率，用以反映和考核项目资金使用情况。","资金使用率=（项目实际支出/项目到位资金）x100%。                          \n实际支出：项目实施单位为完成既定工作目标一定时期（本年度或项目期）内实际所耗费的支出。    \n到位资金：一定时期（本年度或项目期）内实际落实到具体项目的资金。"]
["效果（40分）","项目\n效益","经济效益\n（10分）",40,"项目实施对经济发展所带来的直接或间接影响情况。","此四项指标为设置项目支出绩效评价指标时必须考虑的共性要素，相互关联，根据项目实际情评价"]
[null,null,"社会效益 \n（9分）",null,"项目实施对社会发展所带来的直接或间接影响情况。"]
[null,null,"生态效益\n（8分）",null,"项目实施对生态发展所带来的直接或间接影响情况。"]
[null,null,"可持续影响（8分）",null,"项目后续运行及成效发挥的可持续影响情况。"]
[null,null,"社会公众或服务对象满意度（5分）",null,"社会公众或服务对象对项目实施效果的满意程度。","社会公众或服务对象是指因该项目实施而受到影响的部门（单位）、群体或个人。一般采取社会调查的方式。"]
["合计"]

{"sheet":"省专汽专项经费项目","index":17,"n_rows":28,"n_cols":6,"rows_kept":28,"merged":[[1,0,1,5],[4,0,11,0],[4,1,9,1],[4,2,8,2],[4,3,8,3],[4,4,8,4],[4,5,8,5],[10,1,11,1],[12,0,17,0],[12,1,14,1],[15,1,17,1],[18,0,21,0],[18,1,21,1],[22,0,26,0],[22,1,26,1],[22,3,26,3],[22,5,25,5],[27,0,27,1]]}
[]
["“2019年省专汽专项经费”项目支出绩效目标表"]
["项目承担单位：湖北专用汽车制造厂破产清算组"]
["一级指标","二级指标","三级指标","权重","指标解释","评价要点"]
["投入（8分）","项目\n立项","项目立项\n规范性\n（2分）",2,"项目的申请、设立过程是否符合相关要求，用以反映和考核项目立项的规范情况。","①是否有规划；（0.2分）\n②项目是否按照规定的程序申请设立；（0.5分）\n③所提交的文件、材料是否符合相关要求；（0.5分）                                   \n④事前是否已经过必要的可行性研究、专家论证、风险评估、集体决策等；（0.5分）\n⑤项目执行时是否发生重大调整。（0.3分）"]
[]
[]
[]
[]
[null,null,"绩效目标\n合理性\n（2分）",2,"项目是否设定的绩效目标和绩效指标，所设定的目标和指标是否依符合实际，用以反映和考核项目绩效目标与项目实施的相符情况。","①是否设定长期目标、年度目标和绩效指标；（0.5分）                                 ②目标和指标的设计是否符合目标管理规范；（0.5分）                           \n③根据绩效目标和完成情况的对比考核目标设立的合理性；（0.5分）\n④绩效指标是否具有可测性。（0.5分）"]
[null,"资金\n落实","资金到位率（2分）",2,"实际到位资金与计划投入资金的比率，用以反映和考核资金落实情况对项目实施的总体保障程度。","资金到位率=（实际到位资金/计划投入资金）x100%                                                     实际到位资金：一定时期（本年度或项目期）内实际落实到具体项目的资金。             \n计划投入资金：一定时期（本年度或项目期）内计划投入到具体项目的资金。（注：分预算资金、配套资金、自筹资金评价）"]
[null,null,"到位及时率（2分）",2,"及时到位资金与应到位资金的比率，用以反映和考核项目资金落实的及时性程度。","到位及时率=（及时到位资金/应到位资金）x100%。         \n及时到位资金：截至规定时点实际落实到具体项目的资金。                        \n应到位资金：按照合同或项目进度要求截至规定时点应落实到具体项目的资金。（注：分预算资金、配套资金、自筹资金评价）"]
["过程\n（12分）","项目\n管理","管理制度\n健全性\n（2分）",2,"项目管理制度是否健全，用以反映和考核项目管理制度对项目顺利实施的保障情况。","①是否已制定或具有相应的项目管理制度；（1分） \n②项目管理制度是否合法、合规、完整。（1分）"]
[null,null,"制度执行\n有效性\n（2分）",2,"项目实施是否符合相关项目管理规定，用以反映和考核项目管理制度的有效执行情况。","①是否遵守相关法律法规和项目管理规定；（0.2分）  \n②项目调整及支出调整手续是否完备；（0.3分）\n③是否严格执行项目管理程序及招投标制、监理制、合同制、项目公示制、政府采购等（针对具体项目对应评价）；（0.5分）\n④项目合同书、验收报告、技术鉴定等资料是否齐全并及时归档； （0.5分）\n⑤项目实施的人员条件、场地设备、信息支撑等是否落实到位。（0.5分）"]
[null,null,"项目质量\n可控性\n（2分）",2,"项目实施单位是否为达到项目质量要求而采取了必需的措施，用以反映和考核项目实施单位对项目质量的控制情况。","①是否已制定或具有相应的项目质量要求或标准；  （1分）                             \n②是否采取了相应的项目质量检查、验收等必需的控制措施或手段。（1分）"]
[null,"财务\n管理","管理制度\n健全性\n（2分）",2,"项目实施单位的财务制度是否健全，用以反映和考核财务管理制度对资金规范、安全运行的保障情况。","①是否已制定或具有相应的项目资金管理办法；（1分）                               \n②项目资金管理办法是否符合相关财务会计制度的规定。（1分）"]
[null,null,"资金使用\n合规性\n（2分）",2,"项目资金使用是否符合相关的财务管理制度规定，用以反映和考核项目资金的规范运行情况。","①是否符合国家财经法规和财务管理制度以及有关专项资金管理办法的规定； （0.2分）                                \n②资金的拨付是否有完整的审批程序和手续；（0.5分) \n③项目的重大开支是否经过评估认证；（0.3分）                                  \n④是否符合项目预算批复或合同规定的用途；(0.5分)                              \n⑤是否存在截留、挤占、挪用、虚列支出等情况。(0.5分)"]
[null,null,"财务监控\n有效性\n（2分）",2,"项目实施单位是否为保障资金的安全、规范运行而采取了必要的监控措施，用以反映和考核项目实施单位对资金运行的控制情况。","①是否已制定或具有相应的监控机制；(1分)\n②是否采取了相应的财务检查等必要的监控措施或手段。(1分)"]
["产出（40分）","项目\n产出","实际完成率\n(10分）",10,"项目实施的实际产出数与计划产出数的比率，用以反映和考核项目产出数量目标的实现程度。","实际完成率=（实际产出数/计划产出数）x100%。\n实际产出数：一定时期（本年度或项目期）内项目实际产出的产品或提供的服务数量。\n计划产出数：项目绩效目标确定的在一定时期（本年度或项目期）内计划产出的产品或提供的服务数量。"]
[null,null,"完成及时率（10分）",10,"项目实际提前完成时间与计划完成时间的比率，用以反映和考核项目产出时效目标的实现程度。","完成及时率=[（计划完成时间-实际完成时间）/计划完成时间]x100%。            \n实际完成时间：项目实施单位完成该项目实际所耗用的时间。                     \n计划完成时间：按照项目实施计划或相关规定完成该项目所需的时间。"]
[null,null,"质量达标率（10分）",10,"项目完成的质量达标产出数与实际产出数的比率，用以反映和考核项目产出质量目标的实现程度。","质量达标率=（质量达标产出数/实际产出数）x100%。                         \n质量达标产出数：一定时期（本年度或项目期）内实际达到既定质量标准的产品或服务数量。\n既定质量标准是指项目实施单位设立绩效目标时依据计划标准、行业标准、历史标准或其他标准而设定的绩效指标值。"]
[null,null,"资金使用率（10分）",10,"项目实际支出与项目到位资金的比率，用以反映和考核项目资金使用情况。","资金使用率=（项目实际支出/项目到位资金）x100%。                          \n实际支出：项目实施单位为完成既定工作目标一定时期（本年度或项目期）内实际所耗费的支出。    \n到位资金：一定时期（本年度或项目期）内实际落实到具体项目的资金。"]
["效果（40分）","项目\n效益","经济效益\n（10分）",40,"项目实施对经济发展所带来的直接或间接影响情况。","此四项指标为设置项目支出绩效评价指标时必须考虑的共性要素，应根据项目实际并结合绩效目标设立情况有选择的进行设置，并将其细化为相应的个性化指标。"]
[null,null,"社会效益 \n（9分）",null,"项目实施对社会发展所带来的直接或间接影响情况。"]
[null,null,"生态效益\n（8分）",null,"项目实施对生态发展所带来的直接或间接影响情况。"]
[null,null,"可持续影响（8分）",null,"项目后续运行及成效发挥的可持续影响情况。"]
[null,null,"社会公众或服务对象满意度（5分）",null,"社会公众或服务对象对项目实施效果的满意程度。","社会公众或服务对象是指因该项目实施而受到影响的部门（单位）、群体或个人。一般采取社会调查的方式。"]
["合计"]

{"sheet":"取消药品加成补助项目","index":18,"n_rows":36,"n_cols":5,"rows_kept":36,"merged":[[1,0,1,4],[4,0,12,0],[4,1,8,1],[5,2,6,2],[5,3,6,3],[7,2,8,2],[7,3,8,3],[9,1,12,1],[9,2,10,2],[9,3,10,3],[11,2,12,2],[11,3,12,3],[13,0,20,0],[13,1,16,1],[15,2,16,2],[15,3,16,3],[17,1,20,1],[17,2,18,2],[17,3,18,3],[21,0,29,0],[21,1,29,1],[22,2,24,2],[22,3,24,3],[25,2,26,2],[25,3,26,3],[27,2,29,2],[27,3,29,3],[30,0,34,0],[30,1,34,1],[30,4,33,4],[35,0,35,1]]}
[]
["“2019取消药品加成补助”\n项目绩效目标表"]
["填表单位：随州市财政局社会保障科"]
["一级\n指标","二级指标","三级指标","指标说明","评价要点"]
["投入\n（20分）","项目立项","项目立项\n规范性\n（6分）","项目的申请、设立过程是否符合相关要求，反映项目立项的规范情况。","①项目是否按照规定的程序申请设立；（2分）                                 \n②所提交的文件、材料是否符合相关要求；（2分）  ③事前是否已经过必要的可行性研究、专家论证、风险评估、集体决策等。（2分）"]
[null,null,"绩效目标\n合理性\n（4分）","项目所设定的绩效目标是否依据充分，是否符合客观实际，反映项目绩效目标与项目实施的相符情况。","①是否符合国家相关法律法规、国民经济发展规划合党委政府决策；（1分）                                 ②是否与项目实施单位或委托单位职责密切相关；（1分）                           "]
[{"$nulls":4},"③项目是否为促进事业发展所必需。（1分）                                           ④项目预期产出效益和效果是否符合正常的业绩水平。（1分）"]
[null,null,"绩效指标\n明确性\n（4分）","依据绩效目标设定的绩效指标是否清晰、细化、可衡量等。反映项目绩效目标的明细化情况。","①是否将项目绩效目标细化分解为具体的绩效指标；（1分）                              "]
[{"$nulls":4},"②是否通过清晰、可衡量的指标值予以体现（1分）                                       ③是否与项目年度任务数或计划数相对应；（1分）                                      ④是否与预算确定的项目投资额或资金量相匹配。（1分）"]
[null,"资金落实","资金到位率  （3分）","实际到位资金与计划投入资金的比率，反映资金落实情况对项目实施的总体保障程度。","资金到位率=（实际到位资金/计划投入资金）x100%                                     实际到位资金：一定时期（本年度或项目期）内实际落实到具体项目的资金。             "]
[{"$nulls":4},"计划投入资金：一定时期（本年度或项目期）内计划投入到具体项目的资金。"]
[null,null,"到位及时率  （3分）","及时到位资金与应到位资金的比率，反映项目资金落实的及时性程度。","到位及时率=（及时到位资金/应到位资金）x100%。          \n及时到位资金：截至规定时点实际落实到具体项目的资金。                        "]
[{"$nulls":4},"应到位资金：按照合同或项目进度要求截至规定时点应落实到具体项目的资金。"]
["过程\n（20分）","业务管理","管理制度\n健全性\n（2分）","项目实施单位的业务管理制度是否健全，反映业务管理制度对项目水利实施的保障情况。","①是否已制定或具有相应的业务管理制度（1分）                                 \n②业务管理制度是否合法、合规、完整。（1分）"]
[null,null,"制度执行\n有效性\n（4分）","项目实施是否符合相关业务管理规定，反映业务管理制度的有效执行情况。","①是否遵守相关法律法规和业务管理规定；（1分）②项目调整及支出调整手续是否完备（1分）  ③项目合同书、眼熟报告、技术鉴定等资料是否齐全并及时归档；（1分）                                   ④项目实施的人员条件、场地设备、信息支撑等是否落实到位。（1分）"]
[null,null,"项目质量\n可控性\n（2分）","项目实施单位是否为达到项目质量要求而采取了必需的措施，反映项目实施单位对项目质量的控制情况。","①是否已制定或具有相应的项目质量要求或标准；（1分）                                "]
[{"$nulls":4},"②是否采取了相应的项目质量检查、验收等必需的控制措施或手段。（1分）"]
[null,"财务管理","管理制度\n健全性\n（2分）","项目实施单位的财务制度是否健全，反映财务管理制度对资金规范、安全运行的保障情况。","①是否已制定或具有相应的项目资金管理办法；（1分）                                "]
[{"$nulls":4},"②项目资金管理办法是否符合相关财务会计制度的规定。（1分）"]
[null,null,"资金使用\n合规性\n（8分）","项目资金使用是否符合相关的财务管理制度规定，反映项目资金的规范运行情况。","①是否符合国家财经法规和财务管理制度以及有关专项资金管理办法的规定；（2分）                                 ②资金的拨付是否有完整的审批程序和手续（2分）                                       ③项目的重大开支是否经过评估认证；（2分）                                          ④是否符合项目预算批复或合同规定的用途（1分）                                      ⑤是否存在截留、挤占、挪用、虚列支出等情况。（1分）"]
[null,null,"财务监控\n有效性\n（2分）","项目实施单位是否为保障资金的安全、规范运行而采取了必要的监控措施，反映项目实施单位对资金运行的控制情况。","①是否已制定或具有相应的监控机制；（1分）                                         ②是否采取了相应的财务检查等必要的监控措施或手段。（1分）"]
["产出\n（32分）","项目产出","实际完成率\n（8分）","项目实施的实际产出数与计划产出数的比率，反映项目产出数量目标的实现程度。","实际完成率=（实际产出数/计划产出数）x100%。                                       实际产出数：一定时期（本年度或项目期）内项目实际产出的产品或提供的服务数量。 计划产出数：项目绩效目标确定的在一定时期（本年度或项目期）内计划产出的产品或提供的服务数量。"]
[null,null,"完成及时率  （8分）","项目实际提前完成时间与计划完成时间的比率，反映项目产出时效的实现程度。","完成及时率=[（计划完成时间-实际完成时间）/计划完成时间]x100%。            "]
[{"$nulls":4},"实际完成时间：项目实施单位完成该项目实际所耗用的时间。                     "]
[{"$nulls":4},"计划完成时间：按照项目实施计划或相关规定完成该项目所需的时间。"]
[null,null,"质量达标率  （8分）","项目完成的质量达标产出数与实际产出数的比率，反映项目产出质量目标的实现程度。","质量达标率=（质量达标产出数/实际产出数）x100%。                         "]
[{"$nulls":4},"质量达标产出数：一定时期（本年度或项目期）内实际达到既定质量标准的产品或服务数量。既定质量标准是指项目实施单位设立绩效目标是依据计划标准、行业标准、历史标准或其他标准而设定的绩效指标值。"]
[null,null,"成本节约率  （8分）","完成项目计划工作目标的实际节约成本与计划成本的比率，反映项目的成本节约程度。","成本节约率=[（计划成本-实际成本）/计划成本]x100%。                          "]
[{"$nulls":4},"实际成本：项目实施单位如期、保质、保量完成既定工作目标实际所耗费的支出。    "]
[{"$nulls":4},"计划成本：项目实施单位为完成工作目标计划安排的支出，一般以项目预算为参考。"]
["效果\n（28分）","项目效益","经济效益   （10分）","项目实施对经济发展所带来的直接或间接影响情况","此四项指标为设置项目支出绩效评价指标时必须考虑的共性要素，相互关联，根据项目实际情评价"]
[null,null,"社会效益    （8分）","项目实施对社会发展所带来的直接或间接影响情况"]
[null,null,"生态效益    （4分）","项目实施对生态环境所带来的直接或间接影响情况"]
[null,null,"可持续影响  （4分）","项目后续运行及成就发挥的可持续影响情况。"]
[null,null,"社会公众或\n服务对象\n满意度\n（2分）","对项目实施效果的满意程度。","因该项目实施而受到影响的部门（单位）、群体或个人。"]
["合计"]

{"sheet":"残疾人就业保障金项目经费","index":19,"n_rows":24,"n_cols":6,"rows_kept":24,"merged":[[1,0,1,5],[2,0,2,2],[4,0,7,0],[4,1,5,1],[6,1,7,1],[8,0,13,0],[8,1,10,1],[11,1,13,1],[14,0,17,0],[14,1,17,1],[18,0,22,0],[18,1,22,1],[18,3,22,3],[18,5,21,5],[23,0,23,1]]}
[]
["残疾人就业保障金项目绩效目标表"]
["单位名称：随州市残疾人联合会",{"$nulls":3},"项目名称：残疾人就业保障金项目经费"]
["一级指标","二级指标","三级指标","权重","指标解释","指标说明"]
["投入       （8分）","项目立项","项目立项规范性\n（2分）",2,"项目的申请设立过程是否符合相关要求，用以反映和考核项目立项的规范情况。","①是否有规划；（0.2分）                                                       ②是否按照规定的程序中请设立；（0.5分）                                   ③所提交的文件、材料是否符合相关要求；（0.5分）                           ④事前是否已经过必要的可行性研究、专家论证、风险评估、集体决策等；（0.5分）                                                             ⑤项目执行时是否发生重大调整。（0.3分）"]
[null,null,"绩效目标合理性\n（2分）",2,"项目是否设定绩效目标和绩效指标,所设定的绩效目标和指标是否符合实际,用以反映和考核项目绩效目标与项目实施的相符情况。","①是否设定长期目标、年度目标和绩效指标；（0.5分）                         ②目标和指标的设计是否符合目标管理规范；（0.5分）                          ③根据绩效目标和完成情况的对比考核目标设立的合理性；（0.5分）               ④绩效指标是否具有可测性。（0.5分） "]
[null,"资金落实","资金到位率                                （2分）",2,"实际到位资金与计划投入资金的比率,用以反映和考核资金落实情况对项目实施的总体保障程度。","资金到位率=(实际到位资金/计划投入资金)×100%。实际到位资金:一定时期(本年度或项目期)内实际落实到具体项目的资金。计划投入资金:一定时期(本年度或项目期)内计划投入到具体项目的资金。(注:分预算资金、配套资金、自等资金评价)"]
[null,null,"到位及时率                               （2分）",2,"实际投入资金与实际执行资金的比率，用以反映和考核项目资金落实的及时性程度。","到位及时率=(及时到位资金/应到位资金)x100%。及时到位资金:截至规定时点实际落实到具体项目的资金。应到位资金:按照合同或项目进度要求截至规定时点应落实到具体项目的资金。(注:分预算货金、配套资金、自筹资金评价)"]
["过程  （12分）","项目管理","管理制度健全性\n（2分）",2,"项目管理制度是否健全，用以反映和考核项目管理制度对项目顺利实施的保障情况。","①是否已制定或具有相应的项目管理制度；（1分）                           ②项目管理制度是否合法、合现、完整。（1分）"]
[null,null,"制度执行有效性\n（2分）",2,"项目实施是否符合相关项目管理规定，用以反映和考核项目管理制度的有效执行情况。","①是否遵守相关法律法规和项目管理规定；（0.2分）                                      ②项目调整及支出调整手续是否完备；（0.3分）                                   ③是否严格执行项目管理程序及招投标制、监理制、合同制、项目公示制、政府采购等(针对具体项目对应评价)；（0.5分）                            ④项目合同书、验收报告、技术鉴定等资料是否齐全并及时归档；（0.5分）                                                              ⑤项目实施的人员条件、场地设备、信息支撑等是否落实到位。（0.5分）"]
[null,null,"项目质量可控性\n（2分）",2,"项目实施单位是否为达到项目质量要求而采取了必需的措施，用以反映和考核项目实施单位对项目质量的控制情况。","①是否已制定或具有相应的项目质量要求或标准； （1分）                     ②是否采取了相应的项目质量检查、验收等必需的控制措施或手段。（1分） "]
[null,"财务管理","管理制度健全性\n（2分）",2,"项目实施单位的财务制度是否健全，用以反映和考核财务管理制度对资金规范、安全运行的保障情况。","①是否已制定或具有相应的项目资金管理办法；（1分）                              ②项目资金管理办法是否符合相关财务会计划的规定。（1分） "]
[null,null,"资金使用合规性\n（2分）",2,"项目资金使用是否符合相关的财务管理制度规定，用以反映和考核项目资金的规范运行情况。","①是否符合国家财经法规和财务管理制度以及有关专项费金管理办法的规定；（0.2分）                                                             ②资金的拨付是否有完整的审批程序和手续； （0.5分）                         ③项目的重大开支是否经过评估认证；（0.3分）                              ④是否符合项目预算批复或合同规定的用途；（0.5分）                        ⑤是否存在截留、挤占、挪用、虚列支出等情况。（0.5分）"]
[null,null,"财务监控有效性\n（2分）",2,"项目实施单位是否为保障资金的安全、规范运行而采取了必要的监控措施，用以反映和考核项目实施单位对资金运行的控制情况。","①是否已制定或具有相应的监控机制；（1分）                               ②是否采取了相应的财务检查等必要的监控指施或手段。（1分）"]
["产出   （40分）","项目产出","实际完成率\n（10分）",10,"项目实施的实际产出数与计划产出数的比率,用以反映和考核项目产出数量目标的实现程度。","实际完成率:(实际产出数/计划产出数)X100%。实际产出数:一定时期(本年度或项目期)内项目实际产出的产品或提供的服务数量。计划产出数:项目绩效目标确定的在一定时期(本年度或项目期)内计划产出的产品成提供的服务数量。"]
[null,null,"完成及时率                           （10分）",10,"项目实际提前完成时间与计划完成时间的比率,用以反映和考核项目产出绩效目标的实现程度。","完成及时率=【(计划完成时间-实际完成时间)/计划完成时间】×100%。实际完成时间:项目实施单位完成该项目实际所耗用的时间。计划完成时间:按照项目实施计划或相关规定完成该项目所需的时间。"]
[null,null,"质量达标率                           （10分）",10,"项目完成的质量达标产出数与实际产出数的比率,用以反映和考核项目产出质量目标的实现程度。","质量达标率=(质量达标产出数/实际产出数)x100%。质量达标产出数:一定时期(本年度或项目期)内实际达到既定质量标准的产品或服务数量。既定质量标准是指项目实施单位设绩效目标时依据计划标准、行业标准、历史标准或其他标准而设定的绩效指标值。"]
[null,null,"资金使用率                  （10分）",10,"项目实际支出与项目到位资金的比率,用以反映和考核项目资金使用情况。","资金使用率-项目实际支出/项目到位资金×100%。实际支出:项目实施单位为完成既定工作目标一定时期(本年度或项目期)内实际所耗费的支出。到位资金:一定时期(本年度或项目期)内实际落实到具体项目的资金。"]
["效果  （40分）","项目效益","经济效益\n（10分）",40,"项目实施对经济发展所带来的直接或间接影响情况。","此四项指标为设置项目支出锁效评价指标时必须考虑的共性要素,应根据项目实际并结合绩效目标设立情况有选择的进行设置,并将其细化为相应的个性化指标。"]
[null,null,"社会效益 \n（9分）",null,"项目实施对社会发展所带来的直接或间接影响情况。"]
[null,null,"生态效益\n（8分）",null,"项目实施对生态环境所带来的直接或间接影响情况"]
[null,null,"可持续影响                 （8分）",null,"项目后续运行及成效发挥的可持续影响情况。"]
[null,null,"社会公众或服务对象满意度（5分）",null,"社会公众或服务对象对项目实施效果的满意程度。","社会公众或服务对象是指因该项目实施而受到影响的部门(单位)、群体或个人、一般采取社会调查的方式。"]
["合计"]

{"sheet":"城镇义务兵家庭优待金项目","index":20,"n_rows":28,"n_cols":6,"rows_kept":28,"merged":[[1,0,1,5],[4,0,11,0],[4,1,9,1],[4,2,8,2],[4,3,8,3],[4,4,8,4],[4,5,8,5],[10,1,11,1],[12,0,17,0],[12,1,14,1],[15,1,17,1],[18,0,21,0],[18,1,21,1],[22,0,26,0],[22,1,26,1],[22,3,26,3],[22,5,25,5],[27,0,27,1]]}
[]
["“2019年城镇义务兵家庭优待金”项目支出绩效目标表"]
["项目承担单位：随州市民政局"]
["一级指标","二级指标","三级指标","权重","指标解释","评价要点"]
["投入（8分）","项目\n立项","项目立项\n规范性\n（2分）",2,"项目的申请、设立过程是否符合相关要求，用以反映和考核项目立项的规范情况。","①是否有规划；（0.2分）\n②项目是否按照规定的程序申请设立；（0.5分）\n③所提交的文件、材料是否符合相关要求；（0.5分）                                   \n④事前是否已经过必要的可行性研究、专家论证、风险评估、集体决策等；（0.5分）\n⑤项目执行时是否发生重大调整。（0.3分）"]
[]
[]
[]
[]
[null,null,"绩效目标\n合理性\n（2分）",2,"项目是否设定的绩效目标和绩效指标，所设定的目标和指标是否依符合实际，用以反映和考核项目绩效目标与项目实施的相符情况。","①是否设定长期目标、年度目标和绩效指标；（0.5分）                                 ②目标和指标的设计是否符合目标管理规范；（0.5分）                           \n③根据绩效目标和完成情况的对比考核目标设立的合理性；（0.5分）\n④绩效指标是否具有可测性。（0.5分）"]
[null,"资金\n落实","资金到位率（2分）",2,"实际到位资金与计划投入资金的比率，用以反映和考核资金落实情况对项目实施的总体保障程度。","资金到位率=（实际到位资金/计划投入资金）x100%                                    实际到位资金：一定时期（本年度或项目期）内实际落实到具体项目的资金。             \n计划投入资金：一定时期（本年度或项目期）内计划投入到具体项目的资金。（注：分预算资金、配套资金、自筹资金评价）"]
[null,null,"到位及时率（2分）",2,"及时到位资金与应到位资金的比率，用以反映和考核项目资金落实的及时性程度。","到位及时率=（及时到位资金/应到位资金）x100%。         \n及时到位资金：截至规定时点实际落实到具体项目的资金。                        \n应到位资金：按照合同或项目进度要求截至规定时点应落实到具体项目的资金。（注：分预算资金、配套资金、自筹资金评价）"]
["过程\n（12分）","项目\n管理","管理制度\n健全性\n（2分）",2,"项目管理制度是否健全，用以反映和考核项目管理制度对项目顺利实施的保障情况。","①是否已制定或具有相应的项目管理制度；（1分） \n②项目管理制度是否合法、合规、完整。（1分）"]
[null,null,"制度执行\n有效性\n（2分）",2,"项目实施是否符合相关项目管理规定，用以反映和考核项目管理制度的有效执行情况。","①是否遵守相关法律法规和项目管理规定；（0.2分）  \n②项目调整及支出调整手续是否完备；（0.3分）\n③是否严格执行项目管理程序及招投标制、监理制、合同制、项目公示制、政府采购等（针对具体项目对应评价）；（0.5分）\n④项目合同书、验收报告、技术鉴定等资料是否齐全并及时归档； （0.5分）\n⑤项目实施的人员条件、场地设备、信息支撑等是否落实到位。（0.5分）"]
[null,null,"项目质量\n可控性\n（2分）",2,"项目实施单位是否为达到项目质量要求而采取了必需的措施，用以反映和考核项目实施单位对项目质量的控制情况。","①是否已制定或具有相应的项目质量要求或标准；  （1分）                             \n②是否采取了相应的项目质量检查、验收等必需的控制措施或手段。（1分）"]
[null,"财务\n管理","管理制度\n健全性\n（2分）",2,"项目实施单位的财务制度是否健全，用以反映和考核财务管理制度对资金规范、安全运行的保障情况。","①是否已制定或具有相应的项目资金管理办法；（1分）                               \n②项目资金管理办法是否符合相关财务会计制度的规定。（1分）"]
[null,null,"资金使用\n合规性\n（2分）",2,"项目资金使用是否符合相关的财务管理制度规定，用以反映和考核项目资金的规范运行情况。","①是否符合国家财经法规和财务管理制度以及有关专项资金管理办法的规定； （0.2分）                                \n②资金的拨付是否有完整的审批程序和手续；（0.5分) \n③项目的重大开支是否经过评估认证；（0.3分）                                  \n④是否符合项目预算批复或合同规定的用途；(0.5分)                              \n⑤是否存在截留、挤占、挪用、虚列支出等情况。(0.5分)"]
[null,null,"财务监控\n有效性\n（2分）",2,"项目实施单位是否为保障资金的安全、规范运行而采取了必要的监控措施，用以反映和考核项目实施单位对资金运行的控制情况。","①是否已制定或具有相应的监控机制；(1分)\n②是否采取了相应的财务检查等必要的监控措施或手段。(1分)"]
["产出(40分）","项目\n产出","实际完成率\n(10分）",10,"项目实施的实际产出数与计划产出数的比率，用以反映和考核项目产出数量目标的实现程度。","实际完成率=（实际产出数/计划产出数）x100%。\n实际产出数：一定时期（本年度或项目期）内项目实际产出的产品或提供的服务数量。\n计划产出数：项目绩效目标确定的在一定时期（本年度或项目期）内计划产出的产品或提供的服务数量。"]
[null,null,"完成及时率（10分）",10,"项目实际提前完成时间与计划完成时间的比率，用以反映和考核项目产出时效目标的实现程度。","完成及时率=[（计划完成时间-实际完成时间）/计划完成时间]x100%。            \n实际完成时间：项目实施单位完成该项目实际所耗用的时间。                     \n计划完成时间：按照项目实施计划或相关规定完成该项目所需的时间。"]
[null,null,"质量达标率（10分）",10,"项目完成的质量达标产出数与实际产出数的比率，用以反映和考核项目产出质量目标的实现程度。","质量达标率=（质量达标产出数/实际产出数）x100%。                         \n质量达标产出数：一定时期（本年度或项目期）内实际达到既定质量标准的产品或服务数量。\n既定质量标准是指项目实施单位设立绩效目标时依据计划标准、行业标准、历史标准或其他标准而设定的绩效指标值。"]
[null,null,"资金使用率（10分）",10,"项目实际支出与项目到位资金的比率，用以反映和考核项目资金使用情况。","资金使用率=（项目实际支出/项目到位资金）x100%。                          \n实际支出：项目实施单位为完成既定工作目标一定时期（本年度或项目期）内实际所耗费的支出。    \n到位资金：一定时期（本年度或项目期）内实际落实到具体项目的资金。"]
["效果（40分）","项目\n效益","经济效益\n（10分）",40,"项目实施对经济发展所带来的直接或间接影响情况。","此四项指标为设置项目支出绩效评价指标时必须考虑的共性要素，应根据项目实际并结合绩效目标设立情况有选择的进行设置，并将其细化为相应的个性化指标。"]
[null,null,"社会效益 \n（9分）",null,"项目实施对社会发展所带来的直接或间接影响情况。"]
[null,null,"生态效益\n（8分）",null,"项目实施对生态发展所带来的直接或间接影响情况。"]
[null,null,"可持续影响（8分）",null,"项目后续运行及成效发挥的可持续影响情况。"]
[null,null,"社会公众或服务对象满意度（5分）",null,"社会公众或服务对象对项目实施效果的满意程度。","社会公众或服务对象是指因该项目实施而受到影响的部门（单位）、群体或个人。一般采取社会调查的方式。"]
["合计"]

{"sheet":"重大公卫传染病防控与应急处置项目","index":21,"n_rows":24,"n_cols":6,"rows_kept":24,"merged":[[1,0,1,5],[4,0,7,0],[4,1,5,1],[6,1,7,1],[8,0,13,0],[8,1,10,1],[11,1,13,1],[14,0,17,0],[14,1,17,1],[18,0,22,0],[18,1,22,1],[18,3,22,3],[18,5,21,5],[23,0,23,1]]}
[]
["“重大公卫传染病防控与应急处置项目”\n项目绩效目标表"]
["填表单位：随州市财政局社会保障科"]
["一级指标","二级指标","三级指标","权重","指标解释","评价要点"]
["投入（8分）","项目\n立项","项目立项\n规范性\n（2分）",2,"项目的申请、设立过程是否符合相关要求，用以反映和考核项目立项的规范情况。","①是否有规划；（0.2分）\n②项目是否按照规定的程序申请设立；（0.5分）\n③所提交的文件、材料是否符合相关要求；（0.5分）                                   \n④事前是否已经过必要的可行性研究、专家论证、风险评估、集体决策等；（0.5分）\n⑤项目执行时是否发生重大调整。（0.3分）"]
[null,null,"绩效目标\n合理性\n（2分）",2,"项目是否设定的绩效目标和绩效指标，所设定的目标和指标是否依符合实际，用以反映和考核项目绩效目标与项目实施的相符情况。","①是否设定长期目标、年度目标和绩效指标；（0.5分）                                 ②目标和指标的设计是否符合目标管理规范；（0.5分）                           \n③根据绩效目标和完成情况的对比考核目标设立的合理性；（0.5分）\n④绩效指标是否具有可测性。（0.5分）"]
[null,"资金\n落实","资金到位率（2分）",2,"实际到位资金与计划投入资金的比率，用以反映和考核资金落实情况对项目实施的总体保障程度。","资金到位率=（实际到位资金/计划投入资金）x100%                                    实际到位资金：一定时期（本年度或项目期）内实际落实到具体项目的资金。             \n计划投入资金：一定时期（本年度或项目期）内计划投入到具体项目的资金。（注：分预算资金、配套资金、自筹资金评价）"]
[null,null,"到位及时率（2分）",2,"及时到位资金与应到位资金的比率，用以反映和考核项目资金落实的及时性程度。","到位及时率=（及时到位资金/应到位资金）x100%。         \n及时到位资金：截至规定时点实际落实到具体项目的资金。                        \n应到位资金：按照合同或项目进度要求截至规定时点应落实到具体项目的资金。（注：分预算资金、配套资金、自筹资金评价）"]
["过程\n（12分）","项目\n管理","管理制度\n健全性\n（2分）",2,"项目管理制度是否健全，用以反映和考核项目管理制度对项目顺利实施的保障情况。","①是否已制定或具有相应的项目管理制度；（1分） \n②项目管理制度是否合法、合规、完整。（1分）"]
[null,null,"制度执行\n有效性\n（2分）",2,"项目实施是否符合相关项目管理规定，用以反映和考核项目管理制度的有效执行情况。","①是否遵守相关法律法规和项目管理规定；（0.2分）  \n②项目调整及支出调整手续是否完备；（0.3分）\n③是否严格执行项目管理程序及招投标制、监理制、合同制、项目公示制、政府采购等（针对具体项目对应评价）；（0.5分）\n④项目合同书、验收报告、技术鉴定等资料是否齐全并及时归档； （0.5分）\n⑤项目实施的人员条件、场地设备、信息支撑等是否落实到位。（0.5分）"]
[null,null,"项目质量\n可控性\n（2分）",2,"项目实施单位是否为达到项目质量要求而采取了必需的措施，用以反映和考核项目实施单位对项目质量的控制情况。","①是否已制定或具有相应的项目质量要求或标准；  （1分）                             \n②是否采取了相应的项目质量检查、验收等必需的控制措施或手段。（1分）"]
[null,"财务\n管理","管理制度\n健全性\n（2分）",2,"项目实施单位的财务制度是否健全，用以反映和考核财务管理制度对资金规范、安全运行的保障情况。","①是否已制定或具有相应的项目资金管理办法；（1分）                               \n②项目资金管理办法是否符合相关财务会计制度的规定。（1分）"]
[null,null,"资金使用\n合规性\n（2分）",2,"项目资金使用是否符合相关的财务管理制度规定，用以反映和考核项目资金的规范运行情况。","①是否符合国家财经法规和财务管理制度以及有关专项资金管理办法的规定； （0.2分）                                \n②资金的拨付是否有完整的审批程序和手续；（0.5分) \n③项目的重大开支是否经过评估认证；（0.3分）                                  \n④是否符合项目预算批复或合同规定的用途；(0.5分)                              \n⑤是否存在截留、挤占、挪用、虚列支出等情况。(0.5分)"]
[null,null,"财务监控\n有效性\n（2分）",2,"项目实施单位是否为保障资金的安全、规范运行而采取了必要的监控措施，用以反映和考核项目实施单位对资金运行的控制情况。","①是否已制定或具有相应的监控机制；(1分)\n②是否采取了相应的财务检查等必要的监控措施或手段。(1分)"]
["产出（40分）","项目\n产出","实际完成率\n(10分）",10,"项目实施的实际产出数与计划产出数的比率，用以反映和考核项目产出数量目标的实现程度。","实际完成率=（实际产出数/计划产出数）x100%。\n实际产出数：一定时期（本年度或项目期）内项目实际产出的产品或提供的服务数量。\n计划产出数：项目绩效目标确定的在一定时期（本年度或项目期）内计划产出的产品或提供的服务数量。"]
[null,null,"完成及时率（10分）",10,"项目实际提前完成时间与计划完成时间的比率，用以反映和考核项目产出时效目标的实现程度。","完成及时率=[（计划完成时间-实际完成时间）/计划完成时间]x100%。            \n实际完成时间：项目实施单位完成该项目实际所耗用的时间。                     \n计划完成时间：按照项目实施计划或相关规定完成该项目所需的时间。"]
[null,null,"质量达标率（10分）",10,"项目完成的质量达标产出数与实际产出数的比率，用以反映和考核项目产出质量目标的实现程度。","质量达标率=（质量达标产出数/实际产出数）x100%。                         \n质量达标产出数：一定时期（本年度或项目期）内实际达到既定质量标准的产品或服务数量。\n既定质量标准是指项目实施单位设立绩效目标时依据计划标准、行业标准、历史标准或其他标准而设定的绩效指标值。"]
[null,null,"资金使用率（10分）",10,"项目实际支出与项目到位资金的比率，用以反映和考核项目资金使用情况。","资金使用率=（项目实际支出/项目到位资金）x100%。                          \n实际支出：项目实施单位为完成既定工作目标一定时期（本年度或项目期）内实际所耗费的支出。    \n到位资金：一定时期（本年度或项目期）内实际落实到具体项目的资金。"]
["效果（40分）","项目\n效益","经济效益\n（10分）",40,"项目实施对经济发展所带来的直接或间接影响情况。","此四项指标为设置项目支出绩效评价指标时必须考虑的共性要素，相互关联，根据项目实际情评价"]
[null,null,"社会效益 \n（9分）",null,"项目实施对社会发展所带来的直接或间接影响情况。"]
[null,null,"生态效益\n（8分）",null,"项目实施对生态发展所带来的直接或间接影响情况。"]
[null,null,"可持续影响（8分）",null,"项目后续运行及成效发挥的可持续影响情况。"]
[null,null,"社会公众或服务对象满意度（5分）",null,"社会公众或服务对象对项目实施效果的满意程度。","社会公众或服务对象是指因该项目实施而受到影响的部门（单位）、群体或个人。一般采取社会调查的方式。"]
["合计"]

{"sheet":"金保工程项目","index":22,"n_rows":28,"n_cols":6,"rows_kept":28,"merged":[[1,0,1,5],[4,0,11,0],[4,1,9,1],[4,2,8,2],[4,3,8,3],[4,4,8,4],[4,5,8,5],[10,1,11,1],[12,0,17,0],[12,1,14,1],[15,1,17,1],[18,0,21,0],[18,1,21,1],[22,0,26,0],[22,1,26,1],[22,3,26,3],[22,5,25,5],[27,0,27,1]]}
[]
["“2019金保工程”项目绩效目标表"]
["项目承担单位：随州市人力资源和社会保障信息中心"]
["一级指标","二级指标","三级指标","权重","指标解释","评价要点"]
["投入（8分）","项目\n立项","项目立项\n规范性\n（2分）",2,"项目的申请、设立过程是否符合相关要求，用以反映和考核项目立项的规范情况。","①是否有规划；（0.2分）\n②项目是否按照规定的程序申请设立；（0.5分）\n③所提交的文件、材料是否符合相关要求；（0.5分）                                   \n④事前是否已经过必要的可行性研究、专家论证、风险评估、集体决策等；（0.5分）\n⑤项目执行时是否发生重大调整。（0.3分）"]
[]
[]
[]
[]
[null,null,"绩效目标\n合理性\n（2分）",2,"项目是否设定的绩效目标和绩效指标，所设定的目标和指标是否依符合实际，用以反映和考核项目绩效目标与项目实施的相符情况。","①是否设定长期目标、年度目标和绩效指标；（0.5分）                                 ②目标和指标的设计是否符合目标管理规范；（0.5分）                           \n③根据绩效目标和完成情况的对比考核目标设立的合理性；（0.5分）\n④绩效指标是否具有可测性。（0.5分）"]
[null,"资金\n落实","资金到位率（2分）",2,"实际到位资金与计划投入资金的比率，用以反映和考核资金落实情况对项目实施的总体保障程度。","资金到位率=（实际到位资金/计划投入资金）x100%                                    实际到位资金：一定时期（本年度或项目期）内实际落实到具体项目的资金。             \n计划投入资金：一定时期（本年度或项目期）内计划投入到具体项目的资金。（注：分预算资金、配套资金、自筹资金评价）"]
[null,null,"到位及时率（2分）",2,"及时到位资金与应到位资金的比率，用以反映和考核项目资金落实的及时性程度。","到位及时率=（及时到位资金/应到位资金）x100%。         \n及时到位资金：截至规定时点实际落实到具体项目的资金。                        \n应到位资金：按照合同或项目进度要求截至规定时点应落实到具体项目的资金。（注：分预算资金、配套资金、自筹资金评价）"]
["过程\n（12分）","项目\n管理","管理制度\n健全性\n（2分）",2,"项目管理制度是否健全，用以反映和考核项目管理制度对项目顺利实施的保障情况。","①是否已制定或具有相应的项目管理制度；（1分） \n②项目管理制度是否合法、合规、完整。（1分）"]
[null,null,"制度执行\n有效性\n（2分）",2,"项目实施是否符合相关项目管理规定，用以反映和考核项目管理制度的有效执行情况。","①是否遵守相关法律法规和项目管理规定；（0.2分）  \n②项目调整及支出调整手续是否完备；（0.3分）\n③是否严格执行项目管理程序及招投标制、监理制、合同制、项目公示制、政府采购等（针对具体项目对应评价）；（0.5分）\n④项目合同书、验收报告、技术鉴定等资料是否齐全并及时归档； （0.5分）\n⑤项目实施的人员条件、场地设备、信息支撑等是否落实到位。（0.5分）"]
[null,null,"项目质量\n可控性\n（2分）",2,"项目实施单位是否为达到项目质量要求而采取了必需的措施，用以反映和考核项目实施单位对项目质量的控制情况。","①是否已制定或具有相应的项目质量要求或标准；  （1分）                             \n②是否采取了相应的项目质量检查、验收等必需的控制措施或手段。（1分）"]
[null,"财务\n管理","管理制度\n健全性\n（2分）",2,"项目实施单位的财务制度是否健全，用以反映和考核财务管理制度对资金规范、安全运行的保障情况。","①是否已制定或具有相应的项目资金管理办法；（1分）                               \n②项目资金管理办法是否符合相关财务会计制度的规定。（1分）"]
[null,null,"资金使用\n合规性\n（2分）",2,"项目资金使用是否符合相关的财务管理制度规定，用以反映和考核项目资金的规范运行情况。","①是否符合国家财经法规和财务管理制度以及有关专项资金管理办法的规定； （0.2分）                                \n②资金的拨付是否有完整的审批程序和手续；（0.5分) \n③项目的重大开支是否经过评估认证；（0.3分）                                  \n④是否符合项目预算批复或合同规定的用途；(0.5分)                              \n⑤是否存在截留、挤占、挪用、虚列支出等情况。(0.5分)"]
[null,null,"财务监控\n有效性\n（2分）",2,"项目实施单位是否为保障资金的安全、规范运行而采取了必要的监控措施，用以反映和考核项目实施单位对资金运行的控制情况。","①是否已制定或具有相应的监控机制；(1分)\n②是否采取了相应的财务检查等必要的监控措施或手段。(1分)"]
["产出（40分）","项目\n产出","实际完成率\n(10分）",10,"项目实施的实际产出数与计划产出数的比率，用以反映和考核项目产出数量目标的实现程度。","实际完成率=（实际产出数/计划产出数）x100%。\n实际产出数：一定时期（本年度或项目期）内项目实际产出的产品或提供的服务数量。\n计划产出数：项目绩效目标确定的在一定时期（本年度或项目期）内计划产出的产品或提供的服务数量。"]
[null,null,"完成及时率（10分）",10,"项目实际提前完成时间与计划完成时间的比率，用以反映和考核项目产出时效目标的实现程度。","完成及时率=[（计划完成时间-实际完成时间）/计划完成时间]x100%。            \n实际完成时间：项目实施单位完成该项目实际所耗用的时间。                     \n计划完成时间：按照项目实施计划或相关规定完成该项目所需的时间。"]
[null,null,"质量达标率（10分）",10,"项目完成的质量达标产出数与实际产出数的比率，用以反映和考核项目产出质量目标的实现程度。","质量达标率=（质量达标产出数/实际产出数）x100%。                         \n质量达标产出数：一定时期（本年度或项目期）内实际达到既定质量标准的产品或服务数量。\n既定质量标准是指项目实施单位设立绩效目标时依据计划标准、行业标准、历史标准或其他标准而设定的绩效指标值。"]
[null,null,"资金使用率（10分）",10,"项目实际支出与项目到位资金的比率，用以反映和考核项目资金使用情况。","资金使用率=（项目实际支出/项目到位资金）x100%。                          \n实际支出：项目实施单位为完成既定工作目标一定时期（本年度或项目期）内实际所耗费的支出。    \n到位资金：一定时期（本年度或项目期）内实际落实到具体项目的资金。"]
["效果（40分）","项目\n效益","经济效益\n（10分）",40,"项目实施对经济发展所带来的直接或间接影响情况。","此四项指标为设置项目支出绩效评价指标时必须考虑的共性要素，应根据项目实际并结合绩效目标设立情况有选择的进行设置，并将其细化为相应的个性化指标。"]
[null,null,"社会效益 \n（9分）",null,"项目实施对社会发展所带来的直接或间接影响情况。"]
[null,null,"生态效益\n（8分）",null,"项目实施对生态发展所带来的直接或间接影响情况。"]
[null,null,"可持续影响（8分）",null,"项目后续运行及成效发挥的可持续影响情况。"]
[null,null,"社会公众或服务对象满意度（5分）",null,"社会公众或服务对象对项目实施效果的满意程度。","社会公众或服务对象是指因该项目实施而受到影响的部门（单位）、群体或个人。一般采取社会调查的方式。"]
["合计"]

{"sheet":"网络运行经费项目","index":23,"n_rows":24,"n_cols":6,"rows_kept":24,"merged":[[1,0,1,5],[2,0,2,2],[4,0,7,0],[4,1,5,1],[6,1,7,1],[8,0,13,0],[8,1,10,1],[11,1,13,1],[14,0,17,0],[14,1,17,1],[18,0,22,0],[18,1,22,1],[18,3,22,3],[18,5,21,5],[23,0,23,1]]}
[]
["2019年社保局网络运行经费绩效目标表"]
["单位名称：随州市社会保险局",{"$nulls":3},"项目名称：网络运行经费"]
["一级指标","二级指标","三级指标","权重","指标解释","指标说明"]
["投入       （8分）","项目立项","项目立项规范性\n（2分）",2,"项目的申请设立过程是否符合相关要求，用以反映和考核项目立项的规范情况。","①是否有规划；（0.2分）                                                       ②是否按照规定的程序中请设立；（0.5分）                                   ③所提交的文件、材料是否符合相关要求；（0.5分）                           ④事前是否已经过必要的可行性研究、专家论证、风险评估、集体决策等；（0.5分）                                                             ⑤项目执行时是否发生重大调整。（0.3分）"]
[null,null,"绩效目标合理性\n（2分）",2,"项目是否设定绩效目标和绩效指标,所设定的绩效目标和指标是否符合实际,用以反映和考核项目绩效目标与项目实施的相符情况。","①是否设定长期目标、年度目标和绩效指标；（0.5分）                         ②目标和指标的设计是否符合目标管理规范；（0.5分）                          ③根据绩效目标和完成情况的对比考核目标设立的合理性；（0.5分）               ④绩效指标是否具有可测性。（0.5分） "]
[null,"资金落实","资金到位率                                （2分）",2,"实际到位资金与计划投入资金的比率,用以反映和考核资金落实情况对项目实施的总体保障程度。","资金到位率=(实际到位资金/计划投入资金)×100%。实际到位资金:一定时期(本年度或项目期)内实际落实到具体项目的资金。计划投入资金:一定时期(本年度或项目期)内计划投入到具体项目的资金。(注:分预算资金、配套资金、自等资金评价)"]
[null,null,"到位及时率                               （2分）",2,"实际投入资金与实际执行资金的比率，用以反映和考核项目资金落实的及时性程度。","到位及时率=(及时到位资金/应到位资金)x100%。及时到位资金:截至规定时点实际落实到具体项目的资金。应到位资金:按照合同或项目进度要求截至规定时点应落实到具体项目的资金。(注:分预算货金、配套资金、自筹资金评价)"]
["过程  （12分）","项目管理","管理制度健全性\n（2分）",2,"项目管理制度是否健全，用以反映和考核项目管理制度对项目顺利实施的保障情况。","①是否已制定或具有相应的项目管理制度；（1分）                           ②项目管理制度是否合法、合现、完整。（1分）"]
[null,null,"制度执行有效性\n（2分）",2,"项目实施是否符合相关项目管理规定，用以反映和考核项目管理制度的有效执行情况。","①是否遵守相关法律法规和项目管理规定；（0.2分）                                      ②项目调整及支出调整手续是否完备；（0.3分）                                   ③是否严格执行项目管理程序及招投标制、监理制、合同制、项目公示制、政府采购等(针对具体项目对应评价)；（0.5分）                            ④项目合同书、验收报告、技术鉴定等资料是否齐全并及时归档；（0.5分）                                                              ⑤项目实施的人员条件、场地设备、信息支撑等是否落实到位。（0.5分）"]
[null,null,"项目质量可控性\n（2分）",2,"项目实施单位是否为达到项目质量要求而采取了必需的措施，用以反映和考核项目实施单位对项目质量的控制情况。","①是否已制定或具有相应的项目质量要求或标准； （1分）                     ②是否采取了相应的项目质量检查、验收等必需的控制措施或手段。（1分） "]
[null,"财务管理","管理制度健全性\n（2分）",2,"项目实施单位的财务制度是否健全，用以反映和考核财务管理制度对资金规范、安全运行的保障情况。","①是否已制定或具有相应的项目资金管理办法；（1分）                              ②项目资金管理办法是否符合相关财务会计划的规定。（1分） "]
[null,null,"资金使用合规性\n（2分）",2,"项目资金使用是否符合相关的财务管理制度规定，用以反映和考核项目资金的规范运行情况。","①是否符合国家财经法规和财务管理制度以及有关专项费金管理办法的规定；（0.2分）                                                             ②资金的拨付是否有完整的审批程序和手续； （0.5分）                         ③项目的重大开支是否经过评估认证；（0.3分）                              ④是否符合项目预算批复或合同规定的用途；（0.5分）                        ⑤是否存在截留、挤占、挪用、虚列支出等情况。（0.5分）"]
[null,null,"财务监控有效性\n（2分）",2,"项目实施单位是否为保障资金的安全、规范运行而采取了必要的监控措施，用以反映和考核项目实施单位对资金运行的控制情况。","①是否已制定或具有相应的监控机制；（1分）                               ②是否采取了相应的财务检查等必要的监控指施或手段。（1分）"]
["产出   （40分）","项目产出","实际完成率\n（10分）",10,"项目实施的实际产出数与计划产出数的比率,用以反映和考核项目产出数量目标的实现程度。","实际完成率:(实际产出数/计划产出数)X100%。实际产出数:一定时期(本年度或项目期)内项目实际产出的产品或提供的服务数量。计划产出数:项目绩效目标确定的在一定时期(本年度或项目期)内计划产出的产品成提供的服务数量。"]
[null,null,"完成及时率                           （10分）",10,"项目实际提前完成时间与计划完成时间的比率,用以反映和考核项目产出绩效目标的实现程度。","完成及时率=【(计划完成时间-实际完成时间)/计划完成时间】×100%。实际完成时间:项目实施单位完成该项目实际所耗用的时间。计划完成时间:按照项目实施计划或相关规定完成该项目所需的时间。"]
[null,null,"质量达标率                           （10分）",10,"项目完成的质量达标产出数与实际产出数的比率,用以反映和考核项目产出质量目标的实现程度。","质量达标率=(质量达标产出数/实际产出数)x100%。质量达标产出数:一定时期(本年度或项目期)内实际达到既定质量标准的产品或服务数量。既定质量标准是指项目实施单位设绩效目标时依据计划标准、行业标准、历史标准或其他标准而设定的绩效指标值。"]
[null,null,"资金使用率                  （10分）",10,"项目实际支出与项目到位资金的比率,用以反映和考核项目资金使用情况。","资金使用率-项目实际支出/项目到位资金×100%。实际支出:项目实施单位为完成既定工作目标一定时期(本年度或项目期)内实际所耗费的支出。到位资金:一定时期(本年度或项目期)内实际落实到具体项目的资金。"]
["效果  （40分）","项目效益","经济效益\n（10分）",40,"项目实施对经济发展所带来的直接或间接影响情况。","此四项指标为设置项目支出锁效评价指标时必须考虑的共性要素,应根据项目实际并结合绩效目标设立情况有选择的进行设置,并将其细化为相应的个性化指标。"]
[null,null,"社会效益 \n（9分）",null,"项目实施对社会发展所带来的直接或间接影响情况。"]
[null,null,"生态效益\n（8分）",null,"项目实施对生态环境所带来的直接或间接影响情况"]
[null,null,"可持续影响                 （8分）",null,"项目后续运行及成效发挥的可持续影响情况。"]
[null,null,"社会公众或服务对象满意度（5分）",null,"社会公众或服务对象对项目实施效果的满意程度。","社会公众或服务对象是指因该项目实施而受到影响的部门(单位)、群体或个人、一般采取社会调查的方式。"]
["合计"]

{"sheet":"计生事业费项目","index":24,"n_rows":28,"n_cols":6,"rows_kept":28,"merged":[[1,0,1,5],[4,0,11,0],[4,1,9,1],[4,2,8,2],[4,3,8,3],[4,4,8,4],[4,5,8,5],[10,1,11,1],[12,0,17,0],[12,1,14,1],[15,1,17,1],[18,0,21,0],[18,1,21,1],[22,0,26,0],[22,1,26,1],[22,3,26,3],[22,5,25,5],[27,0,27,1]]}
[]
["“2019年计生事业费”项目绩效目标表"]
["项目承担单位：随州市卫生和计划生育委员会"]
["一级指标","二级指标","三级指标","权重","指标解释","评价要点"]
["投入（8分）","项目\n立项","项目立项\n规范性\n（2分）",2,"项目的申请、设立过程是否符合相关要求，用以反映和考核项目立项的规范情况。","①是否有规划；（0.2分）\n②项目是否按照规定的程序申请设立；（0.5分）\n③所提交的文件、材料是否符合相关要求；（0.5分）                                   \n④事前是否已经过必要的可行性研究、专家论证、风险评估、集体决策等；（0.5分）\n⑤项目执行时是否发生重大调整。（0.3分）"]
[]
[]
[]
[]
[null,null,"绩效目标\n合理性\n（2分）",2,"项目是否设定的绩效目标和绩效指标，所设定的目标和指标是否依符合实际，用以反映和考核项目绩效目标与项目实施的相符情况。","①是否设定长期目标、年度目标和绩效指标；（0.5分）                                 ②目标和指标的设计是否符合目标管理规范；（0.5分）                           \n③根据绩效目标和完成情况的对比考核目标设立的合理性；（0.5分）\n④绩效指标是否具有可测性。（0.5分）"]
[null,"资金\n落实","资金到位率（2分）",2,"实际到位资金与计划投入资金的比率，用以反映和考核资金落实情况对项目实施的总体保障程度。","资金到位率=（实际到位资金/计划投入资金）x100%                                    实际到位资金：一定时期（本年度或项目期）内实际落实到具体项目的资金。             \n计划投入资金：一定时期（本年度或项目期）内计划投入到具体项目的资金。（注：分预算资金、配套资金、自筹资金评价）"]
[null,null,"到位及时率（2分）",2,"及时到位资金与应到位资金的比率，用以反映和考核项目资金落实的及时性程度。","到位及时率=（及时到位资金/应到位资金）x100%。         \n及时到位资金：截至规定时点实际落实到具体项目的资金。                        \n应到位资金：按照合同或项目进度要求截至规定时点应落实到具体项目的资金。（注：分预算资金、配套资金、自筹资金评价）"]
["过程\n（12分）","项目\n管理","管理制度\n健全性\n（2分）",2,"项目管理制度是否健全，用以反映和考核项目管理制度对项目顺利实施的保障情况。","①是否已制定或具有相应的项目管理制度；（1分） \n②项目管理制度是否合法、合规、完整。（1分）"]
[null,null,"制度执行\n有效性\n（2分）",2,"项目实施是否符合相关项目管理规定，用以反映和考核项目管理制度的有效执行情况。","①是否遵守相关法律法规和项目管理规定；（0.2分）  \n②项目调整及支出调整手续是否完备；（0.3分）\n③是否严格执行项目管理程序及招投标制、监理制、合同制、项目公示制、政府采购等（针对具体项目对应评价）；（0.5分）\n④项目合同书、验收报告、技术鉴定等资料是否齐全并及时归档； （0.5分）\n⑤项目实施的人员条件、场地设备、信息支撑等是否落实到位。（0.5分）"]
[null,null,"项目质量\n可控性\n（2分）",2,"项目实施单位是否为达到项目质量要求而采取了必需的措施，用以反映和考核项目实施单位对项目质量的控制情况。","①是否已制定或具有相应的项目质量要求或标准；  （1分）                             \n②是否采取了相应的项目质量检查、验收等必需的控制措施或手段。（1分）"]
[null,"财务\n管理","管理制度\n健全性\n（2分）",2,"项目实施单位的财务制度是否健全，用以反映和考核财务管理制度对资金规范、安全运行的保障情况。","①是否已制定或具有相应的项目资金管理办法；（1分）                               \n②项目资金管理办法是否符合相关财务会计制度的规定。（1分）"]
[null,null,"资金使用\n合规性\n（2分）",2,"项目资金使用是否符合相关的财务管理制度规定，用以反映和考核项目资金的规范运行情况。","①是否符合国家财经法规和财务管理制度以及有关专项资金管理办法的规定； （0.2分）                                \n②资金的拨付是否有完整的审批程序和手续；（0.5分) \n③项目的重大开支是否经过评估认证；（0.3分）                                  \n④是否符合项目预算批复或合同规定的用途；(0.5分)                              \n⑤是否存在截留、挤占、挪用、虚列支出等情况。(0.5分)"]
[null,null,"财务监控\n有效性\n（2分）",2,"项目实施单位是否为保障资金的安全、规范运行而采取了必要的监控措施，用以反映和考核项目实施单位对资金运行的控制情况。","①是否已制定或具有相应的监控机制；(1分)\n②是否采取了相应的财务检查等必要的监控措施或手段。(1分)"]
["产出（40分）","项目\n产出","实际完成率\n(10分）",10,"项目实施的实际产出数与计划产出数的比率，用以反映和考核项目产出数量目标的实现程度。","实际完成率=（实际产出数/计划产出数）x100%。\n实际产出数：一定时期（本年度或项目期）内项目实际产出的产品或提供的服务数量。\n计划产出数：项目绩效目标确定的在一定时期（本年度或项目期）内计划产出的产品或提供的服务数量。"]
[null,null,"完成及时率（10分）",10,"项目实际提前完成时间与计划完成时间的比率，用以反映和考核项目产出时效目标的实现程度。","完成及时率=[（计划完成时间-实际完成时间）/计划完成时间]x100%。            \n实际完成时间：项目实施单位完成该项目实际所耗用的时间。                     \n计划完成时间：按照项目实施计划或相关规定完成该项目所需的时间。"]
[null,null,"质量达标率（10分）",10,"项目完成的质量达标产出数与实际产出数的比率，用以反映和考核项目产出质量目标的实现程度。","质量达标率=（质量达标产出数/实际产出数）x100%。                         \n质量达标产出数：一定时期（本年度或项目期）内实际达到既定质量标准的产品或服务数量。\n既定质量标准是指项目实施单位设立绩效目标时依据计划标准、行业标准、历史标准或其他标准而设定的绩效指标值。"]
[null,null,"资金使用率（10分）",10,"项目实际支出与项目到位资金的比率，用以反映和考核项目资金使用情况。","资金使用率=（项目实际支出/项目到位资金）x100%。                          \n实际支出：项目实施单位为完成既定工作目标一定时期（本年度或项目期）内实际所耗费的支出。    \n到位资金：一定时期（本年度或项目期）内实际落实到具体项目的资金。"]
["效果（40分）","项目\n效益","经济效益\n（10分）",40,"项目实施对经济发展所带来的直接或间接影响情况。","此四项指标为设置项目支出绩效评价指标时必须考虑的共性要素，应根据项目实际并结合绩效目标设立情况有选择的进行设置，并将其细化为相应的个性化指标。"]
[null,null,"社会效益 \n（9分）",null,"项目实施对社会发展所带来的直接或间接影响情况。"]
[null,null,"生态效益\n（8分）",null,"项目实施对生态发展所带来的直接或间接影响情况。"]
[null,null,"可持续影响（8分）",null,"项目后续运行及成效发挥的可持续影响情况。"]
[null,null,"社会公众或服务对象满意度（5分）",null,"社会公众或服务对象对项目实施效果的满意程度。","社会公众或服务对象是指因该项目实施而受到影响的部门（单位）、群体或个人。一般采取社会调查的方式。"]
["合计"]

{"sheet":"老干部专项经费项目","index":25,"n_rows":28,"n_cols":6,"rows_kept":28,"merged":[[1,0,1,5],[4,0,11,0],[4,1,9,1],[4,2,8,2],[4,3,8,3],[4,4,8,4],[4,5,8,5],[10,1,11,1],[12,0,17,0],[12,1,14,1],[15,1,17,1],[18,0,21,0],[18,1,21,1],[22,0,26,0],[22,1,26,1],[22,3,26,3],[22,5,25,5],[27,0,27,1]]}
[]
["“2019年老干部专项经费”项目绩效目标表"]
["项目承担单位：随州市委老干部局"]
["一级指标","二级指标","三级指标","权重","指标解释","评价要点"]
["投入（8分）","项目\n立项","项目立项\n规范性\n（2分）",2,"项目的申请、设立过程是否符合相关要求，用以反映和考核项目立项的规范情况。","①是否有规划；（0.2分）\n②项目是否按照规定的程序申请设立；（0.5分）\n③所提交的文件、材料是否符合相关要求；（0.5分）                                   \n④事前是否已经过必要的可行性研究、专家论证、风险评估、集体决策等；（0.5分）\n⑤项目执行时是否发生重大调整。（0.3分）"]
[]
[]
[]
[]
[null,null,"绩效目标\n合理性\n（2分）",2,"项目是否设定的绩效目标和绩效指标，所设定的目标和指标是否依符合实际，用以反映和考核项目绩效目标与项目实施的相符情况。","①是否设定长期目标、年度目标和绩效指标；（0.5分）                                 ②目标和指标的设计是否符合目标管理规范；（0.5分）                           \n③根据绩效目标和完成情况的对比考核目标设立的合理性；（0.5分）\n④绩效指标是否具有可测性。（0.5分）"]
[null,"资金\n落实","资金到位率（2分）",2,"实际到位资金与计划投入资金的比率，用以反映和考核资金落实情况对项目实施的总体保障程度。","资金到位率=（实际到位资金/计划投入资金）x100%                                                             实际到位资金：一定时期（本年度或项目期）内实际落实到具体项目的资金。             \n计划投入资金：一定时期（本年度或项目期）内计划投入到具体项目的资金。（注：分预算资金、配套资金、自筹资金评价）"]
[null,null,"到位及时率（2分）",2,"及时到位资金与应到位资金的比率，用以反映和考核项目资金落实的及时性程度。","到位及时率=（及时到位资金/应到位资金）x100%。         \n及时到位资金：截至规定时点实际落实到具体项目的资金。                        \n应到位资金：按照合同或项目进度要求截至规定时点应落实到具体项目的资金。（注：分预算资金、配套资金、自筹资金评价）"]
["过程\n（12分）","项目\n管理","管理制度\n健全性\n（2分）",2,"项目管理制度是否健全，用以反映和考核项目管理制度对项目顺利实施的保障情况。","①是否已制定或具有相应的项目管理制度；（1分） \n②项目管理制度是否合法、合规、完整。（1分）"]
[null,null,"制度执行\n有效性\n（2分）",2,"项目实施是否符合相关项目管理规定，用以反映和考核项目管理制度的有效执行情况。","①是否遵守相关法律法规和项目管理规定；（0.2分）  \n②项目调整及支出调整手续是否完备；（0.3分）\n③是否严格执行项目管理程序及招投标制、监理制、合同制、项目公示制、政府采购等（针对具体项目对应评价）；（0.5分）\n④项目合同书、验收报告、技术鉴定等资料是否齐全并及时归档； （0.5分）\n⑤项目实施的人员条件、场地设备、信息支撑等是否落实到位。（0.5分）"]
[null,null,"项目质量\n可控性\n（2分）",2,"项目实施单位是否为达到项目质量要求而采取了必需的措施，用以反映和考核项目实施单位对项目质量的控制情况。","①是否已制定或具有相应的项目质量要求或标准；  （1分）                             \n②是否采取了相应的项目质量检查、验收等必需的控制措施或手段。（1分）"]
[null,"财务\n管理","管理制度\n健全性\n（2分）",2,"项目实施单位的财务制度是否健全，用以反映和考核财务管理制度对资金规范、安全运行的保障情况。","①是否已制定或具有相应的项目资金管理办法；（1分）                               \n②项目资金管理办法是否符合相关财务会计制度的规定。（1分）"]
[null,null,"资金使用\n合规性\n（2分）",2,"项目资金使用是否符合相关的财务管理制度规定，用以反映和考核项目资金的规范运行情况。","①是否符合国家财经法规和财务管理制度以及有关专项资金管理办法的规定； （0.2分）                                \n②资金的拨付是否有完整的审批程序和手续；（0.5分) \n③项目的重大开支是否经过评估认证；（0.3分）                                  \n④是否符合项目预算批复或合同规定的用途；(0.5分)                              \n⑤是否存在截留、挤占、挪用、虚列支出等情况。(0.5分)"]
[null,null,"财务监控\n有效性\n（2分）",2,"项目实施单位是否为保障资金的安全、规范运行而采取了必要的监控措施，用以反映和考核项目实施单位对资金运行的控制情况。","①是否已制定或具有相应的监控机制；(1分)\n②是否采取了相应的财务检查等必要的监控措施或手段。(1分)"]
["产出（40分）","项目\n产出","实际完成率\n(10分）",10,"项目实施的实际产出数与计划产出数的比率，用以反映和考核项目产出数量目标的实现程度。","实际完成率=（实际产出数/计划产出数）x100%。\n实际产出数：一定时期（本年度或项目期）内项目实际产出的产品或提供的服务数量。\n计划产出数：项目绩效目标确定的在一定时期（本年度或项目期）内计划产出的产品或提供的服务数量。"]
[null,null,"完成及时率（10分）",10,"项目实际提前完成时间与计划完成时间的比率，用以反映和考核项目产出时效目标的实现程度。","完成及时率=[（计划完成时间-实际完成时间）/计划完成时间]x100%。            \n实际完成时间：项目实施单位完成该项目实际所耗用的时间。                     \n计划完成时间：按照项目实施计划或相关规定完成该项目所需的时间。"]
[null,null,"质量达标率（10分）",10,"项目完成的质量达标产出数与实际产出数的比率，用以反映和考核项目产出质量目标的实现程度。","质量达标率=（质量达标产出数/实际产出数）x100%。                         \n质量达标产出数：一定时期（本年度或项目期）内实际达到既定质量标准的产品或服务数量。\n既定质量标准是指项目实施单位设立绩效目标时依据计划标准、行业标准、历史标准或其他标准而设定的绩效指标值。"]
[null,null,"资金使用率（10分）",10,"项目实际支出与项目到位资金的比率，用以反映和考核项目资金使用情况。","资金使用率=（项目实际支出/项目到位资金）x100%。                          \n实际支出：项目实施单位为完成既定工作目标一定时期（本年度或项目期）内实际所耗费的支出。    \n到位资金：一定时期（本年度或项目期）内实际落实到具体项目的资金。"]
["效果（40分）","项目\n效益","经济效益\n（10分）",40,"项目实施对经济发展所带来的直接或间接影响情况。","此四项指标为设置项目支出绩效评价指标时必须考虑的共性要素，应根据项目实际并结合绩效目标设立情况有选择的进行设置，并将其细化为相应的个性化指标。"]
[null,null,"社会效益 \n（9分）",null,"项目实施对社会发展所带来的直接或间接影响情况。"]
[null,null,"生态效益\n（8分）",null,"项目实施对生态发展所带来的直接或间接影响情况。"]
[null,null,"可持续影响（8分）",null,"项目后续运行及成效发挥的可持续影响情况。"]
[null,null,"社会公众或服务对象满意度（5分）",null,"社会公众或服务对象对项目实施效果的满意程度。","社会公众或服务对象是指因该项目实施而受到影响的部门（单位）、群体或个人。一般采取社会调查的方式。"]
["合计"]

{"sheet":"体彩公益金项目","index":26,"n_rows":22,"n_cols":7,"rows_kept":22,"merged":[[0,0,0,6],[1,2,2,2],[1,3,2,3],[1,4,2,4],[1,5,2,5],[1,6,2,6],[3,0,6,0],[3,1,4,1],[5,1,6,1],[7,0,9,0],[7,1,9,1],[10,0,12,0],[10,1,12,1],[13,0,16,0],[13,1,16,1],[17,0,20,0],[17,1,20,1]]}
["2019年度“体彩公益金”项目资金绩效目标表"]
["一级","二级","三级指标","权重","指标解释","指标说明","评分标准"]
["指标","指标"]
["投   入","项目立项","项目立项规范性",2,"项目的申请、设立过程是否符合相关要求，用以反映和考核项目立项的规范情况。","评价要点：\n总项目：\n①是否有规划；\n②是否按管理办法和分配办法分配资金。\n具体项目：\n①是否有规划；\n②项目是否按照规定的程序申请设立；\n③所提交的文件、材料是否符合相关要求；\n④事前是否已经过必要的可行性研究、专家论证、风险评估、集体决策等；\n⑤项目执行时是否发生重大调整。","1、全部符合得满分；2.一项不符合适当扣分。"]
[null,null,"绩效目标合理性",2,"项目是否设定绩效目标和绩效指标，所设定的绩效目标和指标是否符合实际，用以反映和考核项目绩效目标与项目实施的相符情况。","评价要点：\n①是否设定长期目标、年度目标和绩效指标；\n②目标和指标的设计是否符合目标管理规范；\n③根据绩效目标和完成情况的对比考核目标设立的合理性；\n④绩效指标是否具有可测性。","1、全部符合得满分；2.一项不符合适当扣分。"]
[null,"资金落实","资金到位率",2,"实际到位资金与计划投入资金的比率，用以反映和考核资金落实情况对项目实施的总体保障程度。","资金到位率=（实际到位资金/计划投入资金）×100%。\n实际到位资金：一定时期（本年度或项目期）内实际落实到具体项目的资金。\n计划投入资金：一定时期（本年度或项目期）内计划投入到具体项目的资金。（注：分预算资金、配套资金、自筹资金评价）","1.资金到位率等于100%得满分；2.资金到位率小于80%得0分；3.资金到位率在80%-100%之间，得1分。"]
[null,null,"到位及时率",2,"及时到位资金与应到位资金的比率，用以反映和考核项目资金落实的及时性程度。","到位及时率=（及时到位资金/应到位资金）×100%。\n及时到位资金：截至规定时点实际落实到具体项目的资金。\n应到位资金：按照合同或项目进度要求截至规定时点应落实到具体项目的资金。（注：分预算资金、配套资金、自筹资金评价）","1.资金到位及时率等于100%得满分；2.资金到位及时率小于50%得0分；3.资金到位及时率在50%-100%之间，得1分。"]
["过   程","项目管理","管理制度健全性",2,"项目管理制度是否健全，用以反映和考核项目管理制度对项目顺利实施的保障情况。","评价要点：\n总项目：\n①是否制定项目管理制度；\n②项目管理制度是否合法、合规、完整；\n具体项目：\n①是否已制定或具有相应的项目管理制度；\n②项目管理制度是否合法、合规、完整。","1、全部符合得满分；2.一项不符合适当扣分。"]
[null,null,"制度执行有效性",2,"项目实施是否符合相关项目管理规定，用以反映和考核项目管理制度的有效执行情况。","评价要点：\n总项目：\n①是否按项目管理制度进行管理；\n具体项目：\n①是否遵守相关法律法规和项目管理规定；\n②项目调整及支出调整手续是否完备；\n③是否严格执行项目管理程序及招投标制、监理制、合同制、项目公示制、政府采购等（针对具体项目对应评价）；\n④项目合同书、验收报告、技术鉴定等资料是否齐全并及时归档；\n⑤项目实施的人员条件、场地设备、信息支撑等是否落实到位。","1、全部符合得满分；2.一项不符合适当扣分。"]
[null,null,"项目质量可控性",2,"项目实施单位是否为达到项目质量要求而采取了必需的措施,用以反映和考核项目实施单位对项目质量的控制情况。","评价要点：\n①是否已制定或具有相应的项目质量要求或标准；\n②是否采取了相应的项目质量检查、验收等必需的控制措施或手段。","1、全部符合得满分；2.一项不符合适当扣分。"]
["过   程","财务管理","管理制度健全性",2,"项目实施单位的财务制度是否健全，用以反映和考核财务管理制度对资金规范、安全运行的保障情况。","评价要点：\n①是否已制定或具有相应的项目资金管理办法；\n②项目资金管理办法是否符合相关财务会计制度的规定。","1、全部符合得满分；2.一项不符合适当扣分。"]
[null,null,"资金使用合规性",2,"项目资金使用是否符合相关的财务管理制度规定，用以反映和考核项目资金的规范运行情况。","评价要点：\n①是否符合国家财经法规和财务管理制度以及有关专项资金管理办法的规定；\n②资金的拨付是否有完整的审批程序和手续；\n③项目的重大开支是否经过评估认证；\n④是否符合项目预算批复或合同规定的用途；\n⑤是否存在截留、挤占、挪用、虚列支出等情况。","1、全部符合得满分；2.一项不符合适当扣分。"]
[null,null,"财务监控有效性",2,"项目实施单位是否为保障资金的安全、规范运行而采取了必要的监控措施，用以反映和考核项目实施单位对资金运行的控制情况。","评价要点：\n①是否已制定或具有相应的监控机制；\n②是否采取了相应的财务检查等必要的监控措施或手段。","1、全部符合得满分；2.一项不符合适当扣分。"]
["产   出","项目产出","实际完成率",10,"项目实施的实际产出数与计划产出数的比率，用以反映和考核项目产出数量目标的实现程度。","实际完成率=（实际产出数/计划产出数）×100%。\n实际产出数：一定时期（本年度或项目期）内项目实际产出的产品或提供的服务数量。\n计划产出数：项目绩效目标确定的在一定时期（本年度或项目期）内计划产出的产品或提供的服务数量。","1.实际完成率100%，得满分；2.实际完成率100%以下，按权重得分。"]
[null,null,"完成及时率",10,"项目实际提前完成时间与计划完成时间的比率，用以反映和考核项目产出时效目标的实现程度。","完成及时率=[（计划完成时间-实际完成时间）/计划完成时间]×100%。\n实际完成时间：项目实施单位完成该项目实际所耗用的时间。\n计划完成时间：按照项目实施计划或相关规定完成该项目所需的时间。","1.完成及时率100%，得满分；2.完成及时率100%以下，按权重得分。"]
[null,null,"质量达标率",10,"项目完成的质量达标产出数与实际产出数的比率，用以反映和考核项目产出质量目标的实现程度。","质量达标率=（质量达标产出数/实际产出数）×100%。\n质量达标产出数：一定时期（本年度或项目期）内实际达到既定质量标准的产品或服务数量。\n既定质量标准是指项目实施单位设立绩效目标时依据计划标准、行业标准、历史标准或其他标准而设定的绩效指标值。","1.质量达标率100%，得满分；2.质量达标率100%以下按权重评分。"]
[null,null,"资金使用率",10,"项目实际支出与项目到位资金的比率，用以反映和考核项目资金使用情况。","资金使用率=项目实际支出/项目到位资金×100%。\n实际支出：项目实施单位为完成既定工作目标一定时期（本年度或项目期）内实际所耗费的支出。\n到位资金：一定时期（本年度或项目期）内实际落实到具体项目的资金。","1.资金使用率100%，得满分；2.资金使用率增减1%-20%得8分；3.资金使用率增减21%-50%得5分；4.资金使用率增减大于50%得0分。"]
["效   果","项目效益","经济效益",10,"项目实施对经济发展所带来的直接或间接影响情况。","项目实施对经济发展所带来的直接或间接影响情况。","根据产生的效果评分"]
[null,null,"社会效益",10,"项目实施对社会发展所带来的直接或间接影响情况。","项目实施对社会发展所带来的直接或间接影响情况。","根据产生的效果评分"]
[null,null,"可持续影响",10,"项目后续运行及成效发挥的可持续影响情况。","项目后续运行及成效发挥的可持续影响情况。","根据产生的影响评分"]
[null,null,"社会公众认知度",10,"社会公众对土地储备政策的了解情况和体彩公益金资金支出带来的社会效果","社会公众对土地储备政策的了解情况和体彩公益金资金支出带来的社会效果","按照调查问卷的得分，优秀（90-100分）、良好（70-89分）、合格（60-69分）、不合格（60分以下）给予该项指标打分：优秀（6分）；良好（4分）；合格（4分）；不合格（0）。"]
[null,null,"合计",100]

{"sheet":"福彩公益金项目","index":27,"n_rows":72,"n_cols":6,"rows_kept":72,"merged":[[0,0,0,5],[1,2,2,2],[1,3,2,3],[1,4,2,4],[1,5,2,5],[3,0,23,0],[3,2,12,2],[3,3,12,3],[3,4,12,4],[13,2,17,2],[13,3,17,3],[13,4,17,4],[18,2,20,2],[18,3,20,3],[18,4,20,4],[21,2,23,2],[21,3,23,3],[21,4,23,4],[24,0,42,0],[24,2,30,2],[24,3,30,3],[24,4,30,4],[31,2,39,2],[31,3,39,3],[31,4,39,4],[40,2,42,2],[40,3,42,3],[40,4,42,4],[43,0,54,0],[43,2,45,2],[43,3,45,3],[43,4,45,4],[46,2,51,2],[46,3,51,3],[46,4,51,4],[52,2,54,2],[52,3,54,3],[52,4,54,4],[55,0,66,0],[55,2,57,2],[55,3,57,3],[55,4,57,4],[58,2,60,2],[58,3,60,3],[58,4,60,4],[61,2,63,2],[61,3,63,3],[61,4,63,4],[64,2,66,2],[64,3,66,3],[64,4,66,4],[67,0,71,0],[67,3,71,3],[67,5,70,5],[72,0,72,5]]}
["随州市2019年度“福彩公益金”项目绩效目标表"]
["一级","二级","三级指标","权重","指标解释","指标说明"]
["指标","指标"]
["投   入","项目","项目立项规范性",2,"项目的申请、设立过程是否符合相关要求，用以反映和考核项目立项的规范情况。","评价要点："]
[null,"立项",{"$nulls":3},"总项目："]
[{"$nulls":5},"①是否有规划；"]
[{"$nulls":5},"②是否按管理办法和分配办法分配资金。"]
[{"$nulls":5},"具体项目："]
[{"$nulls":5},"①是否有规划；"]
[{"$nulls":5},"②项目是否按照规定的程序申请设立；"]
[{"$nulls":5},"③所提交的文件、材料是否符合相关要求；"]
[{"$nulls":5},"④事前是否已经过必要的可行性研究、专家论证、风险评估、集体决策等；"]
[{"$nulls":5},"⑤项目执行时是否发生重大调整。"]
[null,null,"绩效目标合理性",2,"项目是否设定绩效目标和绩效指标，所设定的绩效目标和指标是否符合实际，用以反映和考核项目绩效目标与项目实施的相符情况。","评价要点："]
[{"$nulls":5},"①是否设定长期目标、年度目标和绩效指标；"]
[{"$nulls":5},"②目标和指标的设计是否符合目标管理规范；"]
[{"$nulls":5},"③根据绩效目标和完成情况的对比考核目标设立的合理性；"]
[{"$nulls":5},"④绩效指标是否具有可测性。"]
[null,"资金","资金到位率",2,"实际到位资金与计划投入资金的比率，用以反映和考核资金落实情况对项目实施的总体保障程度。","资金到位率=（实际到位资金/计划投入资金）×100%。"]
[null,"落实",{"$nulls":3},"实际到位资金：一定时期（本年度或项目期）内实际落实到具体项目的资金。"]
[{"$nulls":5},"计划投入资金：一定时期（本年度或项目期）内计划投入到具体项目的资金。（注：分预算资金、配套资金、自筹资金评价）"]
[null,null,"到位及时率",2,"及时到位资金与应到位资金的比率，用以反映和考核项目资金落实的及时性程度。","到位及时率=（及时到位资金/应到位资金）×100%。"]
[{"$nulls":5},"及时到位资金：截至规定时点实际落实到具体项目的资金。"]
[{"$nulls":5},"应到位资金：按照合同或项目进度要求截至规定时点应落实到具体项目的资金。（注：分预算资金、配套资金、自筹资金评价）"]
["过   程","项目","管理制度健全性",2,"项目管理制度是否健全，用以反映和考核项目管理制度对项目顺利实施的保障情况。","评价要点："]
[null,"管理",{"$nulls":3},"总项目："]
[{"$nulls":5},"①是否制定项目管理制度；"]
[{"$nulls":5},"②项目管理制度是否合法、合规、完整；"]
[{"$nulls":5},"具体项目："]
[{"$nulls":5},"①是否已制定或具有相应的项目管理制度；"]
[{"$nulls":5},"②项目管理制度是否合法、合规、完整。"]
[null,null,"制度执行有效性",2,"项目实施是否符合相关项目管理规定，用以反映和考核项目管理制度的有效执行情况。","评价要点："]
[{"$nulls":5},"总项目："]
[{"$nulls":5},"①是否按项目管理制度进行管理；"]
[{"$nulls":5},"具体项目："]
[{"$nulls":5},"①是否遵守相关法律法规和项目管理规定；"]
[{"$nulls":5},"②项目调整及支出调整手续是否完备；"]
[{"$nulls":5},"③是否严格执行项目管理程序及招投标制、监理制、合同制、项目公示制、政府采购等（针对具体项目对应评价）；"]
[{"$nulls":5},"④项目合同书、验收报告、技术鉴定等资料是否齐全并及时归档；"]
[{"$nulls":5},"⑤项目实施的人员条件、场地设备、信息支撑等是否落实到位。"]
[null,null,"项目质量可控性",2,"项目实施单位是否为达到项目质量要求而采取了必需的措施,用以反映和考核项目实施单位对项目质量的控制情况。","评价要点："]
[{"$nulls":5},"①是否已制定或具有相应的项目质量要求或标准；"]
[{"$nulls":5},"②是否采取了相应的项目质量检查、验收等必需的控制措施或手段。"]
["过   程","财务","管理制度健全性",2,"项目实施单位的财务制度是否健全，用以反映和考核财务管理制度对资金规范、安全运行的保障情况。","评价要点："]
[null,"管理",{"$nulls":3},"①是否已制定或具有相应的项目资金管理办法；"]
[{"$nulls":5},"②项目资金管理办法是否符合相关财务会计制度的规定。"]
[null,null,"资金使用合规性",2,"项目资金使用是否符合相关的财务管理制度规定，用以反映和考核项目资金的规范运行情况。","评价要点："]
[{"$nulls":5},"①是否符合国家财经法规和财务管理制度以及有关专项资金管理办法的规定；"]
[{"$nulls":5},"②资金的拨付是否有完整的审批程序和手续；"]
[{"$nulls":5},"③项目的重大开支是否经过评估认证；"]
[{"$nulls":5},"④是否符合项目预算批复或合同规定的用途；"]
[{"$nulls":5},"⑤是否存在截留、挤占、挪用、虚列支出等情况。"]
[null,null,"财务监控有效性",2,"项目实施单位是否为保障资金的安全、规范运行而采取了必要的监控措施，用以反映和考核项目实施单位对资金运行的控制情况。","评价要点："]
[{"$nulls":5},"①是否已制定或具有相应的监控机制；"]
[{"$nulls":5},"②是否采取了相应的财务检查等必要的监控措施或手段。"]
["产   出","项目","实际完成率",10,"项目实施的实际产出数与计划产出数的比率，用以反映和考核项目产出数量目标的实现程度。","实际完成率=（实际产出数/计划产出数）×100%。"]
[null,"产出",{"$nulls":3},"实际产出数：一定时期（本年度或项目期）内项目实际产出的产品或提供的服务数量。"]
[{"$nulls":5},"计划产出数：项目绩效目标确定的在一定时期（本年度或项目期）内计划产出的产品或提供的服务数量。"]
[null,null,"完成及时率",10,"项目实际提前完成时间与计划完成时间的比率，用以反映和考核项目产出时效目标的实现程度。","完成及时率=[（计划完成时间-实际完成时间）/计划完成时间]×100%。"]
[{"$nulls":5},"实际完成时间：项目实施单位完成该项目实际所耗用的时间。"]
[{"$nulls":5},"计划完成时间：按照项目实施计划或相关规定完成该项目所需的时间。"]
[null,null,"质量达标率",10,"项目完成的质量达标产出数与实际产出数的比率，用以反映和考核项目产出质量目标的实现程度。","质量达标率=（质量达标产出数/实际产出数）×100%。"]
[{"$nulls":5},"质量达标产出数：一定时期（本年度或项目期）内实际达到既定质量标准的产品或服务数量。"]
[{"$nulls":5},"既定质量标准是指项目实施单位设立绩效目标时依据计划标准、行业标准、历史标准或其他标准而设定的绩效指标值。"]
[null,null,"资金使用率",10,"项目实际支出与项目到位资金的比率，用以反映和考核项目资金使用情况。","资金使用率=项目实际支出/项目到位资金×100%。"]
[{"$nulls":5},"实际支出：项目实施单位为完成既定工作目标一定时期（本年度或项目期）内实际所耗费的支出。"]
[{"$nulls":5},"到位资金：一定时期（本年度或项目期）内实际落实到具体项目的资金。"]
["效   果","项目","经济效益",40,"项目实施对经济发展所带来的直接或间接影响情况。","此四项指标为设置项目支出绩效评价指标时必须考虑的共性要素，应根据项目实际并结合绩效目标设立情况有选择的进行设置，并将其细化为相应的个性化指标。"]
[null,"效益","社会效益",null,"项目实施对社会发展所带来的直接或间接影响情况。"]
[null,null,"生态效益",null,"项目实施对生态环境所带来的直接或间接影响情况。"]
[null,null,"可持续影响",null,"项目后续运行及成效发挥的可持续影响情况。"]
[null,null,"社会公众或服务对象满意度",null,"社会公众或服务对象对项目实施效果的满意程度。","社会公众或服务对象是指因该项目实施而受到影响的部门（单位）、群体或个人。一般采取社会调查的方式。"]

{"sheet":"政府住房基金项目","index":28,"n_rows":23,"n_cols":8,"rows_kept":23,"merged":[[1,0,1,7],[2,0,3,0],[2,1,3,1],[2,2,3,2],[2,3,3,3],[2,4,3,4],[2,5,3,5],[2,6,3,6],[2,7,3,7],[4,0,7,0],[4,1,7,1],[4,2,5,2],[4,3,5,3],[6,2,7,2],[6,3,7,3],[8,0,13,0],[8,1,13,1],[8,2,10,2],[8,3,10,3],[11,2,13,2],[11,3,13,3],[14,0,17,0],[14,1,17,1],[14,2,17,2],[14,3,17,3],[18,0,21,0],[18,1,21,1],[18,2,21,2],[18,3,21,3],[18,6,20,6]]}
[]
["随州市住房公积金中心2019度“政府住房基金”绩效目标表"]
["一级指标","分值","二级指标","分值","三级指标","分值","指标评价标准"," 指标解释及说明 "]
[]
["投入",8,"项目立项",4,"项目立项规范性",2,"1.全部符合得2分；2、其中一项不符0分","项目的申请、设立过程是否符合相关要求，用以反映和考核项目立项的规范情况。               评价要点：                                 总项目：                                   ①是否有规划；②是否按照管理办法和分配办法分配资金。                                   具体项目：①是否有规划；②项目是否按照规定的程序申请设立；③所提交的文件、材料是否符合相关要求；④事前是否已经过必要 的可行性研究、专家论证、风险评估、集体决策等；⑤项目执行时是否发生重大调整。"]
[{"$nulls":4},"绩效目标合理性",2,"1.全部符合得2分；2.其中一项不符0分。","项目是否设定绩效目标和绩效指标，所设定的绩效目标和指标是否符合实际，用以反映和考核项目绩效目标与项目实施的相符情况。                                    评价要点：①是否设定长期目标、年度目标和绩效指标；②目标和指标的设计是否符合目标管理规范；③根据绩效目标和完成情况的对比考核目标设立的合理性；④绩效指标是否具有可测性。"]
[null,null,"资金落实",4,"资金到位率",2,"1.资金到位率等于100%得满分；2.资金到位率小于50%得0分；3.资金到位率在50%-100%之间，得1分。","实际到位资金与计划投入资金的比率，用以反映和考核资金落实情况对项目实施的总体保障程度。   资金到位率=（实际到位资金/计划投入资金）*100%。                                    实际到位资金：一定时期（本年度或项目期）内实际落实到具体项目的资金。                    计划投入资金：一定时期（本年度或项目期）内计划投入到具体项目的资金。（注：分预算资金。配套资金、自筹资金评价）"]
[{"$nulls":4},"到位及时率",2,"1.资金到位及时率等于100%得满分；2.资金到位及时率小于50%得0分；3.资金到位及时率在50%-100%之间，得1分。","及时到位资金与应到位资金的比率，用以反映和考核项目资金落实的及时性程度。                          到位及时率=（及时到位资金/应到位资金）*100%。                                                   及时到位资金：截止规定时点实际落实到具体项目的资金。                                                  应到位资金：按照合同或项目进度要求截止规定时点应落实到具体项目的资金。（注：分预算资金、配套资金、自筹资金评价）"]
["过程                                                                                                                                       ",12,"项目管理",6,"管理制度健全性",2,"1、全部符合得2分；2.一项不符合得0分。","项目管理制度是否健全，用于反映和考核项目管理制度对项目顺利实施的保障情况。             评价要点：                                     总项目：①是否制定项目管理制度；②项目管理制度是否合法、合规、完整；                      具体项目：①是否已制定或具有相应的项目管理制度；②项目管理制度是否合法、合规、完整。"]
[{"$nulls":4},"制度执行有效性",2,"1、全部符合得2分；2.一项不符合得0分。","项目实施是否符合相关项目管理规定，用以反映和考核项目管理制度的有效执行情况。           评价要点：                                 总项目：①是否按照项目管理制度进行管理；    具体项目：①是否遵守相关法律法规和项目管理规定；②项目调整及支出调整手续是否完备；③是否严格执行项目管理程序及招投标制、监理制、合同制、项目公示制、政府采购制等（针对具体项目对应评价）；④项目合同书、验收报告、技术鉴定等资料是否齐全并及时归档；⑤项目实施的人员条件、场地设备、信息支撑扥是否落实到位。"]
[{"$nulls":4},"项目质量可控性",2,"1、全部符合得2分；2.一项不符合得0分。","项目实施单位是否为达到项目质量要求而采取了必要的措施，用以反映和考核项目实施单位对项目质量的控制情况。                             评价要点：①是否已制定或具有相应的项目质量要求或标准；②是否采取了相应的项目质量检查、验收等必需的控制措施或手段。"]
[null,null,"财务管理",6,"管理制度健全性",2,"1、全部符合得2分；2.一项不符合得0分。","项目实施单位的财务制度是否健全，用以反映和考核财务管理制度对就规范、安全运行的保障情况。评价要点：①是否已制定或具有相应的项目资金管理办法；②项目资金管理办法是否符合相关财务会计制度的规定。"]
[{"$nulls":4},"资金使用合规性",2,"1、符合全部五项（2分）；2、符合其中四项（1.5分）；3、符合其中三项（1 分）；4、符合其中二项（0.5 分）；5、符合其中一项及以下（0 分）。","项目资金使用是否符合相关的财务管理制度规定，用以反映和考核项目资金的规范运行情况 。    评价要点：①是否符合国家财经法规和财务管理制度以及有关专项资金管理办法的规定；②资金的拨付是否有完整的审批程序和手续；③项目的重大开支是否经过评估认证；④是否符合项目预算批复或合同规定的用途；⑤是否存在截留、挤占、挪用、虚列开支等情况。"]
[{"$nulls":4},"财务监管有效性",2,"1、全部符合（2分）；2、其中一项不符合（0 分）。","项目实施单位是否为保障资金的安全、规范运行而采取了必要的监控措施，用以反映和考核项目实施单位对资金运行的控制情况。                 评价要点：①是否已制定或具有相应的监控机制；②是否采取了相应的财务检查等必要的监控措施或手段。"]
["产出",40,"项目产出",40,"实际完成率",10,"1、实际完成率等于100%得满分；2、实际完成率大于或小于100%，按完成率得分。","项目实施的实际产出数与计划产出数的比率，用以反映和考核项目产出数量目标的实现程度。        实际完成率=（实际产出数/计划产出数）*100%。实际产出数：一定时期（本年度或项目期）内项目实际产出的产品或提供的服务数量。                                  计划产出数：项目绩效目标确定的在一定时期（本年度 或项目期）内计划产出的产品或提供的服务数量。"]
[{"$nulls":4},"完成及时率",10,"1、完成及时率等于100%得满分；2、完成及时率大于或小于100%，按完成率得分。","项目实际提前完成时间与计划完成时间的比率，用以反映和考核项目产出时效目标的实现程度。    完成及时率=【（计划完成时间-实际完成时间）/计划完成时间】*100%。                                实际完成时间：项目实施单位完成该项目实际所耗用的时间。                                 计划完成时间：按照项目实施计划或相关规定完成该项目所需的时间。"]
[{"$nulls":4},"质量达标率",10,"1、按质按量按时全面完成得满分；2、不符一项扣5分；3、未全面完成得0分。","项目完成的质量达标产出数与实际产出数的比率，用以反映和考核项目产出质量目标的实现程度。 质量达标率=（质量达标产出数/实际产出数）*100%。                                   质量达标产出数：一定时期（本年度或项目期）内实际达到既定质量标准的产品或服务数量。既定质量标准是指项目实施单位设立绩效目标时依据计划标准 、行业标准、历史标准或其他标准而设定的绩效指标值。"]
[{"$nulls":4},"资金使用率",10,"1、资金使用率等于100%得满分；2、资金使用率大于或小于100%，按完成率得分。","项目实际支出与项目到位资金的比率，用以反映和考核项目资金使用情况。                              资金使用率=项目实际支出/项目到位资金*100%。实际支出：项目实施单位为完成既定工作目标一定时期（本年度或项目期）内实际所耗费的支出。 到位资金：一定时期（本年度或项目期）内实际落实到具体项目的资金。"]
["效果",40,"项目效益",40,"经济效益",10,"是否取得了良好的经济、社会效益；根据情况适当扣分。","项目实施对经济发展所带来的直接或间接影响情况。"]
[{"$nulls":4},"社会效益",10,null,"项目实施对社会发展所带来的直接或间接影响情况。"]
[{"$nulls":4},"可持续影响",10,null,"项目后续运行及成效发挥的可持续影响情况。"]
[{"$nulls":4},"社会公众或服务对象满意度",10,"按照满意度调查的优秀（90-100分）、良好（70-89分）、合格（60-69分）、不合格（60分以下）给予该项指标打分","通过问卷调查了解社会公众对或服务对象对项目实施效果的满意程度。社会公众或服务对象是指因该项目实施而受到影响的部门（单位）、群体或个人。"]
["合计",{"$f":"SUM(B5:B22)","v":100},null,{"$f":"SUM(D5:D22)","v":100},null,{"$f":"SUM(F5:F22)","v":100}]

{"sheet":"土地储备债券项目","index":29,"n_rows":73,"n_cols":7,"rows_kept":73,"merged":[[0,0,0,6],[1,2,2,2],[1,3,2,3],[1,4,2,4],[1,5,2,5],[1,6,2,6],[3,0,23,0],[3,2,12,2],[3,3,12,3],[3,4,12,4],[3,6,12,6],[13,2,17,2],[13,3,17,3],[13,4,17,4],[13,6,17,6],[18,2,20,2],[18,3,20,3],[18,4,20,4],[18,6,20,6],[21,2,23,2],[21,3,23,3],[21,4,23,4],[21,6,23,6],[24,0,42,0],[24,2,30,2],[24,3,30,3],[24,4,30,4],[24,6,30,6],[31,2,39,2],[31,3,39,3],[31,4,39,4],[31,6,39,6],[40,2,42,2],[40,3,42,3],[40,4,42,4],[40,6,42,6],[43,0,54,0],[43,2,45,2],[43,3,45,3],[43,4,45,4],[43,6,45,6],[46,2,51,2],[46,3,51,3],[46,4,51,4],[46,6,51,6],[52,2,54,2],[52,3,54,3],[52,4,54,4],[52,6,54,6],[55,0,66,0],[55,2,57,2],[55,3,57,3],[55,4,57,4],[55,6,57,6],[58,2,60,2],[58,3,60,3],[58,4,60,4],[58,6,60,6],[61,2,63,2],[61,3,63,3],[61,4,63,4],[61,6,63,6],[64,2,66,2],[64,3,66,3],[64,4,66,4],[64,6,66,6],[67,0,71,0]]}
["2019年度“土地储备债券”项目绩效目标表"]
["一级","二级","三级指标","权重","指标解释","指标说明","评分标准"]
["指标","指标"]
["投   入","项目","项目立项规范性",2,"项目的申请、设立过程是否符合相关要求，用以反映和考核项目立项的规范情况。","评价要点：","1、全部符合得满分；2.一项不符合适当扣分。"]
[null,"立项",{"$nulls":3},"总项目："]
[{"$nulls":5},"①是否有规划；"]
[{"$nulls":5},"②是否按管理办法和分配办法分配资金。"]
[{"$nulls":5},"具体项目："]
[{"$nulls":5},"①是否有规划；"]
[{"$nulls":5},"②项目是否按照规定的程序申请设立；"]
[{"$nulls":5},"③所提交的文件、材料是否符合相关要求；"]
[{"$nulls":5},"④事前是否已经过必要的可行性研究、专家论证、风险评估、集体决策等；"]
[{"$nulls":5},"⑤项目执行时是否发生重大调整。"]
[null,null,"绩效目标合理性",2,"项目是否设定绩效目标和绩效指标，所设定的绩效目标和指标是否符合实际，用以反映和考核项目绩效目标与项目实施的相符情况。","评价要点：","1、全部符合得满分；2.一项不符合适当扣分。"]
[{"$nulls":5},"①是否设定长期目标、年度目标和绩效指标；"]
[{"$nulls":5},"②目标和指标的设计是否符合目标管理规范；"]
[{"$nulls":5},"③根据绩效目标和完成情况的对比考核目标设立的合理性；"]
[{"$nulls":5},"④绩效指标是否具有可测性。"]
[null,"资金","资金到位率",2,"实际到位资金与计划投入资金的比率，用以反映和考核资金落实情况对项目实施的总体保障程度。","资金到位率=（实际到位资金/计划投入资金）×100%。","1.资金到位率等于100%得满分；2.资金到位率小于80%得0分；3.资金到位率在80%-100%之间，得1分。"]
[null,"落实",{"$nulls":3},"实际到位资金：一定时期（本年度或项目期）内实际落实到具体项目的资金。"]
[{"$nulls":5},"计划投入资金：一定时期（本年度或项目期）内计划投入到具体项目的资金。（注：分预算资金、配套资金、自筹资金评价）"]
[null,null,"到位及时率",2,"及时到位资金与应到位资金的比率，用以反映和考核项目资金落实的及时性程度。","到位及时率=（及时到位资金/应到位资金）×100%。","1.资金到位及时率等于100%得满分；2.资金到位及时率小于50%得0分；3.资金到位及时率在50%-100%之间，得1分。"]
[{"$nulls":5},"及时到位资金：截至规定时点实际落实到具体项目的资金。"]
[{"$nulls":5},"应到位资金：按照合同或项目进度要求截至规定时点应落实到具体项目的资金。（注：分预算资金、配套资金、自筹资金评价）"]
["过   程","项目","管理制度健全性",2,"项目管理制度是否健全，用以反映和考核项目管理制度对项目顺利实施的保障情况。","评价要点：","1、全部符合得满分；2.一项不符合适当扣分。"]
[null,"管理",{"$nulls":3},"总项目："]
[{"$nulls":5},"①是否制定项目管理制度；"]
[{"$nulls":5},"②项目管理制度是否合法、合规、完整；"]
[{"$nulls":5},"具体项目："]
[{"$nulls":5},"①是否已制定或具有相应的项目管理制度；"]
[{"$nulls":5},"②项目管理制度是否合法、合规、完整。"]
[null,null,"制度执行有效性",2,"项目实施是否符合相关项目管理规定，用以反映和考核项目管理制度的有效执行情况。","评价要点：","1、全部符合得满分；2.一项不符合适当扣分。"]
[{"$nulls":5},"总项目："]
[{"$nulls":5},"①是否按项目管理制度进行管理；"]
[{"$nulls":5},"具体项目："]
[{"$nulls":5},"①是否遵守相关法律法规和项目管理规定；"]
[{"$nulls":5},"②项目调整及支出调整手续是否完备；"]
[{"$nulls":5},"③是否严格执行项目管理程序及招投标制、监理制、合同制、项目公示制、政府采购等（针对具体项目对应评价）；"]
[{"$nulls":5},"④项目合同书、验收报告、技术鉴定等资料是否齐全并及时归档；"]
[{"$nulls":5},"⑤项目实施的人员条件、场地设备、信息支撑等是否落实到位。"]
[null,null,"项目质量可控性",2,"项目实施单位是否为达到项目质量要求而采取了必需的措施,用以反映和考核项目实施单位对项目质量的控制情况。","评价要点：","1、全部符合得满分；2.一项不符合适当扣分。"]
[{"$nulls":5},"①是否已制定或具有相应的项目质量要求或标准；"]
[{"$nulls":5},"②是否采取了相应的项目质量检查、验收等必需的控制措施或手段。"]
["过   程","财务","管理制度健全性",2,"项目实施单位的财务制度是否健全，用以反映和考核财务管理制度对资金规范、安全运行的保障情况。","评价要点：","1、全部符合得满分；2.一项不符合适当扣分。"]
[null,"管理",{"$nulls":3},"①是否已制定或具有相应的项目资金管理办法；"]
[{"$nulls":5},"②项目资金管理办法是否符合相关财务会计制度的规定。"]
[null,null,"资金使用合规性",2,"项目资金使用是否符合相关的财务管理制度规定，用以反映和考核项目资金的规范运行情况。","评价要点：","1、全部符合得满分；2.一项不符合适当扣分。"]
[{"$nulls":5},"①是否符合国家财经法规和财务管理制度以及有关专项资金管理办法的规定；"]
[{"$nulls":5},"②资金的拨付是否有完整的审批程序和手续；"]
[{"$nulls":5},"③项目的重大开支是否经过评估认证；"]
[{"$nulls":5},"④是否符合项目预算批复或合同规定的用途；"]
[{"$nulls":5},"⑤是否存在截留、挤占、挪用、虚列支出等情况。"]
[null,null,"财务监控有效性",2,"项目实施单位是否为保障资金的安全、规范运行而采取了必要的监控措施，用以反映和考核项目实施单位对资金运行的控制情况。","评价要点：","1、全部符合得满分；2.一项不符合适当扣分。"]
[{"$nulls":5},"①是否已制定或具有相应的监控机制；"]
[{"$nulls":5},"②是否采取了相应的财务检查等必要的监控措施或手段。"]
["产   出","项目","实际完成率",10,"项目实施的实际产出数与计划产出数的比率，用以反映和考核项目产出数量目标的实现程度。","实际完成率=（实际产出数/计划产出数）×100%。","1.实际完成率100%，得满分；2.实际完成率100%以下，按权重得分。"]
[null,"产出",{"$nulls":3},"实际产出数：一定时期（本年度或项目期）内项目实际产出的产品或提供的服务数量。"]
[{"$nulls":5},"计划产出数：项目绩效目标确定的在一定时期（本年度或项目期）内计划产出的产品或提供的服务数量。"]
[null,null,"完成及时率",10,"项目实际提前完成时间与计划完成时间的比率，用以反映和考核项目产出时效目标的实现程度。","完成及时率=[（计划完成时间-实际完成时间）/计划完成时间]×100%。","1.完成及时率100%，得满分；2.完成及时率100%以下，按权重得分。"]
[{"$nulls":5},"实际完成时间：项目实施单位完成该项目实际所耗用的时间。"]
[{"$nulls":5},"计划完成时间：按照项目实施计划或相关规定完成该项目所需的时间。"]
[null,null,"质量达标率",10,"项目完成的质量达标产出数与实际产出数的比率，用以反映和考核项目产出质量目标的实现程度。","质量达标率=（质量达标产出数/实际产出数）×100%。","1.质量达标率100%，得满分；2.质量达标率100%以下按权重评分。"]
[{"$nulls":5},"质量达标产出数：一定时期（本年度或项目期）内实际达到既定质量标准的产品或服务数量。"]
[{"$nulls":5},"既定质量标准是指项目实施单位设立绩效目标时依据计划标准、行业标准、历史标准或其他标准而设定的绩效指标值。"]
[null,null,"资金使用率",10,"项目实际支出与项目到位资金的比率，用以反映和考核项目资金使用情况。","资金使用率=项目实际支出/项目到位资金×100%。","1.资金使用率100%，得满分；2.资金使用率100%以下按权重评分。"]
[{"$nulls":5},"实际支出：项目实施单位为完成既定工作目标一定时期（本年度或项目期）内实际所耗费的支出。"]
[{"$nulls":5},"到位资金：一定时期（本年度或项目期）内实际落实到具体项目的资金。"]
["效   果","项目","经济效益",10,"项目实施对经济发展所带来的直接或间接影响情况。","项目实施对经济发展所带来的直接或间接影响情况。","根据产生的效果评分"]
[null,"效益","社会效益",8,"项目实施对社会发展所带来的直接或间接影响情况。","项目实施对社会发展所带来的直接或间接影响情况。","根据产生的效果评分"]
[null,null,"生态效益",8,"项目实施对生态环境所带来的直接或间接影响情况。","项目实施对生态环境所带来的直接或间接影响情况。","根据产生的效果评分"]
[null,null,"可持续影响",8,"项目后续运行及成效发挥的可持续影响情况。","项目后续运行及成效发挥的可持续影响情况。","根据产生的影响评分"]
[null,null,"社会公众认知度",6,"社会公众对土地储备政策的了解情况和土地储备债券资金支出带来的社会效果","社会公众对土地储备政策的了解情况和土地储备债券资金支出带来的社会效果","按照调查问卷的得分，优秀（90-100分）、良好（70-89分）、合格（60-69分）、不合格（60分以下）给予该项指标打分：优秀（6分）；良好（4分）；合格（4分）；不合格（0）。"]
[null,null,"合计",100]

{"sheet":"城区主街道环卫市场化改革项目","index":30,"n_rows":23,"n_cols":5,"rows_kept":23,"merged":[[0,0,0,4],[2,0,3,0],[4,0,5,0],[6,0,8,0],[9,0,11,0],[12,0,17,0],[13,1,14,1],[15,1,16,1],[15,2,16,2],[15,3,16,3],[15,4,16,4],[18,0,21,0],[18,1,19,1]]}
["2019年度随州市“城区主街道环卫市场化改革”项目绩效目标表"]
["一级指标","二级指标","三级指标内容","指标值","分值"]
["项目前期","项目立项","项目立项科学、合理、规范","科学、合理、规范",4.5]
[null,"项目目标","项目目标科学、完整、细化","科学、完整、细化",4.5]
["资金落实","资金到位额度","实际到位资金与计划投入资金的比率",{"v":1,"d":"100%"},3]
[null,"资金到位时效","资金实际到位时间与计划到位时间比","一致",3]
["业务管理","管理制度","项目实施单位的业务管理制度健全、规范、合规","健全、规范、合规",5]
[null,"制度执行","项目实施符合相关业务管理规定","符合",5]
[null,"质量控制","保障项目质量要求采取的措施","完整、有效",5]
["财务管理","管理制度","财务管理制度科学、规范、完整","科学、规范、完整",5]
[null,"资金使用","使用合规性","合规",5]
[null,"财务监控","监控有效","有效",5]
["产出指标","数量指标","清扫、洒水、冲洗、保洁一体化作业，机械化作业率70%以上，卫生无死角","≥70%",10]
[null,"质量指标","道路清扫保洁到位",{"v":1,"d":"100%"},5]
[null,null,"公厕设施维修保养及时，设施完好无损",{"v":1,"d":"100%"},5]
[null,"完成及时率","收集、清运及时","及时",10]
[]
[null,"资金使用率","实际支出完全符合规定，预算执行率100%",{"v":1,"d":"100%"},5]
["项目效益","社会效益","公开招投标，成本合理","合理",5]
[null,null,"提高管理水平，提高质量","大力提高",5]
[null,"环境效益","环境改善","洁美随州",5]
[null,"满意度","服务对象满意度","满意度≥95%",5]
["合计",{"$nulls":3},100]

{"sheet":"污水处理运行经费项目","index":31,"n_rows":21,"n_cols":5,"rows_kept":21,"merged":[[0,0,0,4],[1,0,2,0],[1,1,2,1],[1,2,2,2],[1,3,2,3],[1,4,2,4],[3,0,7,0],[3,1,5,1],[6,1,7,1],[8,0,13,0],[8,1,10,1],[11,1,13,1],[14,0,17,0],[14,1,17,1],[18,0,19,0]]}
["2019年度“污水处理运行经费”项目绩效目标表"]
["一级指标","二级指标","三级指标 ","指标解释和说明","评分标准"]
[]
["投入管理(15分)","项目立项（9分）","立项规范性（3分）","项目的申请、设立过程是否符合相关要求，用以反映和考核项目立项的规范情况。评价要点：1.项目是否按规定的程序申请设立；2.所提交材料、文件是否符合相关的要求；3.事前是否已经过必要的可行性研究、专家论证、风险评估集体决策等。","1、全部符合得3分；2.一项不符合得0分。"]
[null,null,"绩效目标合理性（3分）","项目所设定的绩效目标是否依据充分，是否符合客观实际，用以反映和考核项目绩效目标与项目实施的相符情况。评价要点：1.是否符合国家相关法律法规、国民经济规划和政府决策；2.是否与项目实施单位或者委托单位职责密切相关；3.项目是否促进事业发展所必需；4.项目预期产出效益和效果是否符合正常的业绩水平。","1、全部符合得3分；2.一项不符合适当扣分。"]
[null,null,"绩效指标明确性（3分）","依据绩效目标设定的绩效指标是否清晰、细化、可衡量等，用以反映和考核项目绩效目标的明细化情况。评价要点：1.是否将项目绩效目标细化分解为具体的目标；2.是否通过清晰、可衡量的指标值予以体现；3.是否与项目年度任务数或计划数相对应；4.是否与预算确定项目投资额或资金量相匹配。","1、全部符合得3分；2.一项不符合得0分。"]
[null,"资金落实（6分）","资金到位率（3分）","实际到位资金与计划投入资金的比率，用以反映资金落实情况对项目实施的总体保障程度。资金到位率=（实际到位资金/计划投入资金）*100%，实际到位资金：一定时间（本年度或项目期）内实际落实到具体项目的资金。计划投入资金：一定时间（本年度或项目期）内计划投入到项目的资金。","1.资金到位率等于100%得满分；2.资金到位率小于80%得0分；3.资金到位率在80%-100%之间，得2分。"]
[null,null,"到位及时率（3分）","项目及时到位资金与应到位资金的比率，用以反映和考核项目资金落实的及时程度。到位及时率=（及时到位资金/应到位资金）*100%，及时到位资金：截至规定试点实际落实到具体项目的资金。应到位资金：按照合同或项目进度要求截至规定时点应落实具体项目的资金。","1.资金到位及时率等于100%得满分；2.资金到位及时率小于80%得0分；3.资金到位及时率在80%-100%之间，得2分。"]
["过程管理(30分)","业务管理（15分）","管理制度健全性（5分）","项目实施单位的业务管理制度是否健全，是否制定科学合理的计划，用以反映和考核业务管理制度对项目顺利实施的保障情况。评价要点：1.是否已制定或具有相应的业务管理制度和计划；2.业务管理制度是否合法、合规、完整。","1、全部符合得5分；2. 一项不符合根据情况适当扣分。"]
[null,null,"制度执行有效性（5分）","项目实施是否符合相关业务管理规定，用以反映和考核业务管理制度的有效执行情况。评价要点：1.是否遵守相关法律法规和业务管理规定；2.项目合同书、验收报告、技术鉴定等资料是否齐全并及时归档。","1、全部符合得5分；2. 一项不符合根据情况适当扣分。"]
[null,null,"工作质量可控性（5分）","项目实施单位是否为达到项目质量要求而采取了必需的措施，用以反映和考核项目实施单位对项目质量的可控情况。评价要点：1.是否已制定或具有相应的项目质量要求或标准；2.是否采取了相应的项目质量检查、验收等必要的控制措施或手段。","1、全部符合得5分；2. 一项不符合根据情况适当扣分。"]
[null,"财务管理（15分）","管理制度健全性（5分）","项目实施单位的财务制度是否健全，用以反映和考核财务管理制度对资金规范、安全运行的保障情况。评价要点：①是否已制定或具有相应的项目资金管理办法；②项目资金管理办法是否符合相关财务会计制度的规定。","1、全部符合得5分；2.一项不符合得0分。"]
[null,null,"资金使用合规性（5分）","项目资金使用是否符合相关的财务管理制度规定，用以反映和考核项目资金的规范运行情况。评价要点：①是否符合国家财经法规和财务管理制度以及有关专项资金管理办法的规定；②资金的拨付是否有完整的审批程序和手续；③项目的重大开支是否经过评估认证；④是否符合项目预算批复或合同规定的用途；⑤是否存在截留、挤占、挪用、虚列支出等情况。","1、符合全部五项（5 分）；2、符合其中四项（4分）；3、符合其中三项（3 分）；4、符合其中二项（2 分）；5、符合其中一项及以下（0 分）。"]
[null,null,"财务监控有效性（5分）","项目实施单位是否为保障资金的安全、规范运行而采取了必要的监控措施，用以反映和考核项目实施单位对资金运行的控制情况。评价要点：①是否已制定或具有相应的监控机制;②是否采取了相应的财务检查等必要的监控措施或手段。","1、全部符合（5分）；2、其中一项不符合（0 分）。"]
["产出（35）","项目产出（35分）","污水污泥处理量完成（10分）","完成污水污泥处理年初计划，确保按质按量完成","1.工作完成，得满分；2.工作未完成适当扣分。"]
[null,null,"完成及时率（5分）","项目实际提前完成时间与计划完成时间的比率，用以反映和考核项目产出时效目标的实现程度。","1.工作完成，得满分；2.工作未完成适当扣分。"]
[null,null,"质量达标率（10分）","落实日常和定期监督抽查检验工作计划，提升污水污泥处理质量。","1.工作完成，得满分；2.工作未完成适当扣分。"]
[null,null,"安全生产无事故（10分）","全年安全生产无事故","100%无事故得满分，低于100%不得分"]
["效果(20分)","有效性（10分）","经济效益情况（10分）","节能降耗，控制成本","全面完成得满分，未全面完成根据情况适当扣分。"]
[null,"公平性（10分）","社会公众满意度（10分）","通过问卷调查了解社会公众对项目产出效果、解决民众关心的热点问题等方面的满意程度，反映和评价项目支出所带来的社会效益。","按照满意度调查的优秀（90-100分）、良好（70-89分）、合格（60-69分）、不合格（60分以下）给予该项指标打分：优秀（10）；良好（8）；合格（6）；不合格（0）。"]
["总分",100,100]

{"sheet":"路灯管理处路灯费补助项目","index":32,"n_rows":22,"n_cols":5,"rows_kept":22,"merged":[[0,0,0,4],[2,0,3,0],[4,0,5,0],[6,0,8,0],[9,0,11,0],[12,0,17,0],[13,1,14,1],[15,1,16,1],[15,2,16,2],[15,3,16,3],[15,4,16,4],[18,0,20,0],[18,1,20,1]]}
["路灯管理处路灯费补助\n项目绩效目标表\n"]
["一级指标","二级指标","三级指标内容","指标值","分值"]
["项目前期","项目立项","项目立项科学、合理、规范","科学、合理、规范",4]
[null,"项目目标","项目目标科学、完整、细化","科学、完整、细化",4]
["资金落实","资金到位额度","实际到位资金与计划投入资金的比率",{"v":1,"d":"100%"},4]
[null,"资金到位时效","资金实际到位时间与计划到位时间比","一致",4]
["业务管理","管理制度","项目实施单位的业务管理制度健全、规范、合规","健全、规范、合规",4]
[null,"制度执行","项目实施符合相关业务管理规定","符合",4]
[null,"质量控制","保障项目质量要求采取的措施","完整、有效",4]
["财务管理","管理制度","财务管理制度科学、规范、完整","科学、规范、完整",4]
[null,"资金使用","使用合规性","合规",4]
[null,"账务处理","财务管理制度科学、规范、完整","科学、规范、完整",4]
["产出指标","数量指标","路灯亮灯率","≥98%",7.5]
[null,"质量指标","光照度达到国家标准",{"v":1,"d":"100%"},7.5]
[null,null,"平均照明度、亮度指标达到国家标准",{"v":1,"d":"100%"},7.5]
[null,"时效指标","路灯日运行时间和公共亮化设施日运行时间达标","≥10.5小时，≥ 5小时",7.5]
[]
[null,"成本指标","随州路灯管理费较预算相比差异率","小于2%",7.5]
["项目效益","社会效益","对地区基础设施、社会服务容量和城市化进程的影响","积极推动",7.5]
[null,null,"照明整体光色较好，营造出舒适的光环境","光色好，舒适美观",7.5]
[null,null,"服务对象满意度","满意度≥95%",7.5]
["合计",{"$nulls":3},100]

{"sheet":"粮食储备资金项目","index":33,"n_rows":21,"n_cols":5,"rows_kept":21,"merged":[[0,0,0,4],[1,0,2,0],[1,1,2,1],[1,2,2,2],[1,3,2,3],[1,4,2,4],[3,0,7,0],[3,1,5,1],[6,1,7,1],[8,0,13,0],[8,1,10,1],[11,1,13,1],[14,0,17,0],[14,1,17,1],[18,0,19,0]]}
["2019年度“粮食储备资金”项目绩效目标表"]
["一级指标","二级指标","三级指标 ","指标解释和说明","评分标准"]
[]
["投入管理(15分)","项目立项（9分）","立项规范性（3分）","项目的申请、设立过程是否符合相关要求，用以反映和考核项目立项的规范情况。评价要点：1.项目是否按规定的程序申请设立；2.所提交材料、文件是否符合相关的要求；3.事前是否已经过必要的可行性研究、专家论证、风险评估集体决策等。","1、全部符合得3分；2.一项不符合得0分。"]
[null,null,"绩效目标合理性（3分）","项目所设定的绩效目标是否依据充分，是否符合客观实际，用以反映和考核项目绩效目标与项目实施的相符情况。评价要点：1.是否符合国家相关法律法规、国民经济规划和政府决策；2.是否与项目实施单位或者委托单位职责密切相关；3.项目是否促进事业发展所必需；4.项目预期产出效益和效果是否符合正常的业绩水平。","1、全部符合得3分；2.一项不符合适当扣分。"]
[null,null,"绩效指标明确性（3分）","依据绩效目标设定的绩效指标是否清晰、细化、可衡量等，用以反映和考核项目绩效目标的明细化情况。评价要点：1.是否将项目绩效目标细化分解为具体的目标；2.是否通过清晰、可衡量的指标值予以体现；3.是否与项目年度任务数或计划数相对应；4.是否与预算确定项目投资额或资金量相匹配。","1、全部符合得3分；2.一项不符合得0分。"]
[null,"资金落实（6分）","资金到位率（3分）","实际到位资金与计划投入资金的比率，用以反映资金落实情况对项目实施的总体保障程度。资金到位率=（实际到位资金/计划投入资金）*100%，实际到位资金：一定时间（本年度或项目期）内实际落实到具体项目的资金。计划投入资金：一定时间（本年度或项目期）内计划投入到项目的资金。","1.资金到位率等于100%得满分；2.资金到位率小于80%得0分；3.资金到位率在80%-100%之间，得2分。"]
[null,null,"到位及时率（3分）","项目及时到位资金与应到位资金的比率，用以反映和考核项目资金落实的及时程度。到位及时率=（及时到位资金/应到位资金）*100%，及时到位资金：截至规定试点实际落实到具体项目的资金。应到位资金：按照合同或项目进度要求截至规定时点应落实具体项目的资金。","1.资金到位及时率等于100%得满分；2.资金到位及时率小于80%得0分；3.资金到位及时率在80%-100%之间，得2分。"]
["过程管理(30分)","业务管理（15分）","管理制度健全性（5分）","项目实施单位的业务管理制度是否健全，是否制定科学合理的计划，用以反映和考核业务管理制度对项目顺利实施的保障情况。评价要点：1.是否已制定或具有相应的业务管理制度和计划；2.业务管理制度是否合法、合规、完整。","1、全部符合得5分；2. 一项不符合根据情况适当扣分。"]
[null,null,"制度执行有效性（5分）","项目实施是否符合相关业务管理规定，用以反映和考核业务管理制度的有效执行情况。评价要点：1.是否遵守相关法律法规和业务管理规定；2.项目合同书、验收报告、技术鉴定等资料是否齐全并及时归档。","1、全部符合得5分；2. 一项不符合根据情况适当扣分。"]
[null,null,"工作质量可控性（5分）","项目实施单位是否为达到项目质量要求而采取了必需的措施，用以反映和考核项目实施单位对项目质量的可控情况。评价要点：1.是否已制定或具有相应的项目质量要求或标准；2.是否采取了相应的项目质量检查、验收等必要的控制措施或手段。","1、全部符合得5分；2. 一项不符合根据情况适当扣分。"]
[null,"财务管理（15分）","管理制度健全性（5分）","项目实施单位的财务制度是否健全，用以反映和考核财务管理制度对资金规范、安全运行的保障情况。评价要点：①是否已制定或具有相应的项目资金管理办法；②项目资金管理办法是否符合相关财务会计制度的规定。","1、全部符合得5分；2.一项不符合得0分。"]
[null,null,"资金使用合规性（5分）","项目资金使用是否符合相关的财务管理制度规定，用以反映和考核项目资金的规范运行情况。评价要点：①是否符合国家财经法规和财务管理制度以及有关专项资金管理办法的规定；②资金的拨付是否有完整的审批程序和手续；③项目的重大开支是否经过评估认证；④是否符合项目预算批复或合同规定的用途；⑤是否存在截留、挤占、挪用、虚列支出等情况。","1、符合全部五项（5 分）；2、符合其中四项（4分）；3、符合其中三项（3 分）；4、符合其中二项（2 分）；5、符合其中一项及以下（0 分）。"]
[null,null,"财务监控有效性（5分）","项目实施单位是否为保障资金的安全、规范运行而采取了必要的监控措施，用以反映和考核项目实施单位对资金运行的控制情况。评价要点：①是否已制定或具有相应的监控机制;②是否采取了相应的财务检查等必要的监控措施或手段。","1、全部符合（5分）；2、其中一项不符合（0 分）。"]
["产出（35）","项目产出（35分）","项目建设（采购）完成率（10分）","完成储备粮采购年初计划，确保储备粮足额、质量符合标准，储存安全。","1.工作完成，得满分；2.工作未完成适当扣分。"]
[null,null,"完成及时率（5分）","项目实际提前完成时间与计划完成时间的比率，用以反映和考核项目产出时效目标的实现程度。","1.工作完成，得满分；2.工作未完成适当扣分。"]
[null,null,"质量达标率（10分）","落实日常和定期监督抽查检验工作计划，规范检验流程管理，提升检验报告质量。","1.工作完成，得满分；2.工作未完成适当扣分。"]
[null,null,"资金使用率（10分）","项目实际支出与项目到位资金的比率，用以反映和考核项目资金使用情况。资金使用率=项目实际支出/项目到位资金×100%。","1.资金使用率大于或等于95%得满分；2.资金使用率95%-80%之间，得2分。"]
["效果(20分)","有效性（10分）","社会效益情况（10分）","确保地方粮食储备库存，保证随州储备粮食规模，推动全市经济社会健康发展。","全面完成得满分，未全面完成根据情况适当扣分。"]
[null,"公平性（10分）","社会公众满意度（10分）","通过问卷调查了解社会公众对项目产出效果、解决民众关心的热点问题等方面的满意程度，反映和评价项目支出所带来的社会效益。","按照满意度调查的优秀（90-100分）、良好（70-89分）、合格（60-69分）、不合格（60分以下）给予该项指标打分：优秀（10）；良好（8）；合格（6）；不合格（0）。"]
["总分",100,100]

{"sheet":"园林局“以钱养事”项目","index":34,"n_rows":24,"n_cols":5,"rows_kept":24,"merged":[[0,0,0,4],[2,0,3,0],[4,0,5,0],[6,0,8,0],[9,0,15,0],[10,1,14,1],[16,0,19,0],[16,1,18,1],[20,0,22,0],[23,0,23,3]]}
["2019年度园林局“以钱养事”项目绩效目标表"]
["一级指标","二级指标","二级指标内容","指标值","分值"]
["项目前期","项目立项","项目立项科学、合理、规范","科学、合理、规范",2.5]
[null,"项目目标","项目目标科学、完整、细化","科学、完整、细化",2.5]
["资金落实","资金到位额度","实际到位资金与计划投入资金的比率",{"v":1,"d":"100%"},7]
[null,"资金到位时效","资金实际到位时间与计划到位时间比","一致",7]
["业务管理","管理制度","项目实施单位的业务管理制度健全、规范、合规","健全、规范、合规",2.5]
[null,"制度执行","项目实施符合相关业务管理规定","符合",2.5]
[null,"质量控制","保障项目质量要求采取的措施","完整、有效",2.5]
["财务管理","管理制度","财务管理制度科学规范和完整","科学、规范、完整",2.5]
[null,"资金使用","使用合法性","合法",2.5]
[null,null,"财务监控有效性","完整",2.5]
[null,null,"预算到位率",{"v":1,"d":"100%"},2.5]
[null,null,"资金使用率",{"v":1,"d":"100%"},2.5]
[null,null,"专款专用率",{"v":1,"d":"100%"},2.5]
[null,"账务处理","账务处理规范、合规","科学、规范、合规",2.5]
["产出指标","数量指标","绿化管养考核完成率",{"v":1,"d":"100%"},5]
[null,null,"综合评定优秀者表彰和奖励工作完成率",{"v":1,"d":"100%"},5]
[null,null,"年终综合评定完成率",{"v":1,"d":"100%"},5]
[null,"质量指标","月度考核全年综合平均得分","90分",15]
["项目效益","可持续影响指标","绿化养护事项的投诉次数","较上年下降",8]
[null,"社会效益","持续美化城市环境，提升城市形象","美化环境",8]
[null,"社会公众或服务对象满意度","对绿化养护工作的市民满意度",{"v":0.95,"d":"95%"},10]
[{"$nulls":4},100]

{"sheet":"规划展览馆运行经费项目","index":35,"n_rows":27,"n_cols":6,"rows_kept":27,"merged":[[0,0,0,5],[2,0,3,0],[4,0,5,0],[6,0,8,0],[9,0,11,0],[12,0,19,0],[12,2,13,2],[12,3,13,3],[12,4,13,4],[12,5,13,5],[16,2,17,2],[16,3,17,3],[16,4,17,4],[16,5,17,5],[18,2,19,2],[18,3,19,3],[18,4,19,4],[18,5,19,5],[20,0,25,0],[20,2,22,2],[20,3,22,3],[20,4,22,4],[20,5,22,5],[23,2,24,2],[23,3,24,3],[23,4,24,4],[23,5,24,5]]}
["2019年度规划展览馆运行经费绩效目标表"]
["一级指标","二级指标","三级指标内容","指标值","分值","评分标准"]
["项目前期","项目立项","项目立项科学、合理、规范","科学、合理、规范",4,"项目立项科学规范计2分；项目评审论证程序完整合法计2分"]
[null,"项目目标","项目目标科学、完整、细化","科学、完整、细化",4,"项目目标符合国家相关法律法规、国民经济发展规划和党委政府决策计2分；项目目标清晰、细化、可衡量计2分。"]
["资金落实","资金到位额度","实际到位资金与计划投入资金的比率",{"v":1,"d":"100%"},4,"实际到位资金占计划投入资金的100%计4分；占90%以上计3分； 90%以下不得分。"]
[null,"资金到位时效","资金实际到位时间与计划到位时间比","一致",4,"资金实际到位时间与计划到位时间一致计4分，每超过2个月扣0.5分，扣完为止。"]
["业务管理","管理制度","项目实施单位的业务管理制度健全、规范、合规","健全、规范、合规",4,"制定或具有相应的业务管理制度计2分；业务管理制度规范、合规、完整计2分。"]
[null,"制度执行","项目实施符合相关业务管理规定","符合",4,"项目实施进守相关法律法规和业务管理规定计2分；项目合同书、验收报告、技术鉴定等资料齐全计2分。"]
[null,"质量控制","保障项目质量要求采取的措施","完整、有效",4,"为保障项目质量制定或具有相应的项目质量要求或标准计2分；采取相应的项目质量检査、验收等必需的控制措施或手段计2分。"]
["财务管理","管理制度","财务管理制度科学、规范、完整性","科学、规范、完整",4,"有内部财务管理制度、会计核算制度等管理制度计2分，相关管理制度科学、规范、完整，计2分。"]
[null,"资金使用","资金使用合规性","合规",4,"符合国家财经法规和财务管理制度以及有关专项资金管理办法的规定计4分；不符合或有审计、财政监督检査等发现的问题不得分。"]
[null,"账务监控","账务监控措施规范有效","规范、有效",4,"资金拨付符合规定的审批程序计2分；相关凭证、材料收集完整整齐计2分。"]
["产出指标","数量","接待游客，并完成政务接待","≥7000人，50场",7.5,"按完成比例计分，完成100%计7.5分。"]
[null,"指标"]
[null,"质量","平面布展更新","全面更新",7.5,"合格计7.5分，部分合格按比例计分，不合格不计分。"]
[null,"指标","公益开放","获好评",7.5,"合格计7.5分，部分合格按比例计分，不合格不计分。"]
[null,"时效","完成任务及时","及时",7.5,"合格计7.5分，部分合格按比例计分，不合格不计分。"]
[null,"指标"]
[null,"成本","较预算相比差异率","小于2%",7.5,"合格计7.5分，部分合格按比例计分，不合格不计分。"]
[null,"指标"]
["项目效益","社会","展示城市新窗口的良好形象，弘扬随州悠久厚重的历史文化",{"v":1,"d":"100%"},7.5,"完成100%计7.5分,部分完成按比例计分。"]
[null,"效益"]
[]
[null,"经济","为招商引资服务",null,7.5,"完成100%计7.5分,部分完成按比例计分。"]
[null,"效益"]
[null,"服务对象满意度","服务满意度","满意度",7.5,"非常满7.5分、满意6分、一般4分、不满意0分"]
["合计",{"$nulls":3},100]